Workbook

Sheet A
A1: SECTION A: PROGRAM INFORMATION | C1: (You will ONLY be able to fill-in and select from the shaded fields on this worksheet) | K1: =IF(X19="LMW","Locality Served under Vendor Number","Job Position") -> Job Position | N1: =IF(X19="LMW","Previous Minimim Wage","Current Hourly Wage") -> Current Hourly Wage | O1: =IF(X19="LMW","Revised Minimum Wage","Proposed Hourly Wage") -> Proposed Hourly Wage | R1: Cost Allocation Category | T1: Manual Entry | U1: Final | V1: =CJ24 -> 0 | AA1: =A17+1 -> 16 | AB1: Increase of Existing Service | AC1: Yes
A2: 1 | B2: Type of Health & Safety Request | C2: =VLOOKUP(W13,W14:X15,2,FALSE) -> Regular Health & Safety
A4: =A2+1 -> 2 | B4: Service Provider Name | J4: =A19+1 -> 18 | Q4: =J22+1 -> 33 | R4: General Operations | U4: =V4 -> 0 | V4: =IF(T4="",$CJ$24,IF(1<T4>0,T4,$CJ$24)) -> 0 | AQ4: Mixed | AU4: actual | AV4: month | AW4: fy remain
A5: =A4+1 -> 3 | B5: Vendor Number | J5: =J4+1 -> 19 | Q5: =Q4+1 -> 34 | R5: Program Costs | U5: =V5 -> 0 | V5: =IF(T5="",$CJ$24,IF(1<T5>0,T5,$CJ$24)) -> 0 | AP5: TRUE | AV5: 1 | AW5: 6
A6: =A5+1 -> 4 | B6: Vendor Address | J6: =J5+1 -> 20 | Q6: =Q5+1 -> 35 | R6: Program Consultants | U6: =V6 -> 0 | V6: =IF(T6="",$CJ$24,IF(1<T6>0,T6,$CJ$24)) -> 0 | AP6: =INDEX($AC$6:$AI$10,SMALL(IF(($AP$5=$AJ$6:$AJ$10),ROW($AJ$6:$AJ$10)-MIN(ROW($AJ$6:$AJ$10))+1,""),ROW($A$1:A1)),2) ->  | AQ6: Hourly | AR6: Subcode Specific Distribution
A7: 5 | B7: Service Code | J7: =J6+1 -> 21 | Q7: =Q6+1 -> 36 | R7: Administrative Costs | U7: 0 | V7: =IF(T7="",$CJ$24,IF(1<T7>0,T7,$CJ$24)) -> 0 | AP7: =INDEX($AC$6:$AI$10,SMALL(IF(($AP$5=$AJ$6:$AJ$10),ROW($AJ$6:$AJ$10)-MIN(ROW($AJ$6:$AJ$10))+1,""),ROW(A2)),2) ->  | AQ7: Daily | AR7: Average Distribution | AV7: 2 | AW7: 5
A8: =A7+1 -> 6 | B8: Staffing Ratio | J8: =J7+1 -> 22 | Q8: =Q7+1 -> 37 | R8: Administrative Staff | U8: 0 | V8: =IF(T8="",$CJ$24,IF(1<T8>0,T8,$CJ$24)) -> 0 | AN8: =K12 -> 0 | AO8: 1 | AP8: =INDEX($AC$6:$AI$10,SMALL(IF(($AP$5=$AJ$6:$AJ$10),ROW($AJ$6:$AJ$10)-MIN(ROW($AJ$6:$AJ$10))+1,""),ROW($A$1:A4)),2) ->  | AQ8: Monthly | AR8: N/A (Only one subcode used)
A9: 7 | B9: Number of Consumers in Program | J9: =J8+1 -> 23 | AN9: =K13 -> 0 | AO9: 2 | AP9: =INDEX($AC$6:$AI$10,SMALL(IF(($AP$5=$AJ$6:$AJ$10),ROW($AJ$6:$AJ$10)-MIN(ROW($AJ$6:$AJ$10))+1,""),ROW($A$1:A5)),2) ->  | AQ9: Per-Ride | AV9: 3 | AW9: 4
A10: 8 | B10: Number of Consumers in Request | AN10: =K14 -> 0 | AO10: 3 | AP10: =INDEX($AC$6:$AI$10,SMALL(IF(($AP$5=$AJ$6:$AJ$10),ROW($AJ$6:$AJ$10)-MIN(ROW($AJ$6:$AJ$10))+1,""),ROW($A$1:A6)),2) ->  | AQ10: Yes | AV10: 4 | AW10: 3
A11: 9 | B11: Other Vendor Numbers and Services Codes | K11: Subcode Name | L11: Type | N11: Rate | R11: Bypass Mgmt. | S11: Bypass Ops. | T11: Bypass Adm. | U11: Bypass All | X11: Incremental | AN11: =K15 -> 0 | AO11: 4 | AP11: =INDEX($AC$6:$AI$10,SMALL(IF(($AP$5=$AJ$6:$AJ$10),ROW($AJ$6:$AJ$10)-MIN(ROW($AJ$6:$AJ$10))+1,""),ROW($A$1:A7)),2) ->  | AQ11: No | AU11: =MONTH(C14) -> 1 | AV11: 5 | AW11: 2
A12: 10 | B12: Number of Months in Reporting Period: (3-12)* | J12: =J9+1 -> 24 | Q12: =Q8+1 -> 38 | X12: Comprehensive | AC12: =IF(K12="","",IF($C$16="","",IF($C$16="Mixed","("&L12&")","("&$C$16&")"))) ->  | AN12: =K16 -> 0 | AO12: 5 | AP12: =INDEX($AC$6:$AI$10,SMALL(IF(($AP$5=$AJ$6:$AJ$10),ROW($AJ$6:$AJ$10)-MIN(ROW($AJ$6:$AJ$10))+1,""),ROW($A$1:A8)),2) ->  | AV12: 6 | AW12: 1
A13: 11 | B13: Review Period: (Enter Beginning & End) | J13: =J12+1 -> 25 | Q13: =Q12+1 -> 39 | V13: Reg | W13: Reg | AC13: =IF(K13="","",IF($C$16="","",IF($C$16="Mixed","("&L13&")","("&$C$16&")"))) ->  | AV13: 7 | AW13: 12
A14: 12 | B14: Effective Date of Increase | J14: =J13+1 -> 26 | Q14: =Q13+1 -> 40 | W14: Reg | X14: Regular Health & Safety | AC14: =IF(K14="","",IF($C$16="","",IF($C$16="Mixed","("&L14&")","("&$C$16&")"))) ->  | AN14: =COUNTA(K12:K17) -> 0 | AV14: 8 | AW14: 11
A15: 13 | B15: Temporary Request | D15: End Date: | J15: =J14+1 -> 27 | Q15: =Q14+1 -> 41 | W15: LMW | X15: Local Minimum Wage | AC15: =IF(K15="","",IF($C$16="","",IF($C$16="Mixed","("&L15&")","("&$C$16&")"))) ->  | AL15: >1 Subcodes | AN15: =IF(AN17=TRUE,FALSE,IF(AN14>1,TRUE,FALSE)) -> FALSE | AO15: =IF(AN14>0,TRUE,FALSE) -> FALSE | AQ15: Direct Support | AV15: 10 | AW15: 9
A16: 14 | B16: Rate Type | J16: =J15+1 -> 28 | Q16: =Q15+1 -> 42 | AC16: =IF(K16="","",IF($C$16="","",IF($C$16="Mixed","("&L16&")","("&$C$16&")"))) ->  | AL16: Sheet is blank | AN16: =COUNTA(B27:G76)+COUNTA(I27:M76) -> 0 | AO16: =IF(AN16=0,TRUE,FALSE) -> TRUE | AQ16: Management | AV16: 11 | AW16: 8
A17: 15 | B17: Vendoring Regional Center | W17: Regular Health & Safety | X17: Reg | AL17: >1 Subcodes Bypass | AN17: =IF(T19="Average Distribution",TRUE,FALSE) -> FALSE | AQ17: Administrative
A18: 16 | B18: Existing or New Service | C18: =IF(AC1="Yes","Existing Service","New Service") -> Existing Service | K18: Variable Position Type | N18: User-Defined Position Title | R18: Worksheet Function | T18: Entry | W18: Local Minimum Wage | X18: LMW | AQ18: =IF($X$19="LMW","N/A",IF(N19="","Other #1",N19)) -> Other #1
A19: 17 | B19: Number of Employees Receiving Wage Adjustment | C19: =COUNTIF(X27:X77,">0") -> 0 | J19: =J16+1 -> 29 | K19: Other #1 | Q19: =Q16+1 -> 43 | R19: Adjustment Distribution Method | T19: Subcode Specific Distribution | V19: =IF(C2="",W17,C2) -> Regular Health & Safety | W19: Current Select (Reg = Default) | X19: =W13 -> Reg | AQ19: =IF($X$19="LMW","N/A",IF(N20="","Other #2",N20)) -> Other #2
B20: * If using reporting period range below 3 months, please give rationale why request is unable to provide 3 months of data. | J20: =J19+1 -> 30 | K20: Other #2 | Q20: =Q19+1 -> 44 | R20: Incremental or Comprehensive | T20: Incremental | AQ20: =IF($X$19="LMW","N/A",IF(N21="","Other #3",N21)) -> Other #3 | AU20: =VLOOKUP(AU11,AV5:AW20,2,FALSE) -> 6 | AV20: 12 | AW20: 7
B21: * For each employee, include either the hourly wage or salary. If both are included, default is salary. | J21: =J20+1 -> 31 | K21: Other #3 | Q21: =Q20+1 -> 45 | R21: Local Min. Wage - Rate Cap | T21: No | V21: =IF(T21="No","No","Yes") -> No | AQ21: =IF($X$19="LMW","N/A",IF(N22="","Other #4",N22)) -> Other #4
J22: =J21+1 -> 32 | K22: Other #4 | V22: # of Months = | W22: =IF(C12="",3,C12) -> 3 | X22: =IF(W22=1,"","s") -> s | CL22: =AQ15 -> Direct Support | CM22: =AQ16 -> Management | CN22: =AQ17 -> Administrative | CO22: =AQ18 -> Other #1 | CP22: =AQ19 -> Other #2 | CQ22: =AQ20 -> Other #3 | CR22: =AQ21 -> Other #4 | CT22: =AQ15 -> Direct Support | CU22: =AQ16 -> Management | CV22: =AQ17 -> Administrative | CW22: =AQ18 -> Other #1 | CX22: =AQ19 -> Other #2 | CY22: =AQ20 -> Other #3 | CZ22: =AQ21 -> Other #4
V23: (Default = 3) | AD23: Admin Increase? | AE23: =IF(B!H78="Yes",TRUE,FALSE) -> FALSE | CJ23: Admin Ratio: | CL23: =B!C17*W22 -> 0 | CM23: =B!C18*W22 -> 0 | CN23: =B!C19*W22 -> 0 | CO23: =IF($X$19="LMW",0,B!H17*W22) -> 0 | CP23: =IF($X$19="LMW",0,B!H18*W22) -> 0 | CQ23: =IF($X$19="LMW",0,B!H19*W22) -> 0 | CR23: =IF($X$19="LMW",0,B!H20*W22) -> 0 | CT23: =B!C17*W22 -> 0 | CU23: =B!C18*W22 -> 0 | CV23: =B!C19*W22 -> 0 | CW23: =IF($X$19="LMW",0,B!H17*W22) -> 0 | CX23: =IF($X$19="LMW",0,B!H18*W22) -> 0 | CY23: =IF($X$19="LMW",0,B!H19*W22) -> 0 | CZ23: =IF($X$19="LMW",0,B!H20*W22) -> 0
B24: A | C24: B | D24: C | E24: D | F24: E | G24: F | H24: G | I24: H | K24: I | L24: J | N24: K | O24: L | P24: M | S24: N | T24: O | U24: P | AI24: =AND($X$19="LMW",C28="N/A") -> FALSE | AR24: 1 | AS24: 2 | AT24: 3 | AU24: 4 | AV24: 5 | BM24: Regular | BQ24: LMW Only | BU24: NON LMW Only | BY24: Average Distro | CC24: Subcode Specific Distro | CJ24: =IFERROR(IF(C10/C9>1,1,C10/C9),0) -> 0 | CL24: Current | CM24: Current | CN24: Current | CO24: Current | CP24: Current | CQ24: Current | CR24: Current | CS24: Current | CT24: Proposed | CU24: Proposed | CV24: Proposed | CW24: Proposed | CX24: Proposed | CY24: Proposed | CZ24: Proposed | DA24: Proposed
A25: Row # | B25: Name or Initials of Staff Employee(s) (Please See Instructions for Listing Employees Receiving more than One Wage) | C25: Position Type | D25: Current Hourly Wage | E25: ="Current Full Time Salary "&CHAR(10)&"("&W22&" Month"&X22&")" -> Current Full Time Salary (3 Months) | F25: Percentage of Admin Duties | G25: =IF(AC1="No","N/A", "Current Hours or FTE During Review Period") -> Current Hours or FTE During Review Period | H25: =IF($X$19="LMW","N/A","Proposed Hours or FTE During Review Period") -> Proposed Hours or FTE During Review Period | I25: =IF($X$19="LMW","Locality Worked","Job Position (if Receiving Hourly Wage Increase)") -> Job Position (if Receiving Hourly Wage Increase) | K25: Subcode Worked (Required for Direct & Other) | L25: Direct Service Ratio (Management Only) | N25: =IF(X19="Reg",V25,"Wage increase due to Minimum Wage") -> Current FTE (1 Month Average) | O25: =IF($X$19="Reg",W25,Y25) -> Proposed FTE (1 Month Average) | P25: =IF($X$19="Reg",X25,V25) -> Wage Increase | S25: =IF($X$19="Reg",Y25,W25) -> Revised Hourly Wage | T25: Final Hourly Wage | U25: Entered Correctly | V25: Current FTE (1 Month Average) | W25: Proposed FTE (1 Month Average) | X25: Wage Increase | Y25: Revised Hourly Wage | AA25: INCOMPLETE? | AB25: Affected by MW | AC25: Proposed Hours - Current | AD25: Salary? | AE25: Current Hours (Salary 1st) | AF25: Proposed Hours (Salary 1st) | AG25: Current Hrly Wage (Salary 1st) | AH25: Proposed Hrly Wage | AI25: Adjusted Admin % | AJ25: Non-Admin Hrs Current | AK25: Non-Admin Hrs Proposed | AL25: Current FTE | AM25: Proposed FTE | AN25: Subcode | AO25: Management Ratio | AP25: Management Ratio for Request | AQ25: Derived Salary>Hourly | AR25: Subcode 1 Increase | AS25: Subcode 2 Increase | AT25: Subcode 3 Increase | AU25: Subcode 4 Increase | AV25: Subcode 5 Increase | AW25: Total Pay (3Mo) Original - Other1 | AX25: Total Pay (3Mo) Revised - Other1 | AY25: Current Hours (3Mo) - Other1 | AZ25: Proposed Hours (3Mo) - Other1 | BA25: Total Pay (3Mo) Original - Other2 | BB25: Total Pay (3Mo) Revised - Other2 | BC25: Current Hours (3Mo) - Other2 | BD25: Proposed Hours (3Mo) - Other2 | BE25: Total Pay (3Mo) Original - Other3 | BF25: Total Pay (3Mo) Revised - Other3 | BG25: Current Hours (3Mo) - Other3 | BH25: Proposed Hours (3Mo) - Other3 | BI25: Total Pay (3Mo) Original - Other4 | BJ25: Total Pay (3Mo) Revised - Other4 | BK25: Current Hours (3Mo) - Other4 | BL25: Proposed Hours (3Mo) - Other4 | BM25: Total Pay (3Mo) Original - DS | BN25: Total Pay (3Mo) Revised - DS | BO25: Current Hours (3Mo) - DS | BP25: Proposed Hours (3Mo) - DS | BQ25: Total Pay (3Mo) Original - DS | BR25: Total Pay (3Mo) Revised - DS | BS25: Current Hours (3Mo) - DS | BT25: Proposed Hours (3Mo) - DS | BU25: Total Pay (3Mo) Original - DS | BV25: Total Pay (3Mo) Revised - DS | BW25: Current Hours (3Mo) - DS | BX25: Proposed Hours (3Mo) - DS | BY25: Total Pay (3MO) Original - MANAGE | BZ25: Total Pay (3Mo) Revised - MANAGE | CA25: Current Hours (3Mo) - MANAGE | CB25: Proposed Hours (3Mo) - MANAGE | CC25: Total Pay (3MO) Original - MANAGE | CD25: Total Pay (3Mo) Revised - MANAGE | CE25: Current Hours (3Mo) - MANAGE | CF25: Proposed Hours (3Mo) - MANAGE | CG25: Total Pay (3Mo) Original - ADMIN | CH25: Total Pay (3Mo) Revised - ADMIN | CI25: Total Pay Admin Difference | CJ25: Current Hours (3Mo) - ADMIN | CK25: Proposed Hours (3Mo) - ADMIN | CL25: Benefits DSP | CM25: Benefits Management | CN25: Benefits Admin | CO25: Benefits Other1 | CP25: Benefits Other2 | CQ25: Benefits Other3 | CR25: Benefits Other4 | CS25: Admin-Variable | CT25: Benefits DSP | CU25: Benefits Management | CV25: Benefits Admin | CW25: Benefits Other1 | CX25: Benefits Other2 | CY25: Benefits Other3 | CZ25: Benefits Other4 | DA25: Admin-Variable
L26: Req. | M26: Total
A27: 1 | N27: =IF($X$19="Reg",TEXT(V27,"0.00"),X27) -> - | O27: =IF($X$19="Reg",TEXT(W27,"0.00"),Y27) -> - | P27: =IF($X$19="Reg",X27,TEXT(V27,"0.00")) -> 0 | S27: =IF($X$19="Reg",Y27,TEXT(W27,"0.00")) -> 0 | T27: =IF(AND(D27="",E27=""),0,IF(E27="",IF(D27<AH27,AH27,D27),AQ27)) -> 0 | U27: =IF(B27="","",IF(AA27=FALSE,"Yes","No")) ->  | V27: =IFERROR(IF(AE27=0,"-",IF(C27=$AQ$16,(((AE27*AP27))*(1-AI27)+(AE27*AI27*$U$8))/(2080/12*$W$22),((AE27)*(1-AI27)+(AE27*AI27*$U$8))/(2080/12*$W$22))),"-") -> - | W27: =IFERROR(IF(AF27=0,"-",IF(C27=$AQ$16,(((AF27*AP27))*(1-AI27)+(AF27*AI27*$U$8))/(2080/12*$W$22),((AF27)*(1-AI27)+(AF27*AI27*$U$8))/(2080/12*$W$22))),"-") -> - | X27: =IF((Y27-D27)>0,Y27-D27,0) -> 0 | Y27: =IF(AND(D27="",E27=""),0,IF(E27="",IF(D27<AH27,AH27,0),0)) -> 0 | AA27: =OR( B27="",C27="", AND($AC$1="Yes",G27=""), AND($X$19="Reg",H27=""), AND(D27="",E27=""), AND(C27=$AQ$16,M27=""), AND(OR(C27=$AQ$15,C27=$AQ$18,C27=$AQ$19,C27=$AQ$20,C27=$AQ$21),K27="",$AN$15)) -> TRUE | AB27: =IF(AND($X$19="LMW",N27>0),TRUE,FALSE) -> FALSE | AC27: =AF27-AE27 -> 0 | AD27: =IF(E27>0,TRUE,FALSE) -> FALSE | AE27: =IF(AD27=TRUE,(2080/12*$W$22*AL27),G27) -> 0 | AF27: =IF($X$19="LMW",AE27,IF(AD27=TRUE,(2080/12*$W$22*AM27),H27)) -> 0 | AG27: =IF(AD27=TRUE,0,D27) -> 0 | AH27: =IF(E27>0,0,IF($AC$1="YES",IFERROR(VLOOKUP(I27,$K$4:$O$10,5,FALSE),D27),D27)) -> 0 | AI27: =IF(C27="",0,IF(AND($X$19="LMW",C27="N/A"),0,IF(C27="Administrative",1,F27))) -> 0 | AJ27: =AE27*(1-AI27) -> 0 | AK27: =AF27*(1-AI27) -> 0 | AL27: =IF(AD27=TRUE,G27,IFERROR((G27/(2080/12))/$W$22,0)) -> 0 | AM27: =IF($X$19="LMW",AL27,IF(AD27=TRUE,H27,IFERROR((H27/(2080/12))/$W$22,0))) -> 0 | AN27: =IFERROR(IF($AN$15=TRUE,(IF(K27="",0,VLOOKUP(K27,$AN$8:$AO$12,2,FALSE))),1),0) -> 1 | AO27: =IFERROR(L27/M27,0) -> 0 | AP27: =IFERROR(IF((L27/M27)>1,1,(L27/M27)),0) -> 0 | AQ27: =E27/$W$22/(2080/12) -> 0 | AR27: =IF(AR$24=$AN27,($BJ27-$BI27)+($BN27-$BM27)+($AX27-$AW27)+($BB27-$BA27)+($BF27-$BE27),0) -> 0 | AS27: 0 | AT27: 0 | AU27: 0 | AV27: 0 | AW27: =IF($X$19="LMW",0,IF(AN27=0,0,IF(C27=$AQ$18,AG27*AE27*(1-AI27)+(E27*AL27*(1-AI27)),0))) -> 0 | AX27: =IF($X$19="LMW",0,IF(AN27=0,0,IF(C27=$AQ$18,AH27*AF27*(1-AI27)+(E27*AM27*(1-AI27)),0))) -> 0 | AY27: =IF($X$19="LMW",0,IF(AN27=0,0,IF(C27=$AQ$18,AE27*(1-AI27),0))) -> 0 | AZ27: =IF($X$19="LMW",0,IF(AN27=0,0,IF(C27=$AQ$18,AF27*(1-AI27),0))) -> 0 | BA27: =IF($X$19="LMW",0,IF(AN27=0,0,IF(C27=$AQ$19,AG27*AE27*(1-AI27)+(E27*AL27*(1-AI27)),0))) -> 0 | BB27: =IF($X$19="LMW",0,IF(AN27=0,0,IF(C27=$AQ$19,AH27*AF27*(1-AI27)+(E27*AM27*(1-AI27)),0))) -> 0 | BC27: =IF($X$19="LMW",0,IF(AN27=0,0,IF(C27=$AQ$19,AE27*(1-AI27),0))) -> 0 | BD27: =IF($X$19="LMW",0,IF(AN27=0,0,IF(C27=$AQ$19,AF27*(1-AI27),0))) -> 0 | BE27: =IF($X$19="LMW",0,IF(AN27=0,0,IF(C27=$AQ$20,AG27*AE27*(1-AI27)+(E27*AL27*(1-AI27)),0))) -> 0 | BF27: =IF($X$19="LMW",0,IF(AN27=0,0,IF(C27=$AQ$20,AH27*AF27*(1-AI27)+(E27*AM27*(1-AI27)),0))) -> 0 | BG27: =IF($X$19="LMW",0,IF(AN27=0,0,IF(C27=$AQ$20,AE27*(1-AI27),0))) -> 0 | BH27: =IF($X$19="LMW",0,IF(AN27=0,0,IF(C27=$AQ$20,AF27*(1-AI27),0))) -> 0 | BI27: =IF($X$19="LMW",0,IF(AN27=0,0,IF(C27=$AQ$21,AG27*AE27*(1-AI27)+(E27*AL27*(1-AI27)),0))) -> 0 | BJ27: =IF($X$19="LMW",0,IF(AN27=0,0,IF(C27=$AQ$21,AH27*AF27*(1-AI27)+(E27*AM27*(1-AI27)),0))) -> 0 | BK27: =IF($X$19="LMW",0,IF(AN27=0,0,IF(C27=$AQ$21,AE27*(1-AI27),0))) -> 0 | BL27: =IF($X$19="LMW",0,IF(AN27=0,0,IF(C27=$AQ$21,AF27*(1-AI27),0))) -> 0 | BM27: =IF($X$19="Reg",IF(AN27=0,0,IF(C27="Direct Support",AG27*AE27*(1-AI27)+(E27*AL27*(1-AI27)),0)),0) -> 0 | BN27: =IF($X$19="Reg",IF(AN27=0,0,IF(C27="Direct Support",T27*AF27*(1-AI27),0)),0) -> 0 | BO27: =IF($X$19="Reg",IF(AN27=0,0,IF(C27="Direct Support",AE27*(1-AI27),0)),0) -> 0 | BP27: =IF($X$19="Reg",IF(AN27=0,0,IF(C27="Direct Support",AF27*(1-AI27),0)),0) -> 0 | BQ27: =IF($X$19="LMW",IF(AB27=TRUE,IF(AN27=0,0,IF(C27="Direct Support",AG27*AE27*(1-AI27)+(E27*AL27*(1-AI27)),0)),0),0) -> 0 | BR27: =IF($X$19="LMW",IF(AB27=TRUE,IF(AN27=0,0,IF(C27="Direct Support",T27*AF27*(1-AI27)+(E27*AM27*(1-AI27)),0)),0),0) -> 0 | BS27: =IF($X$19="LMW",IF(AB27=TRUE,IF(AN27=0,0,IF(C27="Direct Support",AE27*(1-AI27),0)),0),0) -> 0 | BT27: =IF($X$19="LMW",IF(AB27=TRUE,IF(AN27=0,0,IF(C27="Direct Support",AF27*(1-AI27),0)),0),0) -> 0 | BU27: =IF($X$19="LMW",IF(AB27=FALSE,IF(AN27=0,0,IF(C27="Direct Support",AG27*AE27*(1-AI27)+(E27*AL27*(1-AI27)),0)),0),0) -> 0 | BV27: =IF($X$19="LMW",IF(AB27=FALSE,IF(AN27=0,0,IF(C27="Direct Support",T27*AF27*(1-AI27)+(E27*AM27*(1-AI27)),0)),0),0) -> 0 | BW27: =IF($X$19="LMW",IF(AB27=FALSE,IF(AN27=0,0,IF(C27="Direct Support",AE27*(1-AI27),0)),0),0) -> 0 | BX27: =IF($X$19="LMW",IF(AB27=FALSE,IF(AN27=0,0,IF(C27="Direct Support",AF27*(1-AI27),0)),0),0) -> 0 | BY27: =IF($AN$15=FALSE,(IF(C27=$AQ$16,AG27*AE27*(1-AI27)+(E27*AL27*(1-AI27)),0))*AP27,0) -> 0 | BZ27: =IF($AN$15=FALSE,(IF(C27=$AQ$16,AH27*AF27*(1-AI27)+(E27*AM27*(1-AI27)),0))*AP27,0) -> 0 | CA27: =IF($AN$15=FALSE,(IF(C27="Management",AE27*(1-AI27),0))*AP27,0) -> 0 | CB27: =IF($AN$15=FALSE,(IF(C27="Management",AF27*(1-AI27),0))*AP27,0) -> 0 | CC27: =IF($AN$15=TRUE,(IF(C27=$AQ$16,AG27*AE27*(1-AI27)+(E27*AL27*(1-AI27)),0))*AP27,0) -> 0 | CD27: =IF($AN$15=TRUE,(IF(C27=$AQ$16,AH27*AF27*(1-AI27)+(E27*AM27*(1-AI27)),0))*AP27,0) -> 0 | CE27: =IF($AN$15=TRUE,(IF(C27="Management",AE27*(1-AI27),0))*AP27,0) -> 0 | CF27: =IF($AN$15=TRUE,(IF(C27="Management",AF27*(1-AI27),0))*AP27,0) -> 0 | CG27: =(AG27*AE27+(E27*AL27))*AI27*$U$8 -> 0 | CH27: =(AH27*AF27+(E27*AM27))*AI27*$U$8 -> 0 | CI27: =CH27-CG27 -> 0 | CJ27: =AE27*AI27*$U$8 -> 0 | CK27: =AF27*AI27*$U$8 -> 0 | CL27: =IF($C27=CL$22,($AL27*(1-$AI27)*CL$23),0) -> 0 | CM27: 0 | CN27: 0 | CO27: 0 | CP27: 0 | CQ27: 0 | CR27: 0 | CS27: =(IF($C27=CL$22,($AL27*($AI27)*CL$23),0)+ IF($C27=CM$22,($AL27*($AI27)*CM$23),0)+ IF($C27=CN$22,($AL27*($AI27)*CN$23),0)+ IF($C27=CO$22,($AL27*($AI27)*CO$23),0)+ IF($C27=CP$22,($AL27*($AI27)*CP$23),0)+ IF($C27=CR$22,($AL27*($AI27)*CR$23),0)+ IF($C27=CQ$22,($AL27*($AI27)*CQ$23),0))*$U$8 -> 0 | CT27: =IF($C27=CT$22,($AM27*(1-$AI27)*CT$23),0) -> 0 | CU27: 0 | CV27: 0 | CW27: 0 | CX27: 0 | CY27: 0 | CZ27: 0 | DA27: =(IF($C27=CT$22,($AM27*($AI27)*CT$23),0)+ IF($C27=CU$22,($AM27*($AI27)*CU$23),0)+ IF($C27=CV$22,($AM27*($AI27)*CV$23),0)+ IF($C27=CW$22,($AM27*($AI27)*CW$23),0)+ IF($C27=CX$22,($AM27*($AI27)*CX$23),0)+ IF($C27=CZ$22,($AM27*($AI27)*CZ$23),0)+ IF($C27=CY$22,($AM27*($AI27)*CY$23),0))*$U$8 -> 0
A28: =A27+1 -> 2 | N28: =IF($X$19="Reg",TEXT(V28,"0.00"),X28) -> - | O28: =IF($X$19="Reg",TEXT(W28,"0.00"),Y28) -> - | P28: 0 | S28: =IF($X$19="Reg",Y28,TEXT(W28,"0.00")) -> 0 | T28: 0 | V28: - | W28: - | X28: 0 | Y28: 0 | AA28: TRUE | AB28: FALSE | AC28: =AF28-AE28 -> 0 | AD28: FALSE | AE28: 0 | AF28: 0 | AG28: 0 | AH28: 0 | AI28: 0 | AJ28: 0 | AK28: 0 | AL28: 0 | AM28: 0 | AN28: 1 | AO28: 0 | AP28: 0 | AQ28: 0 | AR28: 0 | AS28: 0 | AT28: 0 | AU28: 0 | AV28: 0 | AW28: 0 | AX28: 0 | AY28: 0 | AZ28: 0 | BA28: 0 | BB28: 0 | BC28: 0 | BD28: 0 | BE28: 0 | BF28: 0 | BG28: 0 | BH28: 0 | BI28: 0 | BJ28: 0 | BK28: 0 | BL28: 0 | BM28: 0 | BN28: 0 | BO28: 0 | BP28: 0 | BQ28: 0 | BR28: 0 | BS28: 0 | BT28: 0 | BU28: 0 | BV28: 0 | BW28: 0 | BX28: 0 | BY28: 0 | BZ28: 0 | CA28: 0 | CB28: 0 | CC28: 0 | CD28: 0 | CE28: 0 | CF28: 0 | CG28: 0 | CH28: 0 | CI28: =CH28-CG28 -> 0 | CJ28: 0 | CK28: 0 | CL28: 0 | CM28: 0 | CN28: 0 | CO28: 0 | CP28: 0 | CQ28: 0 | CR28: 0 | CS28: 0 | CT28: 0 | CU28: 0 | CV28: 0 | CW28: 0 | CX28: 0 | CY28: 0 | CZ28: 0 | DA28: 0
A29: 3 | N29: - | O29: - | P29: 0 | S29: 0 | T29: 0 | V29: - | W29: - | X29: 0 | Y29: 0 | AA29: TRUE | AB29: FALSE | AC29: =AF29-AE29 -> 0 | AD29: FALSE | AE29: 0 | AF29: 0 | AG29: 0 | AH29: 0 | AI29: =IF(C29="",0,IF(AND($X$19="LMW",C29="N/A"),0,IF(C29="Administrative",1,F29))) -> 0 | AJ29: 0 | AK29: 0 | AL29: 0 | AM29: 0 | AN29: 1 | AO29: 0 | AP29: 0 | AQ29: 0 | AR29: 0 | AS29: 0 | AT29: 0 | AU29: 0 | AV29: 0 | AW29: 0 | AX29: 0 | AY29: 0 | AZ29: 0 | BA29: 0 | BB29: 0 | BC29: 0 | BD29: 0 | BE29: 0 | BF29: 0 | BG29: 0 | BH29: 0 | BI29: 0 | BJ29: 0 | BK29: 0 | BL29: 0 | BM29: 0 | BN29: 0 | BO29: 0 | BP29: 0 | BQ29: 0 | BR29: 0 | BS29: 0 | BT29: 0 | BU29: 0 | BV29: 0 | BW29: 0 | BX29: 0 | BY29: 0 | BZ29: 0 | CA29: 0 | CB29: 0 | CC29: 0 | CD29: 0 | CE29: 0 | CF29: 0 | CG29: 0 | CH29: 0 | CI29: 0 | CJ29: 0 | CK29: 0 | CL29: 0 | CM29: 0 | CN29: 0 | CO29: 0 | CP29: 0 | CQ29: 0 | CR29: 0 | CS29: 0 | CT29: 0 | CU29: 0 | CV29: 0 | CW29: 0 | CX29: 0 | CY29: 0 | CZ29: 0 | DA29: 0
A30: 4 | N30: - | O30: - | P30: 0 | S30: 0 | T30: 0 | V30: - | W30: - | X30: 0 | Y30: 0 | AA30: TRUE | AB30: FALSE | AC30: 0 | AD30: FALSE | AE30: 0 | AF30: 0 | AG30: 0 | AH30: 0 | AI30: =IF(C30="",0,IF(AND($X$19="LMW",C30="N/A"),0,IF(C30="Administrative",1,F30))) -> 0 | AJ30: 0 | AK30: 0 | AL30: 0 | AM30: 0 | AN30: 1 | AO30: 0 | AP30: 0 | AQ30: 0 | AR30: 0 | AS30: 0 | AT30: 0 | AU30: 0 | AV30: 0 | AW30: 0 | AX30: 0 | AY30: 0 | AZ30: 0 | BA30: 0 | BB30: 0 | BC30: 0 | BD30: 0 | BE30: 0 | BF30: 0 | BG30: 0 | BH30: 0 | BI30: 0 | BJ30: 0 | BK30: 0 | BL30: 0 | BM30: 0 | BN30: 0 | BO30: 0 | BP30: 0 | BQ30: 0 | BR30: 0 | BS30: 0 | BT30: 0 | BU30: 0 | BV30: 0 | BW30: 0 | BX30: 0 | BY30: 0 | BZ30: 0 | CA30: 0 | CB30: 0 | CC30: 0 | CD30: 0 | CE30: 0 | CF30: 0 | CG30: 0 | CH30: 0 | CI30: 0 | CJ30: 0 | CK30: 0 | CL30: 0 | CM30: =IF($C30=CM$22,($AL30*(1-$AI30)*CM$23),0) -> 0 | CN30: 0 | CO30: 0 | CP30: 0 | CQ30: 0 | CR30: 0 | CS30: 0 | CT30: 0 | CU30: 0 | CV30: 0 | CW30: 0 | CX30: 0 | CY30: 0 | CZ30: 0 | DA30: 0
A31: 5 | N31: - | O31: - | P31: 0 | S31: 0 | T31: 0 | V31: - | W31: - | X31: 0 | Y31: 0 | AA31: TRUE | AB31: FALSE | AC31: 0 | AD31: FALSE | AE31: 0 | AF31: 0 | AG31: 0 | AH31: 0 | AI31: 0 | AJ31: 0 | AK31: 0 | AL31: 0 | AM31: 0 | AN31: 1 | AO31: 0 | AP31: 0 | AQ31: 0 | AR31: 0 | AS31: 0 | AT31: 0 | AU31: 0 | AV31: 0 | AW31: 0 | AX31: 0 | AY31: 0 | AZ31: 0 | BA31: 0 | BB31: 0 | BC31: 0 | BD31: 0 | BE31: 0 | BF31: 0 | BG31: 0 | BH31: 0 | BI31: 0 | BJ31: 0 | BK31: 0 | BL31: 0 | BM31: 0 | BN31: 0 | BO31: 0 | BP31: 0 | BQ31: 0 | BR31: 0 | BS31: 0 | BT31: 0 | BU31: 0 | BV31: 0 | BW31: 0 | BX31: 0 | BY31: 0 | BZ31: 0 | CA31: 0 | CB31: 0 | CC31: 0 | CD31: 0 | CE31: 0 | CF31: 0 | CG31: 0 | CH31: 0 | CI31: 0 | CJ31: 0 | CK31: 0 | CL31: 0 | CM31: 0 | CN31: 0 | CO31: 0 | CP31: 0 | CQ31: 0 | CR31: 0 | CS31: 0 | CT31: 0 | CU31: 0 | CV31: 0 | CW31: 0 | CX31: 0 | CY31: 0 | CZ31: 0 | DA31: 0
A32: 6 | N32: - | O32: - | P32: 0 | S32: 0 | T32: 0 | V32: - | W32: - | X32: 0 | Y32: 0 | AA32: TRUE | AB32: FALSE | AC32: 0 | AD32: FALSE | AE32: 0 | AF32: 0 | AG32: 0 | AH32: 0 | AI32: 0 | AJ32: 0 | AK32: 0 | AL32: 0 | AM32: 0 | AN32: 1 | AO32: 0 | AP32: 0 | AQ32: 0 | AR32: 0 | AS32: 0 | AT32: 0 | AU32: 0 | AV32: 0 | AW32: 0 | AX32: 0 | AY32: 0 | AZ32: 0 | BA32: 0 | BB32: 0 | BC32: 0 | BD32: 0 | BE32: 0 | BF32: 0 | BG32: 0 | BH32: 0 | BI32: 0 | BJ32: 0 | BK32: 0 | BL32: 0 | BM32: 0 | BN32: 0 | BO32: 0 | BP32: 0 | BQ32: 0 | BR32: 0 | BS32: 0 | BT32: 0 | BU32: 0 | BV32: 0 | BW32: 0 | BX32: 0 | BY32: 0 | BZ32: 0 | CA32: 0 | CB32: 0 | CC32: 0 | CD32: 0 | CE32: 0 | CF32: 0 | CG32: 0 | CH32: 0 | CI32: 0 | CJ32: 0 | CK32: 0 | CL32: 0 | CM32: 0 | CN32: 0 | CO32: 0 | CP32: 0 | CQ32: 0 | CR32: 0 | CS32: 0 | CT32: 0 | CU32: 0 | CV32: 0 | CW32: 0 | CX32: 0 | CY32: 0 | CZ32: 0 | DA32: 0
A33: 7 | N33: - | O33: - | P33: =IF($X$19="Reg",X33,TEXT(V33,"0.00")) -> 0 | S33: 0 | T33: 0 | V33: - | W33: - | X33: 0 | Y33: 0 | AA33: TRUE | AB33: FALSE | AC33: 0 | AD33: FALSE | AE33: 0 | AF33: 0 | AG33: 0 | AH33: 0 | AI33: 0 | AJ33: 0 | AK33: 0 | AL33: 0 | AM33: 0 | AN33: 1 | AO33: 0 | AP33: 0 | AQ33: 0 | AR33: 0 | AS33: 0 | AT33: 0 | AU33: 0 | AV33: 0 | AW33: 0 | AX33: 0 | AY33: 0 | AZ33: 0 | BA33: 0 | BB33: 0 | BC33: 0 | BD33: 0 | BE33: 0 | BF33: 0 | BG33: 0 | BH33: 0 | BI33: 0 | BJ33: 0 | BK33: 0 | BL33: 0 | BM33: 0 | BN33: 0 | BO33: 0 | BP33: 0 | BQ33: 0 | BR33: 0 | BS33: 0 | BT33: 0 | BU33: 0 | BV33: 0 | BW33: 0 | BX33: 0 | BY33: 0 | BZ33: 0 | CA33: 0 | CB33: 0 | CC33: 0 | CD33: 0 | CE33: 0 | CF33: 0 | CG33: 0 | CH33: 0 | CI33: 0 | CJ33: 0 | CK33: 0 | CL33: 0 | CM33: 0 | CN33: 0 | CO33: 0 | CP33: 0 | CQ33: 0 | CR33: 0 | CS33: 0 | CT33: 0 | CU33: 0 | CV33: 0 | CW33: 0 | CX33: 0 | CY33: 0 | CZ33: 0 | DA33: 0
A34: =A33+1 -> 8 | N34: - | O34: - | P34: 0 | S34: 0 | T34: 0 | V34: - | W34: - | X34: 0 | Y34: 0 | AA34: TRUE | AB34: FALSE | AC34: 0 | AD34: FALSE | AE34: 0 | AF34: 0 | AG34: 0 | AH34: 0 | AI34: 0 | AJ34: 0 | AK34: 0 | AL34: 0 | AM34: 0 | AN34: 1 | AO34: 0 | AP34: 0 | AQ34: 0 | AR34: 0 | AS34: 0 | AT34: 0 | AU34: 0 | AV34: 0 | AW34: 0 | AX34: 0 | AY34: 0 | AZ34: 0 | BA34: 0 | BB34: 0 | BC34: 0 | BD34: 0 | BE34: 0 | BF34: 0 | BG34: 0 | BH34: 0 | BI34: 0 | BJ34: 0 | BK34: 0 | BL34: 0 | BM34: 0 | BN34: 0 | BO34: 0 | BP34: 0 | BQ34: 0 | BR34: 0 | BS34: 0 | BT34: 0 | BU34: 0 | BV34: 0 | BW34: 0 | BX34: 0 | BY34: 0 | BZ34: 0 | CA34: 0 | CB34: 0 | CC34: 0 | CD34: 0 | CE34: 0 | CF34: 0 | CG34: 0 | CH34: 0 | CI34: 0 | CJ34: 0 | CK34: 0 | CL34: 0 | CM34: 0 | CN34: 0 | CO34: 0 | CP34: 0 | CQ34: 0 | CR34: 0 | CS34: 0 | CT34: 0 | CU34: 0 | CV34: 0 | CW34: 0 | CX34: 0 | CY34: 0 | CZ34: 0 | DA34: 0
A35: 9 | N35: - | O35: - | P35: 0 | S35: 0 | T35: 0 | V35: - | W35: - | X35: 0 | Y35: 0 | AA35: TRUE | AB35: FALSE | AC35: 0 | AD35: FALSE | AE35: 0 | AF35: 0 | AG35: 0 | AH35: 0 | AI35: 0 | AJ35: 0 | AK35: 0 | AL35: 0 | AM35: 0 | AN35: 1 | AO35: 0 | AP35: 0 | AQ35: 0 | AR35: 0 | AS35: 0 | AT35: 0 | AU35: 0 | AV35: 0 | AW35: 0 | AX35: 0 | AY35: 0 | AZ35: 0 | BA35: 0 | BB35: 0 | BC35: 0 | BD35: 0 | BE35: 0 | BF35: 0 | BG35: 0 | BH35: 0 | BI35: 0 | BJ35: 0 | BK35: 0 | BL35: 0 | BM35: 0 | BN35: 0 | BO35: 0 | BP35: 0 | BQ35: 0 | BR35: 0 | BS35: 0 | BT35: 0 | BU35: 0 | BV35: 0 | BW35: 0 | BX35: 0 | BY35: 0 | BZ35: 0 | CA35: 0 | CB35: 0 | CC35: 0 | CD35: 0 | CE35: 0 | CF35: 0 | CG35: 0 | CH35: 0 | CI35: 0 | CJ35: 0 | CK35: 0 | CL35: 0 | CM35: 0 | CN35: 0 | CO35: 0 | CP35: 0 | CQ35: 0 | CR35: 0 | CS35: 0 | CT35: 0 | CU35: 0 | CV35: 0 | CW35: 0 | CX35: 0 | CY35: 0 | CZ35: 0 | DA35: 0
A36: 10 | N36: - | O36: - | P36: 0 | S36: 0 | T36: 0 | V36: - | W36: - | X36: 0 | Y36: 0 | AA36: TRUE | AB36: FALSE | AC36: 0 | AD36: FALSE | AE36: 0 | AF36: 0 | AG36: 0 | AH36: 0 | AI36: 0 | AJ36: 0 | AK36: 0 | AL36: 0 | AM36: 0 | AN36: 1 | AO36: 0 | AP36: 0 | AQ36: 0 | AR36: 0 | AS36: 0 | AT36: 0 | AU36: 0 | AV36: 0 | AW36: 0 | AX36: 0 | AY36: 0 | AZ36: 0 | BA36: 0 | BB36: 0 | BC36: 0 | BD36: 0 | BE36: 0 | BF36: 0 | BG36: 0 | BH36: 0 | BI36: 0 | BJ36: 0 | BK36: 0 | BL36: 0 | BM36: 0 | BN36: 0 | BO36: 0 | BP36: 0 | BQ36: 0 | BR36: 0 | BS36: 0 | BT36: 0 | BU36: 0 | BV36: 0 | BW36: 0 | BX36: 0 | BY36: 0 | BZ36: 0 | CA36: 0 | CB36: 0 | CC36: 0 | CD36: 0 | CE36: 0 | CF36: 0 | CG36: 0 | CH36: 0 | CI36: 0 | CJ36: 0 | CK36: 0 | CL36: 0 | CM36: 0 | CN36: 0 | CO36: 0 | CP36: 0 | CQ36: 0 | CR36: 0 | CS36: 0 | CT36: 0 | CU36: 0 | CV36: 0 | CW36: 0 | CX36: 0 | CY36: 0 | CZ36: 0 | DA36: 0
A37: 11 | N37: - | O37: - | P37: 0 | S37: 0 | T37: 0 | V37: - | W37: - | X37: 0 | Y37: 0 | AA37: TRUE | AB37: FALSE | AC37: 0 | AD37: FALSE | AE37: 0 | AF37: 0 | AG37: 0 | AH37: 0 | AI37: 0 | AJ37: 0 | AK37: 0 | AL37: 0 | AM37: 0 | AN37: 1 | AO37: 0 | AP37: 0 | AQ37: 0 | AR37: =IF(AR$24=$AN37,($BJ37-$BI37)+($BN37-$BM37)+($AX37-$AW37)+($BB37-$BA37)+($BF37-$BE37),0) -> 0 | AS37: 0 | AT37: 0 | AU37: 0 | AV37: 0 | AW37: 0 | AX37: 0 | AY37: 0 | AZ37: 0 | BA37: 0 | BB37: 0 | BC37: 0 | BD37: 0 | BE37: 0 | BF37: 0 | BG37: 0 | BH37: 0 | BI37: 0 | BJ37: 0 | BK37: 0 | BL37: 0 | BM37: 0 | BN37: 0 | BO37: 0 | BP37: 0 | BQ37: 0 | BR37: 0 | BS37: 0 | BT37: 0 | BU37: 0 | BV37: 0 | BW37: 0 | BX37: 0 | BY37: 0 | BZ37: 0 | CA37: 0 | CB37: 0 | CC37: 0 | CD37: 0 | CE37: 0 | CF37: 0 | CG37: 0 | CH37: 0 | CI37: 0 | CJ37: 0 | CK37: 0 | CL37: =IF($C37=CL$22,($AL37*(1-$AI37)*CL$23),0) -> 0 | CM37: 0 | CN37: 0 | CO37: 0 | CP37: 0 | CQ37: 0 | CR37: 0 | CS37: 0 | CT37: =IF($C37=CT$22,($AM37*(1-$AI37)*CT$23),0) -> 0 | CU37: 0 | CV37: 0 | CW37: 0 | CX37: 0 | CY37: 0 | CZ37: 0 | DA37: 0
A38: 12 | N38: - | O38: - | P38: =IF($X$19="Reg",X38,TEXT(V38,"0.00")) -> 0 | S38: 0 | T38: 0 | V38: - | W38: - | X38: 0 | Y38: 0 | AA38: TRUE | AB38: FALSE | AC38: 0 | AD38: FALSE | AE38: 0 | AF38: 0 | AG38: 0 | AH38: 0 | AI38: 0 | AJ38: 0 | AK38: 0 | AL38: 0 | AM38: 0 | AN38: 1 | AO38: 0 | AP38: 0 | AQ38: 0 | AR38: 0 | AS38: 0 | AT38: 0 | AU38: 0 | AV38: 0 | AW38: 0 | AX38: 0 | AY38: 0 | AZ38: 0 | BA38: 0 | BB38: 0 | BC38: 0 | BD38: 0 | BE38: 0 | BF38: 0 | BG38: 0 | BH38: 0 | BI38: 0 | BJ38: 0 | BK38: 0 | BL38: 0 | BM38: 0 | BN38: 0 | BO38: 0 | BP38: 0 | BQ38: 0 | BR38: 0 | BS38: 0 | BT38: 0 | BU38: 0 | BV38: 0 | BW38: 0 | BX38: 0 | BY38: 0 | BZ38: 0 | CA38: 0 | CB38: 0 | CC38: 0 | CD38: 0 | CE38: 0 | CF38: 0 | CG38: 0 | CH38: 0 | CI38: 0 | CJ38: 0 | CK38: 0 | CL38: 0 | CM38: 0 | CN38: 0 | CO38: 0 | CP38: 0 | CQ38: 0 | CR38: 0 | CS38: 0 | CT38: 0 | CU38: 0 | CV38: 0 | CW38: 0 | CX38: 0 | CY38: 0 | CZ38: 0 | DA38: 0
A39: 13 | N39: - | O39: - | P39: 0 | S39: 0 | T39: 0 | V39: - | W39: - | X39: 0 | Y39: 0 | AA39: TRUE | AB39: FALSE | AC39: 0 | AD39: FALSE | AE39: 0 | AF39: 0 | AG39: 0 | AH39: 0 | AI39: 0 | AJ39: 0 | AK39: 0 | AL39: 0 | AM39: 0 | AN39: 1 | AO39: 0 | AP39: 0 | AQ39: 0 | AR39: 0 | AS39: 0 | AT39: 0 | AU39: 0 | AV39: 0 | AW39: 0 | AX39: 0 | AY39: 0 | AZ39: 0 | BA39: 0 | BB39: 0 | BC39: 0 | BD39: 0 | BE39: 0 | BF39: 0 | BG39: 0 | BH39: 0 | BI39: 0 | BJ39: 0 | BK39: 0 | BL39: 0 | BM39: 0 | BN39: 0 | BO39: 0 | BP39: 0 | BQ39: 0 | BR39: 0 | BS39: 0 | BT39: 0 | BU39: 0 | BV39: 0 | BW39: 0 | BX39: 0 | BY39: 0 | BZ39: 0 | CA39: 0 | CB39: 0 | CC39: 0 | CD39: 0 | CE39: 0 | CF39: 0 | CG39: 0 | CH39: 0 | CI39: 0 | CJ39: 0 | CK39: 0 | CL39: 0 | CM39: 0 | CN39: 0 | CO39: 0 | CP39: 0 | CQ39: 0 | CR39: 0 | CS39: 0 | CT39: 0 | CU39: 0 | CV39: 0 | CW39: 0 | CX39: 0 | CY39: 0 | CZ39: 0 | DA39: 0
A40: =A39+1 -> 14 | N40: - | O40: - | P40: 0 | S40: 0 | T40: 0 | V40: - | W40: - | X40: 0 | Y40: 0 | AA40: TRUE | AB40: FALSE | AC40: 0 | AD40: FALSE | AE40: 0 | AF40: 0 | AG40: 0 | AH40: 0 | AI40: 0 | AJ40: 0 | AK40: 0 | AL40: 0 | AM40: 0 | AN40: 1 | AO40: 0 | AP40: 0 | AQ40: 0 | AR40: 0 | AS40: 0 | AT40: 0 | AU40: 0 | AV40: 0 | AW40: 0 | AX40: 0 | AY40: 0 | AZ40: 0 | BA40: 0 | BB40: 0 | BC40: 0 | BD40: 0 | BE40: 0 | BF40: 0 | BG40: 0 | BH40: 0 | BI40: 0 | BJ40: 0 | BK40: 0 | BL40: 0 | BM40: 0 | BN40: 0 | BO40: 0 | BP40: 0 | BQ40: 0 | BR40: 0 | BS40: 0 | BT40: 0 | BU40: 0 | BV40: 0 | BW40: 0 | BX40: 0 | BY40: 0 | BZ40: 0 | CA40: 0 | CB40: 0 | CC40: 0 | CD40: 0 | CE40: 0 | CF40: 0 | CG40: 0 | CH40: 0 | CI40: 0 | CJ40: 0 | CK40: 0 | CL40: 0 | CM40: 0 | CN40: 0 | CO40: 0 | CP40: 0 | CQ40: 0 | CR40: 0 | CS40: 0 | CT40: 0 | CU40: 0 | CV40: 0 | CW40: 0 | CX40: 0 | CY40: 0 | CZ40: 0 | DA40: 0
A41: 15 | N41: - | O41: - | P41: 0 | S41: 0 | T41: 0 | V41: - | W41: - | X41: 0 | Y41: 0 | AA41: TRUE | AB41: FALSE | AC41: 0 | AD41: FALSE | AE41: 0 | AF41: 0 | AG41: 0 | AH41: 0 | AI41: 0 | AJ41: 0 | AK41: 0 | AL41: 0 | AM41: 0 | AN41: 1 | AO41: 0 | AP41: 0 | AQ41: 0 | AR41: 0 | AS41: 0 | AT41: 0 | AU41: 0 | AV41: 0 | AW41: 0 | AX41: 0 | AY41: 0 | AZ41: 0 | BA41: 0 | BB41: 0 | BC41: 0 | BD41: 0 | BE41: 0 | BF41: 0 | BG41: 0 | BH41: 0 | BI41: 0 | BJ41: 0 | BK41: 0 | BL41: 0 | BM41: 0 | BN41: 0 | BO41: 0 | BP41: 0 | BQ41: 0 | BR41: 0 | BS41: 0 | BT41: 0 | BU41: 0 | BV41: 0 | BW41: 0 | BX41: 0 | BY41: 0 | BZ41: 0 | CA41: 0 | CB41: 0 | CC41: 0 | CD41: 0 | CE41: 0 | CF41: 0 | CG41: 0 | CH41: 0 | CI41: 0 | CJ41: 0 | CK41: 0 | CL41: 0 | CM41: 0 | CN41: 0 | CO41: 0 | CP41: 0 | CQ41: 0 | CR41: 0 | CS41: 0 | CT41: 0 | CU41: 0 | CV41: 0 | CW41: 0 | CX41: 0 | CY41: 0 | CZ41: 0 | DA41: 0
A42: 16 | N42: - | O42: - | P42: 0 | S42: 0 | T42: 0 | V42: - | W42: - | X42: 0 | Y42: 0 | AA42: TRUE | AB42: FALSE | AC42: 0 | AD42: FALSE | AE42: 0 | AF42: 0 | AG42: 0 | AH42: 0 | AI42: 0 | AJ42: 0 | AK42: 0 | AL42: 0 | AM42: 0 | AN42: 1 | AO42: 0 | AP42: 0 | AQ42: 0 | AR42: 0 | AS42: 0 | AT42: 0 | AU42: 0 | AV42: 0 | AW42: 0 | AX42: 0 | AY42: 0 | AZ42: 0 | BA42: 0 | BB42: 0 | BC42: 0 | BD42: 0 | BE42: 0 | BF42: 0 | BG42: 0 | BH42: 0 | BI42: 0 | BJ42: 0 | BK42: 0 | BL42: 0 | BM42: 0 | BN42: 0 | BO42: 0 | BP42: 0 | BQ42: 0 | BR42: 0 | BS42: 0 | BT42: 0 | BU42: 0 | BV42: 0 | BW42: 0 | BX42: 0 | BY42: 0 | BZ42: 0 | CA42: 0 | CB42: 0 | CC42: 0 | CD42: 0 | CE42: 0 | CF42: 0 | CG42: 0 | CH42: 0 | CI42: 0 | CJ42: 0 | CK42: 0 | CL42: 0 | CM42: 0 | CN42: 0 | CO42: 0 | CP42: 0 | CQ42: 0 | CR42: 0 | CS42: 0 | CT42: 0 | CU42: 0 | CV42: 0 | CW42: 0 | CX42: 0 | CY42: 0 | CZ42: 0 | DA42: 0
A43: 17 | N43: - | O43: - | P43: 0 | S43: 0 | T43: 0 | V43: - | W43: - | X43: 0 | Y43: 0 | AA43: TRUE | AB43: FALSE | AC43: 0 | AD43: FALSE | AE43: 0 | AF43: 0 | AG43: 0 | AH43: 0 | AI43: 0 | AJ43: 0 | AK43: 0 | AL43: 0 | AM43: 0 | AN43: 1 | AO43: 0 | AP43: 0 | AQ43: 0 | AR43: 0 | AS43: 0 | AT43: 0 | AU43: 0 | AV43: 0 | AW43: 0 | AX43: 0 | AY43: 0 | AZ43: 0 | BA43: 0 | BB43: 0 | BC43: 0 | BD43: 0 | BE43: 0 | BF43: 0 | BG43: 0 | BH43: 0 | BI43: 0 | BJ43: 0 | BK43: 0 | BL43: 0 | BM43: 0 | BN43: 0 | BO43: 0 | BP43: 0 | BQ43: 0 | BR43: 0 | BS43: 0 | BT43: 0 | BU43: 0 | BV43: 0 | BW43: 0 | BX43: 0 | BY43: 0 | BZ43: 0 | CA43: 0 | CB43: 0 | CC43: 0 | CD43: 0 | CE43: 0 | CF43: 0 | CG43: 0 | CH43: 0 | CI43: 0 | CJ43: 0 | CK43: 0 | CL43: 0 | CM43: 0 | CN43: 0 | CO43: 0 | CP43: 0 | CQ43: 0 | CR43: 0 | CS43: 0 | CT43: 0 | CU43: 0 | CV43: 0 | CW43: 0 | CX43: 0 | CY43: 0 | CZ43: 0 | DA43: 0
A44: 18 | N44: - | O44: - | P44: 0 | S44: 0 | T44: 0 | V44: - | W44: - | X44: 0 | Y44: 0 | AA44: TRUE | AB44: FALSE | AC44: 0 | AD44: FALSE | AE44: 0 | AF44: 0 | AG44: 0 | AH44: 0 | AI44: 0 | AJ44: 0 | AK44: 0 | AL44: 0 | AM44: 0 | AN44: 1 | AO44: 0 | AP44: 0 | AQ44: 0 | AR44: 0 | AS44: 0 | AT44: 0 | AU44: 0 | AV44: 0 | AW44: 0 | AX44: 0 | AY44: 0 | AZ44: 0 | BA44: 0 | BB44: 0 | BC44: 0 | BD44: 0 | BE44: 0 | BF44: 0 | BG44: 0 | BH44: 0 | BI44: 0 | BJ44: 0 | BK44: 0 | BL44: 0 | BM44: 0 | BN44: 0 | BO44: 0 | BP44: 0 | BQ44: 0 | BR44: 0 | BS44: 0 | BT44: 0 | BU44: 0 | BV44: 0 | BW44: 0 | BX44: 0 | BY44: 0 | BZ44: 0 | CA44: 0 | CB44: 0 | CC44: 0 | CD44: 0 | CE44: 0 | CF44: 0 | CG44: 0 | CH44: 0 | CI44: 0 | CJ44: 0 | CK44: 0 | CL44: 0 | CM44: 0 | CN44: 0 | CO44: 0 | CP44: 0 | CQ44: 0 | CR44: 0 | CS44: 0 | CT44: 0 | CU44: 0 | CV44: 0 | CW44: 0 | CX44: 0 | CY44: 0 | CZ44: 0 | DA44: 0
A45: 19 | N45: - | O45: - | P45: 0 | S45: 0 | T45: 0 | V45: - | W45: - | X45: 0 | Y45: 0 | AA45: TRUE | AB45: FALSE | AC45: 0 | AD45: FALSE | AE45: 0 | AF45: 0 | AG45: 0 | AH45: 0 | AI45: 0 | AJ45: 0 | AK45: 0 | AL45: 0 | AM45: 0 | AN45: 1 | AO45: 0 | AP45: 0 | AQ45: 0 | AR45: 0 | AS45: 0 | AT45: 0 | AU45: 0 | AV45: 0 | AW45: 0 | AX45: 0 | AY45: 0 | AZ45: 0 | BA45: 0 | BB45: 0 | BC45: 0 | BD45: 0 | BE45: 0 | BF45: 0 | BG45: 0 | BH45: 0 | BI45: 0 | BJ45: 0 | BK45: 0 | BL45: 0 | BM45: 0 | BN45: 0 | BO45: 0 | BP45: 0 | BQ45: 0 | BR45: 0 | BS45: 0 | BT45: 0 | BU45: 0 | BV45: 0 | BW45: 0 | BX45: 0 | BY45: 0 | BZ45: 0 | CA45: 0 | CB45: 0 | CC45: 0 | CD45: 0 | CE45: 0 | CF45: 0 | CG45: 0 | CH45: 0 | CI45: 0 | CJ45: 0 | CK45: 0 | CL45: 0 | CM45: 0 | CN45: 0 | CO45: 0 | CP45: 0 | CQ45: 0 | CR45: 0 | CS45: 0 | CT45: 0 | CU45: 0 | CV45: 0 | CW45: 0 | CX45: 0 | CY45: 0 | CZ45: 0 | DA45: 0
A46: =A45+1 -> 20 | N46: - | O46: - | P46: 0 | S46: 0 | T46: 0 | V46: - | W46: - | X46: 0 | Y46: 0 | AA46: TRUE | AB46: FALSE | AC46: 0 | AD46: FALSE | AE46: 0 | AF46: 0 | AG46: 0 | AH46: 0 | AI46: 0 | AJ46: 0 | AK46: 0 | AL46: 0 | AM46: 0 | AN46: 1 | AO46: 0 | AP46: 0 | AQ46: 0 | AR46: 0 | AS46: 0 | AT46: 0 | AU46: 0 | AV46: 0 | AW46: 0 | AX46: 0 | AY46: 0 | AZ46: 0 | BA46: 0 | BB46: 0 | BC46: 0 | BD46: 0 | BE46: 0 | BF46: 0 | BG46: 0 | BH46: 0 | BI46: 0 | BJ46: 0 | BK46: 0 | BL46: 0 | BM46: 0 | BN46: 0 | BO46: 0 | BP46: 0 | BQ46: 0 | BR46: 0 | BS46: 0 | BT46: 0 | BU46: 0 | BV46: 0 | BW46: 0 | BX46: 0 | BY46: 0 | BZ46: 0 | CA46: 0 | CB46: 0 | CC46: 0 | CD46: 0 | CE46: 0 | CF46: 0 | CG46: 0 | CH46: 0 | CI46: 0 | CJ46: 0 | CK46: 0 | CL46: 0 | CM46: 0 | CN46: 0 | CO46: 0 | CP46: 0 | CQ46: 0 | CR46: 0 | CS46: 0 | CT46: 0 | CU46: 0 | CV46: 0 | CW46: 0 | CX46: 0 | CY46: 0 | CZ46: 0 | DA46: 0
A47: 21 | N47: =IF($X$19="Reg",TEXT(V47,"0.00"),X47) -> - | O47: =IF($X$19="Reg",TEXT(W47,"0.00"),Y47) -> - | P47: 0 | S47: =IF($X$19="Reg",Y47,TEXT(W47,"0.00")) -> 0 | T47: 0 | V47: - | W47: - | X47: =IF((Y47-D47)>0,Y47-D47,0) -> 0 | Y47: 0 | AA47: TRUE | AB47: FALSE | AC47: =AF47-AE47 -> 0 | AD47: FALSE | AE47: 0 | AF47: 0 | AG47: 0 | AH47: 0 | AI47: 0 | AJ47: 0 | AK47: 0 | AL47: 0 | AM47: 0 | AN47: 1 | AO47: 0 | AP47: 0 | AQ47: 0 | AR47: =IF(AR$24=$AN47,($BJ47-$BI47)+($BN47-$BM47)+($AX47-$AW47)+($BB47-$BA47)+($BF47-$BE47),0) -> 0 | AS47: 0 | AT47: 0 | AU47: 0 | AV47: 0 | AW47: 0 | AX47: 0 | AY47: 0 | AZ47: 0 | BA47: 0 | BB47: 0 | BC47: 0 | BD47: 0 | BE47: 0 | BF47: 0 | BG47: 0 | BH47: 0 | BI47: 0 | BJ47: 0 | BK47: 0 | BL47: 0 | BM47: 0 | BN47: 0 | BO47: 0 | BP47: 0 | BQ47: 0 | BR47: 0 | BS47: 0 | BT47: 0 | BU47: 0 | BV47: 0 | BW47: 0 | BX47: 0 | BY47: 0 | BZ47: 0 | CA47: 0 | CB47: 0 | CC47: 0 | CD47: 0 | CE47: 0 | CF47: 0 | CG47: 0 | CH47: 0 | CI47: 0 | CJ47: 0 | CK47: 0 | CL47: =IF($C47=CL$22,($AL47*(1-$AI47)*CL$23),0) -> 0 | CM47: 0 | CN47: 0 | CO47: 0 | CP47: 0 | CQ47: 0 | CR47: 0 | CS47: 0 | CT47: =IF($C47=CT$22,($AM47*(1-$AI47)*CT$23),0) -> 0 | CU47: 0 | CV47: 0 | CW47: 0 | CX47: 0 | CY47: 0 | CZ47: 0 | DA47: 0
A48: 22 | N48: - | O48: - | P48: 0 | S48: 0 | T48: 0 | V48: - | W48: - | X48: 0 | Y48: 0 | AA48: TRUE | AB48: FALSE | AC48: 0 | AD48: FALSE | AE48: 0 | AF48: 0 | AG48: 0 | AH48: 0 | AI48: 0 | AJ48: 0 | AK48: 0 | AL48: 0 | AM48: 0 | AN48: 1 | AO48: 0 | AP48: 0 | AQ48: 0 | AR48: 0 | AS48: 0 | AT48: 0 | AU48: 0 | AV48: 0 | AW48: 0 | AX48: 0 | AY48: 0 | AZ48: 0 | BA48: 0 | BB48: 0 | BC48: 0 | BD48: 0 | BE48: 0 | BF48: 0 | BG48: 0 | BH48: 0 | BI48: 0 | BJ48: 0 | BK48: 0 | BL48: 0 | BM48: 0 | BN48: 0 | BO48: 0 | BP48: 0 | BQ48: 0 | BR48: 0 | BS48: 0 | BT48: 0 | BU48: 0 | BV48: 0 | BW48: 0 | BX48: 0 | BY48: 0 | BZ48: 0 | CA48: 0 | CB48: 0 | CC48: 0 | CD48: 0 | CE48: 0 | CF48: 0 | CG48: 0 | CH48: 0 | CI48: 0 | CJ48: 0 | CK48: 0 | CL48: 0 | CM48: 0 | CN48: 0 | CO48: 0 | CP48: 0 | CQ48: 0 | CR48: 0 | CS48: 0 | CT48: 0 | CU48: 0 | CV48: 0 | CW48: 0 | CX48: 0 | CY48: 0 | CZ48: 0 | DA48: 0
A49: 23 | N49: =IF($X$19="Reg",TEXT(V49,"0.00"),X49) -> - | O49: =IF($X$19="Reg",TEXT(W49,"0.00"),Y49) -> - | P49: 0 | S49: =IF($X$19="Reg",Y49,TEXT(W49,"0.00")) -> 0 | T49: 0 | V49: - | W49: - | X49: =IF((Y49-D49)>0,Y49-D49,0) -> 0 | Y49: 0 | AA49: TRUE | AB49: FALSE | AC49: =AF49-AE49 -> 0 | AD49: FALSE | AE49: 0 | AF49: 0 | AG49: 0 | AH49: 0 | AI49: 0 | AJ49: 0 | AK49: 0 | AL49: 0 | AM49: 0 | AN49: 1 | AO49: 0 | AP49: 0 | AQ49: 0 | AR49: 0 | AS49: 0 | AT49: 0 | AU49: 0 | AV49: 0 | AW49: 0 | AX49: 0 | AY49: 0 | AZ49: 0 | BA49: 0 | BB49: 0 | BC49: 0 | BD49: 0 | BE49: 0 | BF49: 0 | BG49: 0 | BH49: 0 | BI49: 0 | BJ49: 0 | BK49: 0 | BL49: 0 | BM49: 0 | BN49: 0 | BO49: 0 | BP49: 0 | BQ49: 0 | BR49: 0 | BS49: 0 | BT49: 0 | BU49: 0 | BV49: 0 | BW49: 0 | BX49: 0 | BY49: 0 | BZ49: 0 | CA49: 0 | CB49: 0 | CC49: 0 | CD49: 0 | CE49: 0 | CF49: 0 | CG49: 0 | CH49: 0 | CI49: 0 | CJ49: 0 | CK49: 0 | CL49: 0 | CM49: 0 | CN49: 0 | CO49: 0 | CP49: 0 | CQ49: 0 | CR49: 0 | CS49: 0 | CT49: 0 | CU49: 0 | CV49: 0 | CW49: 0 | CX49: 0 | CY49: 0 | CZ49: 0 | DA49: 0
A50: 24 | N50: - | O50: - | P50: 0 | S50: 0 | T50: 0 | V50: - | W50: - | X50: 0 | Y50: 0 | AA50: TRUE | AB50: FALSE | AC50: 0 | AD50: FALSE | AE50: 0 | AF50: 0 | AG50: 0 | AH50: 0 | AI50: 0 | AJ50: 0 | AK50: 0 | AL50: 0 | AM50: 0 | AN50: 1 | AO50: 0 | AP50: 0 | AQ50: 0 | AR50: 0 | AS50: 0 | AT50: 0 | AU50: 0 | AV50: 0 | AW50: 0 | AX50: 0 | AY50: 0 | AZ50: 0 | BA50: 0 | BB50: 0 | BC50: 0 | BD50: 0 | BE50: 0 | BF50: 0 | BG50: 0 | BH50: 0 | BI50: 0 | BJ50: 0 | BK50: 0 | BL50: 0 | BM50: 0 | BN50: 0 | BO50: 0 | BP50: 0 | BQ50: 0 | BR50: 0 | BS50: 0 | BT50: 0 | BU50: 0 | BV50: 0 | BW50: 0 | BX50: 0 | BY50: 0 | BZ50: 0 | CA50: 0 | CB50: 0 | CC50: 0 | CD50: 0 | CE50: 0 | CF50: 0 | CG50: 0 | CH50: 0 | CI50: 0 | CJ50: 0 | CK50: 0 | CL50: 0 | CM50: 0 | CN50: 0 | CO50: 0 | CP50: 0 | CQ50: 0 | CR50: 0 | CS50: 0 | CT50: 0 | CU50: 0 | CV50: 0 | CW50: 0 | CX50: 0 | CY50: 0 | CZ50: 0 | DA50: 0
A51: 25 | N51: =IF($X$19="Reg",TEXT(V51,"0.00"),X51) -> - | O51: =IF($X$19="Reg",TEXT(W51,"0.00"),Y51) -> - | P51: 0 | S51: =IF($X$19="Reg",Y51,TEXT(W51,"0.00")) -> 0 | T51: 0 | V51: - | W51: - | X51: =IF((Y51-D51)>0,Y51-D51,0) -> 0 | Y51: 0 | AA51: TRUE | AB51: FALSE | AC51: =AF51-AE51 -> 0 | AD51: FALSE | AE51: 0 | AF51: 0 | AG51: 0 | AH51: 0 | AI51: 0 | AJ51: 0 | AK51: 0 | AL51: 0 | AM51: 0 | AN51: 1 | AO51: 0 | AP51: 0 | AQ51: 0 | AR51: 0 | AS51: 0 | AT51: 0 | AU51: 0 | AV51: 0 | AW51: 0 | AX51: 0 | AY51: 0 | AZ51: 0 | BA51: 0 | BB51: 0 | BC51: 0 | BD51: 0 | BE51: 0 | BF51: 0 | BG51: 0 | BH51: 0 | BI51: 0 | BJ51: 0 | BK51: 0 | BL51: 0 | BM51: 0 | BN51: 0 | BO51: 0 | BP51: 0 | BQ51: 0 | BR51: 0 | BS51: 0 | BT51: 0 | BU51: 0 | BV51: 0 | BW51: 0 | BX51: 0 | BY51: 0 | BZ51: 0 | CA51: 0 | CB51: 0 | CC51: 0 | CD51: 0 | CE51: 0 | CF51: 0 | CG51: 0 | CH51: 0 | CI51: 0 | CJ51: 0 | CK51: 0 | CL51: 0 | CM51: 0 | CN51: 0 | CO51: 0 | CP51: 0 | CQ51: 0 | CR51: 0 | CS51: 0 | CT51: 0 | CU51: 0 | CV51: 0 | CW51: 0 | CX51: 0 | CY51: 0 | CZ51: 0 | DA51: 0
A52: 26 | N52: - | O52: - | P52: 0 | S52: 0 | T52: 0 | V52: - | W52: - | X52: 0 | Y52: 0 | AA52: TRUE | AB52: FALSE | AC52: 0 | AD52: FALSE | AE52: 0 | AF52: 0 | AG52: 0 | AH52: 0 | AI52: 0 | AJ52: 0 | AK52: 0 | AL52: 0 | AM52: 0 | AN52: 1 | AO52: 0 | AP52: 0 | AQ52: 0 | AR52: 0 | AS52: 0 | AT52: 0 | AU52: 0 | AV52: 0 | AW52: 0 | AX52: 0 | AY52: 0 | AZ52: 0 | BA52: 0 | BB52: 0 | BC52: 0 | BD52: 0 | BE52: 0 | BF52: 0 | BG52: 0 | BH52: 0 | BI52: 0 | BJ52: 0 | BK52: 0 | BL52: 0 | BM52: 0 | BN52: 0 | BO52: 0 | BP52: 0 | BQ52: 0 | BR52: 0 | BS52: 0 | BT52: 0 | BU52: 0 | BV52: 0 | BW52: 0 | BX52: 0 | BY52: 0 | BZ52: 0 | CA52: 0 | CB52: 0 | CC52: 0 | CD52: 0 | CE52: 0 | CF52: 0 | CG52: 0 | CH52: 0 | CI52: 0 | CJ52: 0 | CK52: 0 | CL52: 0 | CM52: 0 | CN52: 0 | CO52: 0 | CP52: 0 | CQ52: 0 | CR52: 0 | CS52: 0 | CT52: 0 | CU52: 0 | CV52: 0 | CW52: 0 | CX52: 0 | CY52: 0 | CZ52: 0 | DA52: 0
A53: 27 | N53: =IF($X$19="Reg",TEXT(V53,"0.00"),X53) -> - | O53: =IF($X$19="Reg",TEXT(W53,"0.00"),Y53) -> - | P53: 0 | S53: =IF($X$19="Reg",Y53,TEXT(W53,"0.00")) -> 0 | T53: 0 | V53: - | W53: - | X53: =IF((Y53-D53)>0,Y53-D53,0) -> 0 | Y53: 0 | AA53: TRUE | AB53: FALSE | AC53: =AF53-AE53 -> 0 | AD53: FALSE | AE53: 0 | AF53: 0 | AG53: 0 | AH53: 0 | AI53: 0 | AJ53: 0 | AK53: 0 | AL53: 0 | AM53: 0 | AN53: 1 | AO53: 0 | AP53: 0 | AQ53: 0 | AR53: 0 | AS53: 0 | AT53: 0 | AU53: 0 | AV53: 0 | AW53: 0 | AX53: 0 | AY53: 0 | AZ53: 0 | BA53: 0 | BB53: 0 | BC53: 0 | BD53: 0 | BE53: 0 | BF53: 0 | BG53: 0 | BH53: 0 | BI53: 0 | BJ53: 0 | BK53: 0 | BL53: 0 | BM53: 0 | BN53: 0 | BO53: 0 | BP53: 0 | BQ53: 0 | BR53: 0 | BS53: 0 | BT53: 0 | BU53: 0 | BV53: 0 | BW53: 0 | BX53: 0 | BY53: 0 | BZ53: 0 | CA53: 0 | CB53: 0 | CC53: 0 | CD53: 0 | CE53: 0 | CF53: 0 | CG53: 0 | CH53: 0 | CI53: 0 | CJ53: 0 | CK53: 0 | CL53: 0 | CM53: 0 | CN53: 0 | CO53: 0 | CP53: 0 | CQ53: 0 | CR53: 0 | CS53: 0 | CT53: 0 | CU53: 0 | CV53: 0 | CW53: 0 | CX53: 0 | CY53: 0 | CZ53: 0 | DA53: 0
A54: 28 | N54: - | O54: - | P54: 0 | S54: 0 | T54: 0 | V54: - | W54: - | X54: 0 | Y54: 0 | AA54: TRUE | AB54: FALSE | AC54: 0 | AD54: FALSE | AE54: 0 | AF54: 0 | AG54: 0 | AH54: 0 | AI54: 0 | AJ54: 0 | AK54: 0 | AL54: 0 | AM54: 0 | AN54: 1 | AO54: 0 | AP54: 0 | AQ54: 0 | AR54: 0 | AS54: 0 | AT54: 0 | AU54: 0 | AV54: 0 | AW54: 0 | AX54: 0 | AY54: 0 | AZ54: 0 | BA54: 0 | BB54: 0 | BC54: 0 | BD54: 0 | BE54: 0 | BF54: 0 | BG54: 0 | BH54: 0 | BI54: 0 | BJ54: 0 | BK54: 0 | BL54: 0 | BM54: 0 | BN54: 0 | BO54: 0 | BP54: 0 | BQ54: 0 | BR54: 0 | BS54: 0 | BT54: 0 | BU54: 0 | BV54: 0 | BW54: 0 | BX54: 0 | BY54: 0 | BZ54: 0 | CA54: 0 | CB54: 0 | CC54: 0 | CD54: 0 | CE54: 0 | CF54: 0 | CG54: 0 | CH54: 0 | CI54: 0 | CJ54: 0 | CK54: 0 | CL54: 0 | CM54: 0 | CN54: 0 | CO54: 0 | CP54: 0 | CQ54: 0 | CR54: 0 | CS54: 0 | CT54: 0 | CU54: 0 | CV54: 0 | CW54: 0 | CX54: 0 | CY54: 0 | CZ54: 0 | DA54: 0
A55: 29 | N55: =IF($X$19="Reg",TEXT(V55,"0.00"),X55) -> - | O55: =IF($X$19="Reg",TEXT(W55,"0.00"),Y55) -> - | P55: 0 | S55: =IF($X$19="Reg",Y55,TEXT(W55,"0.00")) -> 0 | T55: 0 | V55: - | W55: - | X55: =IF((Y55-D55)>0,Y55-D55,0) -> 0 | Y55: 0 | AA55: TRUE | AB55: FALSE | AC55: =AF55-AE55 -> 0 | AD55: FALSE | AE55: 0 | AF55: 0 | AG55: 0 | AH55: 0 | AI55: 0 | AJ55: 0 | AK55: 0 | AL55: 0 | AM55: 0 | AN55: 1 | AO55: 0 | AP55: 0 | AQ55: 0 | AR55: 0 | AS55: 0 | AT55: 0 | AU55: 0 | AV55: 0 | AW55: 0 | AX55: 0 | AY55: 0 | AZ55: 0 | BA55: 0 | BB55: 0 | BC55: 0 | BD55: 0 | BE55: 0 | BF55: 0 | BG55: 0 | BH55: 0 | BI55: 0 | BJ55: 0 | BK55: 0 | BL55: 0 | BM55: 0 | BN55: 0 | BO55: 0 | BP55: 0 | BQ55: 0 | BR55: 0 | BS55: 0 | BT55: 0 | BU55: 0 | BV55: 0 | BW55: 0 | BX55: 0 | BY55: 0 | BZ55: 0 | CA55: 0 | CB55: 0 | CC55: 0 | CD55: 0 | CE55: 0 | CF55: 0 | CG55: 0 | CH55: 0 | CI55: 0 | CJ55: 0 | CK55: 0 | CL55: 0 | CM55: 0 | CN55: 0 | CO55: 0 | CP55: 0 | CQ55: 0 | CR55: 0 | CS55: 0 | CT55: 0 | CU55: 0 | CV55: 0 | CW55: 0 | CX55: 0 | CY55: 0 | CZ55: 0 | DA55: 0
A56: =A55+1 -> 30 | N56: - | O56: - | P56: =IF($X$19="Reg",X56,TEXT(V56,"0.00")) -> 0 | S56: 0 | T56: =IF(AND(D56="",E56=""),0,IF(E56="",IF(D56<AH56,AH56,D56),AQ56)) -> 0 | U56: =IF(B56="","",IF(AA56=FALSE,"Yes","No")) ->  | V56: =IFERROR(IF(AE56=0,"-",IF(C56=$AQ$16,(((AE56*AP56))*(1-AI56)+(AE56*AI56*$U$8))/(2080/12*$W$22),((AE56)*(1-AI56)+(AE56*AI56*$U$8))/(2080/12*$W$22))),"-") -> - | W56: =IFERROR(IF(AF56=0,"-",IF(C56=$AQ$16,(((AF56*AP56))*(1-AI56)+(AF56*AI56*$U$8))/(2080/12*$W$22),((AF56)*(1-AI56)+(AF56*AI56*$U$8))/(2080/12*$W$22))),"-") -> - | X56: 0 | Y56: =IF(AND(D56="",E56=""),0,IF(E56="",IF(D56<AH56,AH56,0),0)) -> 0 | AA56: TRUE | AB56: =IF(AND($X$19="LMW",N56>0),TRUE,FALSE) -> FALSE | AC56: 0 | AD56: =IF(E56>0,TRUE,FALSE) -> FALSE | AE56: =IF(AD56=TRUE,(2080/12*$W$22*AL56),G56) -> 0 | AF56: =IF($X$19="LMW",AE56,IF(AD56=TRUE,(2080/12*$W$22*AM56),H56)) -> 0 | AG56: =IF(AD56=TRUE,0,D56) -> 0 | AH56: 0 | AI56: =IF(C56="",0,IF(AND($X$19="LMW",C56="N/A"),0,IF(C56="Administrative",1,F56))) -> 0 | AJ56: =AE56*(1-AI56) -> 0 | AK56: =AF56*(1-AI56) -> 0 | AL56: =IF(AD56=TRUE,G56,IFERROR((G56/(2080/12))/$W$22,0)) -> 0 | AM56: =IF($X$19="LMW",AL56,IF(AD56=TRUE,H56,IFERROR((H56/(2080/12))/$W$22,0))) -> 0 | AN56: =IFERROR(IF($AN$15=TRUE,(IF(K56="",0,VLOOKUP(K56,$AN$8:$AO$12,2,FALSE))),1),0) -> 1 | AO56: =IFERROR(L56/M56,0) -> 0 | AP56: =IFERROR(IF((L56/M56)>1,1,(L56/M56)),0) -> 0 | AQ56: =E56/$W$22/(2080/12) -> 0 | AR56: 0 | AS56: 0 | AT56: 0 | AU56: 0 | AV56: 0 | AW56: =IF($X$19="LMW",0,IF(AN56=0,0,IF(C56=$AQ$18,AG56*AE56*(1-AI56)+(E56*AL56*(1-AI56)),0))) -> 0 | AX56: =IF($X$19="LMW",0,IF(AN56=0,0,IF(C56=$AQ$18,AH56*AF56*(1-AI56)+(E56*AM56*(1-AI56)),0))) -> 0 | AY56: =IF($X$19="LMW",0,IF(AN56=0,0,IF(C56=$AQ$18,AE56*(1-AI56),0))) -> 0 | AZ56: =IF($X$19="LMW",0,IF(AN56=0,0,IF(C56=$AQ$18,AF56*(1-AI56),0))) -> 0 | BA56: =IF($X$19="LMW",0,IF(AN56=0,0,IF(C56=$AQ$19,AG56*AE56*(1-AI56)+(E56*AL56*(1-AI56)),0))) -> 0 | BB56: =IF($X$19="LMW",0,IF(AN56=0,0,IF(C56=$AQ$19,AH56*AF56*(1-AI56)+(E56*AM56*(1-AI56)),0))) -> 0 | BC56: =IF($X$19="LMW",0,IF(AN56=0,0,IF(C56=$AQ$19,AE56*(1-AI56),0))) -> 0 | BD56: =IF($X$19="LMW",0,IF(AN56=0,0,IF(C56=$AQ$19,AF56*(1-AI56),0))) -> 0 | BE56: =IF($X$19="LMW",0,IF(AN56=0,0,IF(C56=$AQ$20,AG56*AE56*(1-AI56)+(E56*AL56*(1-AI56)),0))) -> 0 | BF56: =IF($X$19="LMW",0,IF(AN56=0,0,IF(C56=$AQ$20,AH56*AF56*(1-AI56)+(E56*AM56*(1-AI56)),0))) -> 0 | BG56: =IF($X$19="LMW",0,IF(AN56=0,0,IF(C56=$AQ$20,AE56*(1-AI56),0))) -> 0 | BH56: =IF($X$19="LMW",0,IF(AN56=0,0,IF(C56=$AQ$20,AF56*(1-AI56),0))) -> 0 | BI56: =IF($X$19="LMW",0,IF(AN56=0,0,IF(C56=$AQ$21,AG56*AE56*(1-AI56)+(E56*AL56*(1-AI56)),0))) -> 0 | BJ56: =IF($X$19="LMW",0,IF(AN56=0,0,IF(C56=$AQ$21,AH56*AF56*(1-AI56)+(E56*AM56*(1-AI56)),0))) -> 0 | BK56: =IF($X$19="LMW",0,IF(AN56=0,0,IF(C56=$AQ$21,AE56*(1-AI56),0))) -> 0 | BL56: =IF($X$19="LMW",0,IF(AN56=0,0,IF(C56=$AQ$21,AF56*(1-AI56),0))) -> 0 | BM56: =IF($X$19="Reg",IF(AN56=0,0,IF(C56="Direct Support",AG56*AE56*(1-AI56)+(E56*AL56*(1-AI56)),0)),0) -> 0 | BN56: =IF($X$19="Reg",IF(AN56=0,0,IF(C56="Direct Support",T56*AF56*(1-AI56),0)),0) -> 0 | BO56: =IF($X$19="Reg",IF(AN56=0,0,IF(C56="Direct Support",AE56*(1-AI56),0)),0) -> 0 | BP56: =IF($X$19="Reg",IF(AN56=0,0,IF(C56="Direct Support",AF56*(1-AI56),0)),0) -> 0 | BQ56: =IF($X$19="LMW",IF(AB56=TRUE,IF(AN56=0,0,IF(C56="Direct Support",AG56*AE56*(1-AI56)+(E56*AL56*(1-AI56)),0)),0),0) -> 0 | BR56: =IF($X$19="LMW",IF(AB56=TRUE,IF(AN56=0,0,IF(C56="Direct Support",T56*AF56*(1-AI56)+(E56*AM56*(1-AI56)),0)),0),0) -> 0 | BS56: =IF($X$19="LMW",IF(AB56=TRUE,IF(AN56=0,0,IF(C56="Direct Support",AE56*(1-AI56),0)),0),0) -> 0 | BT56: =IF($X$19="LMW",IF(AB56=TRUE,IF(AN56=0,0,IF(C56="Direct Support",AF56*(1-AI56),0)),0),0) -> 0 | BU56: =IF($X$19="LMW",IF(AB56=FALSE,IF(AN56=0,0,IF(C56="Direct Support",AG56*AE56*(1-AI56)+(E56*AL56*(1-AI56)),0)),0),0) -> 0 | BV56: =IF($X$19="LMW",IF(AB56=FALSE,IF(AN56=0,0,IF(C56="Direct Support",T56*AF56*(1-AI56)+(E56*AM56*(1-AI56)),0)),0),0) -> 0 | BW56: =IF($X$19="LMW",IF(AB56=FALSE,IF(AN56=0,0,IF(C56="Direct Support",AE56*(1-AI56),0)),0),0) -> 0 | BX56: =IF($X$19="LMW",IF(AB56=FALSE,IF(AN56=0,0,IF(C56="Direct Support",AF56*(1-AI56),0)),0),0) -> 0 | BY56: 0 | BZ56: 0 | CA56: 0 | CB56: 0 | CC56: 0 | CD56: 0 | CE56: 0 | CF56: 0 | CG56: =(AG56*AE56+(E56*AL56))*AI56*$U$8 -> 0 | CH56: =(AH56*AF56+(E56*AM56))*AI56*$U$8 -> 0 | CI56: =CH56-CG56 -> 0 | CJ56: =AE56*AI56*$U$8 -> 0 | CK56: =AF56*AI56*$U$8 -> 0 | CL56: 0 | CM56: 0 | CN56: 0 | CO56: 0 | CP56: 0 | CQ56: 0 | CR56: 0 | CS56: =(IF($C56=CL$22,($AL56*($AI56)*CL$23),0)+ IF($C56=CM$22,($AL56*($AI56)*CM$23),0)+ IF($C56=CN$22,($AL56*($AI56)*CN$23),0)+ IF($C56=CO$22,($AL56*($AI56)*CO$23),0)+ IF($C56=CP$22,($AL56*($AI56)*CP$23),0)+ IF($C56=CR$22,($AL56*($AI56)*CR$23),0)+ IF($C56=CQ$22,($AL56*($AI56)*CQ$23),0))*$U$8 -> 0 | CT56: 0 | CU56: 0 | CV56: 0 | CW56: 0 | CX56: 0 | CY56: 0 | CZ56: 0 | DA56: =(IF($C56=CT$22,($AM56*($AI56)*CT$23),0)+ IF($C56=CU$22,($AM56*($AI56)*CU$23),0)+ IF($C56=CV$22,($AM56*($AI56)*CV$23),0)+ IF($C56=CW$22,($AM56*($AI56)*CW$23),0)+ IF($C56=CX$22,($AM56*($AI56)*CX$23),0)+ IF($C56=CZ$22,($AM56*($AI56)*CZ$23),0)+ IF($C56=CY$22,($AM56*($AI56)*CY$23),0))*$U$8 -> 0
A57: 31 | N57: =IF($X$19="Reg",TEXT(V57,"0.00"),X57) -> - | O57: =IF($X$19="Reg",TEXT(W57,"0.00"),Y57) -> - | P57: 0 | S57: =IF($X$19="Reg",Y57,TEXT(W57,"0.00")) -> 0 | T57: 0 | V57: - | W57: - | X57: =IF((Y57-D57)>0,Y57-D57,0) -> 0 | Y57: 0 | AA57: TRUE | AB57: FALSE | AC57: =AF57-AE57 -> 0 | AD57: FALSE | AE57: 0 | AF57: 0 | AG57: 0 | AH57: 0 | AI57: 0 | AJ57: 0 | AK57: 0 | AL57: 0 | AM57: 0 | AN57: 1 | AO57: 0 | AP57: 0 | AQ57: 0 | AR57: 0 | AS57: 0 | AT57: 0 | AU57: 0 | AV57: 0 | AW57: 0 | AX57: 0 | AY57: 0 | AZ57: 0 | BA57: 0 | BB57: 0 | BC57: 0 | BD57: 0 | BE57: 0 | BF57: 0 | BG57: 0 | BH57: 0 | BI57: 0 | BJ57: 0 | BK57: 0 | BL57: 0 | BM57: 0 | BN57: 0 | BO57: 0 | BP57: 0 | BQ57: 0 | BR57: 0 | BS57: 0 | BT57: 0 | BU57: 0 | BV57: 0 | BW57: 0 | BX57: 0 | BY57: 0 | BZ57: 0 | CA57: 0 | CB57: 0 | CC57: 0 | CD57: 0 | CE57: 0 | CF57: 0 | CG57: 0 | CH57: 0 | CI57: 0 | CJ57: 0 | CK57: 0 | CL57: 0 | CM57: 0 | CN57: 0 | CO57: 0 | CP57: 0 | CQ57: 0 | CR57: 0 | CS57: 0 | CT57: 0 | CU57: 0 | CV57: 0 | CW57: 0 | CX57: 0 | CY57: 0 | CZ57: 0 | DA57: 0
A58: 32 | N58: - | O58: - | P58: =IF($X$19="Reg",X58,TEXT(V58,"0.00")) -> 0 | S58: 0 | T58: =IF(AND(D58="",E58=""),0,IF(E58="",IF(D58<AH58,AH58,D58),AQ58)) -> 0 | U58: =IF(B58="","",IF(AA58=FALSE,"Yes","No")) ->  | V58: =IFERROR(IF(AE58=0,"-",IF(C58=$AQ$16,(((AE58*AP58))*(1-AI58)+(AE58*AI58*$U$8))/(2080/12*$W$22),((AE58)*(1-AI58)+(AE58*AI58*$U$8))/(2080/12*$W$22))),"-") -> - | W58: =IFERROR(IF(AF58=0,"-",IF(C58=$AQ$16,(((AF58*AP58))*(1-AI58)+(AF58*AI58*$U$8))/(2080/12*$W$22),((AF58)*(1-AI58)+(AF58*AI58*$U$8))/(2080/12*$W$22))),"-") -> - | X58: 0 | Y58: =IF(AND(D58="",E58=""),0,IF(E58="",IF(D58<AH58,AH58,0),0)) -> 0 | AA58: TRUE | AB58: =IF(AND($X$19="LMW",N58>0),TRUE,FALSE) -> FALSE | AC58: 0 | AD58: =IF(E58>0,TRUE,FALSE) -> FALSE | AE58: =IF(AD58=TRUE,(2080/12*$W$22*AL58),G58) -> 0 | AF58: =IF($X$19="LMW",AE58,IF(AD58=TRUE,(2080/12*$W$22*AM58),H58)) -> 0 | AG58: =IF(AD58=TRUE,0,D58) -> 0 | AH58: 0 | AI58: =IF(C58="",0,IF(AND($X$19="LMW",C58="N/A"),0,IF(C58="Administrative",1,F58))) -> 0 | AJ58: =AE58*(1-AI58) -> 0 | AK58: =AF58*(1-AI58) -> 0 | AL58: =IF(AD58=TRUE,G58,IFERROR((G58/(2080/12))/$W$22,0)) -> 0 | AM58: =IF($X$19="LMW",AL58,IF(AD58=TRUE,H58,IFERROR((H58/(2080/12))/$W$22,0))) -> 0 | AN58: =IFERROR(IF($AN$15=TRUE,(IF(K58="",0,VLOOKUP(K58,$AN$8:$AO$12,2,FALSE))),1),0) -> 1 | AO58: =IFERROR(L58/M58,0) -> 0 | AP58: =IFERROR(IF((L58/M58)>1,1,(L58/M58)),0) -> 0 | AQ58: =E58/$W$22/(2080/12) -> 0 | AR58: 0 | AS58: 0 | AT58: 0 | AU58: 0 | AV58: 0 | AW58: =IF($X$19="LMW",0,IF(AN58=0,0,IF(C58=$AQ$18,AG58*AE58*(1-AI58)+(E58*AL58*(1-AI58)),0))) -> 0 | AX58: =IF($X$19="LMW",0,IF(AN58=0,0,IF(C58=$AQ$18,AH58*AF58*(1-AI58)+(E58*AM58*(1-AI58)),0))) -> 0 | AY58: =IF($X$19="LMW",0,IF(AN58=0,0,IF(C58=$AQ$18,AE58*(1-AI58),0))) -> 0 | AZ58: =IF($X$19="LMW",0,IF(AN58=0,0,IF(C58=$AQ$18,AF58*(1-AI58),0))) -> 0 | BA58: =IF($X$19="LMW",0,IF(AN58=0,0,IF(C58=$AQ$19,AG58*AE58*(1-AI58)+(E58*AL58*(1-AI58)),0))) -> 0 | BB58: =IF($X$19="LMW",0,IF(AN58=0,0,IF(C58=$AQ$19,AH58*AF58*(1-AI58)+(E58*AM58*(1-AI58)),0))) -> 0 | BC58: =IF($X$19="LMW",0,IF(AN58=0,0,IF(C58=$AQ$19,AE58*(1-AI58),0))) -> 0 | BD58: =IF($X$19="LMW",0,IF(AN58=0,0,IF(C58=$AQ$19,AF58*(1-AI58),0))) -> 0 | BE58: =IF($X$19="LMW",0,IF(AN58=0,0,IF(C58=$AQ$20,AG58*AE58*(1-AI58)+(E58*AL58*(1-AI58)),0))) -> 0 | BF58: =IF($X$19="LMW",0,IF(AN58=0,0,IF(C58=$AQ$20,AH58*AF58*(1-AI58)+(E58*AM58*(1-AI58)),0))) -> 0 | BG58: =IF($X$19="LMW",0,IF(AN58=0,0,IF(C58=$AQ$20,AE58*(1-AI58),0))) -> 0 | BH58: =IF($X$19="LMW",0,IF(AN58=0,0,IF(C58=$AQ$20,AF58*(1-AI58),0))) -> 0 | BI58: =IF($X$19="LMW",0,IF(AN58=0,0,IF(C58=$AQ$21,AG58*AE58*(1-AI58)+(E58*AL58*(1-AI58)),0))) -> 0 | BJ58: =IF($X$19="LMW",0,IF(AN58=0,0,IF(C58=$AQ$21,AH58*AF58*(1-AI58)+(E58*AM58*(1-AI58)),0))) -> 0 | BK58: =IF($X$19="LMW",0,IF(AN58=0,0,IF(C58=$AQ$21,AE58*(1-AI58),0))) -> 0 | BL58: =IF($X$19="LMW",0,IF(AN58=0,0,IF(C58=$AQ$21,AF58*(1-AI58),0))) -> 0 | BM58: =IF($X$19="Reg",IF(AN58=0,0,IF(C58="Direct Support",AG58*AE58*(1-AI58)+(E58*AL58*(1-AI58)),0)),0) -> 0 | BN58: =IF($X$19="Reg",IF(AN58=0,0,IF(C58="Direct Support",T58*AF58*(1-AI58),0)),0) -> 0 | BO58: =IF($X$19="Reg",IF(AN58=0,0,IF(C58="Direct Support",AE58*(1-AI58),0)),0) -> 0 | BP58: =IF($X$19="Reg",IF(AN58=0,0,IF(C58="Direct Support",AF58*(1-AI58),0)),0) -> 0 | BQ58: =IF($X$19="LMW",IF(AB58=TRUE,IF(AN58=0,0,IF(C58="Direct Support",AG58*AE58*(1-AI58)+(E58*AL58*(1-AI58)),0)),0),0) -> 0 | BR58: =IF($X$19="LMW",IF(AB58=TRUE,IF(AN58=0,0,IF(C58="Direct Support",T58*AF58*(1-AI58)+(E58*AM58*(1-AI58)),0)),0),0) -> 0 | BS58: =IF($X$19="LMW",IF(AB58=TRUE,IF(AN58=0,0,IF(C58="Direct Support",AE58*(1-AI58),0)),0),0) -> 0 | BT58: =IF($X$19="LMW",IF(AB58=TRUE,IF(AN58=0,0,IF(C58="Direct Support",AF58*(1-AI58),0)),0),0) -> 0 | BU58: =IF($X$19="LMW",IF(AB58=FALSE,IF(AN58=0,0,IF(C58="Direct Support",AG58*AE58*(1-AI58)+(E58*AL58*(1-AI58)),0)),0),0) -> 0 | BV58: =IF($X$19="LMW",IF(AB58=FALSE,IF(AN58=0,0,IF(C58="Direct Support",T58*AF58*(1-AI58)+(E58*AM58*(1-AI58)),0)),0),0) -> 0 | BW58: =IF($X$19="LMW",IF(AB58=FALSE,IF(AN58=0,0,IF(C58="Direct Support",AE58*(1-AI58),0)),0),0) -> 0 | BX58: =IF($X$19="LMW",IF(AB58=FALSE,IF(AN58=0,0,IF(C58="Direct Support",AF58*(1-AI58),0)),0),0) -> 0 | BY58: 0 | BZ58: 0 | CA58: 0 | CB58: 0 | CC58: 0 | CD58: 0 | CE58: 0 | CF58: 0 | CG58: =(AG58*AE58+(E58*AL58))*AI58*$U$8 -> 0 | CH58: =(AH58*AF58+(E58*AM58))*AI58*$U$8 -> 0 | CI58: =CH58-CG58 -> 0 | CJ58: =AE58*AI58*$U$8 -> 0 | CK58: =AF58*AI58*$U$8 -> 0 | CL58: 0 | CM58: 0 | CN58: 0 | CO58: 0 | CP58: 0 | CQ58: 0 | CR58: 0 | CS58: =(IF($C58=CL$22,($AL58*($AI58)*CL$23),0)+ IF($C58=CM$22,($AL58*($AI58)*CM$23),0)+ IF($C58=CN$22,($AL58*($AI58)*CN$23),0)+ IF($C58=CO$22,($AL58*($AI58)*CO$23),0)+ IF($C58=CP$22,($AL58*($AI58)*CP$23),0)+ IF($C58=CR$22,($AL58*($AI58)*CR$23),0)+ IF($C58=CQ$22,($AL58*($AI58)*CQ$23),0))*$U$8 -> 0 | CT58: 0 | CU58: 0 | CV58: 0 | CW58: 0 | CX58: 0 | CY58: 0 | CZ58: 0 | DA58: =(IF($C58=CT$22,($AM58*($AI58)*CT$23),0)+ IF($C58=CU$22,($AM58*($AI58)*CU$23),0)+ IF($C58=CV$22,($AM58*($AI58)*CV$23),0)+ IF($C58=CW$22,($AM58*($AI58)*CW$23),0)+ IF($C58=CX$22,($AM58*($AI58)*CX$23),0)+ IF($C58=CZ$22,($AM58*($AI58)*CZ$23),0)+ IF($C58=CY$22,($AM58*($AI58)*CY$23),0))*$U$8 -> 0
A59: 33 | N59: =IF($X$19="Reg",TEXT(V59,"0.00"),X59) -> - | O59: =IF($X$19="Reg",TEXT(W59,"0.00"),Y59) -> - | P59: 0 | S59: =IF($X$19="Reg",Y59,TEXT(W59,"0.00")) -> 0 | T59: 0 | V59: - | W59: - | X59: =IF((Y59-D59)>0,Y59-D59,0) -> 0 | Y59: 0 | AA59: =OR( B59="",C59="", AND($AC$1="Yes",G59=""), AND($X$19="Reg",H59=""), AND(D59="",E59=""), AND(C59=$AQ$16,M59=""), AND(OR(C59=$AQ$15,C59=$AQ$18,C59=$AQ$19,C59=$AQ$20,C59=$AQ$21),K59="",$AN$15)) -> TRUE | AB59: FALSE | AC59: =AF59-AE59 -> 0 | AD59: FALSE | AE59: 0 | AF59: 0 | AG59: 0 | AH59: =IF(E59>0,0,IF($AC$1="YES",IFERROR(VLOOKUP(I59,$K$4:$O$10,5,FALSE),D59),D59)) -> 0 | AI59: 0 | AJ59: 0 | AK59: 0 | AL59: 0 | AM59: 0 | AN59: 1 | AO59: 0 | AP59: 0 | AQ59: 0 | AR59: 0 | AS59: 0 | AT59: 0 | AU59: 0 | AV59: 0 | AW59: 0 | AX59: 0 | AY59: 0 | AZ59: 0 | BA59: 0 | BB59: 0 | BC59: 0 | BD59: 0 | BE59: 0 | BF59: 0 | BG59: 0 | BH59: 0 | BI59: 0 | BJ59: 0 | BK59: 0 | BL59: 0 | BM59: 0 | BN59: 0 | BO59: 0 | BP59: 0 | BQ59: 0 | BR59: 0 | BS59: 0 | BT59: 0 | BU59: 0 | BV59: 0 | BW59: 0 | BX59: 0 | BY59: 0 | BZ59: 0 | CA59: 0 | CB59: 0 | CC59: 0 | CD59: 0 | CE59: 0 | CF59: 0 | CG59: 0 | CH59: 0 | CI59: 0 | CJ59: 0 | CK59: 0 | CL59: 0 | CM59: 0 | CN59: 0 | CO59: 0 | CP59: 0 | CQ59: 0 | CR59: 0 | CS59: 0 | CT59: 0 | CU59: 0 | CV59: 0 | CW59: 0 | CX59: 0 | CY59: 0 | CZ59: 0 | DA59: 0
A60: 34 | N60: - | O60: - | P60: =IF($X$19="Reg",X60,TEXT(V60,"0.00")) -> 0 | S60: 0 | T60: =IF(AND(D60="",E60=""),0,IF(E60="",IF(D60<AH60,AH60,D60),AQ60)) -> 0 | U60: =IF(B60="","",IF(AA60=FALSE,"Yes","No")) ->  | V60: =IFERROR(IF(AE60=0,"-",IF(C60=$AQ$16,(((AE60*AP60))*(1-AI60)+(AE60*AI60*$U$8))/(2080/12*$W$22),((AE60)*(1-AI60)+(AE60*AI60*$U$8))/(2080/12*$W$22))),"-") -> - | W60: =IFERROR(IF(AF60=0,"-",IF(C60=$AQ$16,(((AF60*AP60))*(1-AI60)+(AF60*AI60*$U$8))/(2080/12*$W$22),((AF60)*(1-AI60)+(AF60*AI60*$U$8))/(2080/12*$W$22))),"-") -> - | X60: 0 | Y60: =IF(AND(D60="",E60=""),0,IF(E60="",IF(D60<AH60,AH60,0),0)) -> 0 | AA60: TRUE | AB60: =IF(AND($X$19="LMW",N60>0),TRUE,FALSE) -> FALSE | AC60: 0 | AD60: =IF(E60>0,TRUE,FALSE) -> FALSE | AE60: =IF(AD60=TRUE,(2080/12*$W$22*AL60),G60) -> 0 | AF60: =IF($X$19="LMW",AE60,IF(AD60=TRUE,(2080/12*$W$22*AM60),H60)) -> 0 | AG60: =IF(AD60=TRUE,0,D60) -> 0 | AH60: 0 | AI60: =IF(C60="",0,IF(AND($X$19="LMW",C60="N/A"),0,IF(C60="Administrative",1,F60))) -> 0 | AJ60: =AE60*(1-AI60) -> 0 | AK60: =AF60*(1-AI60) -> 0 | AL60: =IF(AD60=TRUE,G60,IFERROR((G60/(2080/12))/$W$22,0)) -> 0 | AM60: =IF($X$19="LMW",AL60,IF(AD60=TRUE,H60,IFERROR((H60/(2080/12))/$W$22,0))) -> 0 | AN60: =IFERROR(IF($AN$15=TRUE,(IF(K60="",0,VLOOKUP(K60,$AN$8:$AO$12,2,FALSE))),1),0) -> 1 | AO60: =IFERROR(L60/M60,0) -> 0 | AP60: =IFERROR(IF((L60/M60)>1,1,(L60/M60)),0) -> 0 | AQ60: =E60/$W$22/(2080/12) -> 0 | AR60: 0 | AS60: 0 | AT60: 0 | AU60: 0 | AV60: 0 | AW60: =IF($X$19="LMW",0,IF(AN60=0,0,IF(C60=$AQ$18,AG60*AE60*(1-AI60)+(E60*AL60*(1-AI60)),0))) -> 0 | AX60: =IF($X$19="LMW",0,IF(AN60=0,0,IF(C60=$AQ$18,AH60*AF60*(1-AI60)+(E60*AM60*(1-AI60)),0))) -> 0 | AY60: =IF($X$19="LMW",0,IF(AN60=0,0,IF(C60=$AQ$18,AE60*(1-AI60),0))) -> 0 | AZ60: =IF($X$19="LMW",0,IF(AN60=0,0,IF(C60=$AQ$18,AF60*(1-AI60),0))) -> 0 | BA60: =IF($X$19="LMW",0,IF(AN60=0,0,IF(C60=$AQ$19,AG60*AE60*(1-AI60)+(E60*AL60*(1-AI60)),0))) -> 0 | BB60: =IF($X$19="LMW",0,IF(AN60=0,0,IF(C60=$AQ$19,AH60*AF60*(1-AI60)+(E60*AM60*(1-AI60)),0))) -> 0 | BC60: =IF($X$19="LMW",0,IF(AN60=0,0,IF(C60=$AQ$19,AE60*(1-AI60),0))) -> 0 | BD60: =IF($X$19="LMW",0,IF(AN60=0,0,IF(C60=$AQ$19,AF60*(1-AI60),0))) -> 0 | BE60: =IF($X$19="LMW",0,IF(AN60=0,0,IF(C60=$AQ$20,AG60*AE60*(1-AI60)+(E60*AL60*(1-AI60)),0))) -> 0 | BF60: =IF($X$19="LMW",0,IF(AN60=0,0,IF(C60=$AQ$20,AH60*AF60*(1-AI60)+(E60*AM60*(1-AI60)),0))) -> 0 | BG60: =IF($X$19="LMW",0,IF(AN60=0,0,IF(C60=$AQ$20,AE60*(1-AI60),0))) -> 0 | BH60: =IF($X$19="LMW",0,IF(AN60=0,0,IF(C60=$AQ$20,AF60*(1-AI60),0))) -> 0 | BI60: =IF($X$19="LMW",0,IF(AN60=0,0,IF(C60=$AQ$21,AG60*AE60*(1-AI60)+(E60*AL60*(1-AI60)),0))) -> 0 | BJ60: =IF($X$19="LMW",0,IF(AN60=0,0,IF(C60=$AQ$21,AH60*AF60*(1-AI60)+(E60*AM60*(1-AI60)),0))) -> 0 | BK60: =IF($X$19="LMW",0,IF(AN60=0,0,IF(C60=$AQ$21,AE60*(1-AI60),0))) -> 0 | BL60: =IF($X$19="LMW",0,IF(AN60=0,0,IF(C60=$AQ$21,AF60*(1-AI60),0))) -> 0 | BM60: =IF($X$19="Reg",IF(AN60=0,0,IF(C60="Direct Support",AG60*AE60*(1-AI60)+(E60*AL60*(1-AI60)),0)),0) -> 0 | BN60: =IF($X$19="Reg",IF(AN60=0,0,IF(C60="Direct Support",T60*AF60*(1-AI60),0)),0) -> 0 | BO60: =IF($X$19="Reg",IF(AN60=0,0,IF(C60="Direct Support",AE60*(1-AI60),0)),0) -> 0 | BP60: =IF($X$19="Reg",IF(AN60=0,0,IF(C60="Direct Support",AF60*(1-AI60),0)),0) -> 0 | BQ60: =IF($X$19="LMW",IF(AB60=TRUE,IF(AN60=0,0,IF(C60="Direct Support",AG60*AE60*(1-AI60)+(E60*AL60*(1-AI60)),0)),0),0) -> 0 | BR60: =IF($X$19="LMW",IF(AB60=TRUE,IF(AN60=0,0,IF(C60="Direct Support",T60*AF60*(1-AI60)+(E60*AM60*(1-AI60)),0)),0),0) -> 0 | BS60: =IF($X$19="LMW",IF(AB60=TRUE,IF(AN60=0,0,IF(C60="Direct Support",AE60*(1-AI60),0)),0),0) -> 0 | BT60: =IF($X$19="LMW",IF(AB60=TRUE,IF(AN60=0,0,IF(C60="Direct Support",AF60*(1-AI60),0)),0),0) -> 0 | BU60: =IF($X$19="LMW",IF(AB60=FALSE,IF(AN60=0,0,IF(C60="Direct Support",AG60*AE60*(1-AI60)+(E60*AL60*(1-AI60)),0)),0),0) -> 0 | BV60: =IF($X$19="LMW",IF(AB60=FALSE,IF(AN60=0,0,IF(C60="Direct Support",T60*AF60*(1-AI60)+(E60*AM60*(1-AI60)),0)),0),0) -> 0 | BW60: =IF($X$19="LMW",IF(AB60=FALSE,IF(AN60=0,0,IF(C60="Direct Support",AE60*(1-AI60),0)),0),0) -> 0 | BX60: =IF($X$19="LMW",IF(AB60=FALSE,IF(AN60=0,0,IF(C60="Direct Support",AF60*(1-AI60),0)),0),0) -> 0 | BY60: 0 | BZ60: 0 | CA60: 0 | CB60: 0 | CC60: 0 | CD60: 0 | CE60: 0 | CF60: 0 | CG60: =(AG60*AE60+(E60*AL60))*AI60*$U$8 -> 0 | CH60: =(AH60*AF60+(E60*AM60))*AI60*$U$8 -> 0 | CI60: =CH60-CG60 -> 0 | CJ60: =AE60*AI60*$U$8 -> 0 | CK60: =AF60*AI60*$U$8 -> 0 | CL60: 0 | CM60: 0 | CN60: 0 | CO60: 0 | CP60: 0 | CQ60: 0 | CR60: 0 | CS60: =(IF($C60=CL$22,($AL60*($AI60)*CL$23),0)+ IF($C60=CM$22,($AL60*($AI60)*CM$23),0)+ IF($C60=CN$22,($AL60*($AI60)*CN$23),0)+ IF($C60=CO$22,($AL60*($AI60)*CO$23),0)+ IF($C60=CP$22,($AL60*($AI60)*CP$23),0)+ IF($C60=CR$22,($AL60*($AI60)*CR$23),0)+ IF($C60=CQ$22,($AL60*($AI60)*CQ$23),0))*$U$8 -> 0 | CT60: 0 | CU60: 0 | CV60: 0 | CW60: 0 | CX60: 0 | CY60: 0 | CZ60: 0 | DA60: =(IF($C60=CT$22,($AM60*($AI60)*CT$23),0)+ IF($C60=CU$22,($AM60*($AI60)*CU$23),0)+ IF($C60=CV$22,($AM60*($AI60)*CV$23),0)+ IF($C60=CW$22,($AM60*($AI60)*CW$23),0)+ IF($C60=CX$22,($AM60*($AI60)*CX$23),0)+ IF($C60=CZ$22,($AM60*($AI60)*CZ$23),0)+ IF($C60=CY$22,($AM60*($AI60)*CY$23),0))*$U$8 -> 0
A61: 35 | N61: =IF($X$19="Reg",TEXT(V61,"0.00"),X61) -> - | O61: =IF($X$19="Reg",TEXT(W61,"0.00"),Y61) -> - | P61: 0 | S61: =IF($X$19="Reg",Y61,TEXT(W61,"0.00")) -> 0 | T61: 0 | V61: - | W61: - | X61: =IF((Y61-D61)>0,Y61-D61,0) -> 0 | Y61: 0 | AA61: TRUE | AB61: FALSE | AC61: =AF61-AE61 -> 0 | AD61: FALSE | AE61: 0 | AF61: 0 | AG61: 0 | AH61: 0 | AI61: 0 | AJ61: 0 | AK61: 0 | AL61: 0 | AM61: 0 | AN61: 1 | AO61: 0 | AP61: 0 | AQ61: 0 | AR61: 0 | AS61: 0 | AT61: 0 | AU61: 0 | AV61: 0 | AW61: 0 | AX61: 0 | AY61: 0 | AZ61: 0 | BA61: 0 | BB61: 0 | BC61: 0 | BD61: 0 | BE61: 0 | BF61: 0 | BG61: 0 | BH61: 0 | BI61: 0 | BJ61: 0 | BK61: 0 | BL61: 0 | BM61: 0 | BN61: 0 | BO61: 0 | BP61: 0 | BQ61: 0 | BR61: 0 | BS61: 0 | BT61: 0 | BU61: 0 | BV61: 0 | BW61: 0 | BX61: 0 | BY61: 0 | BZ61: 0 | CA61: 0 | CB61: 0 | CC61: 0 | CD61: 0 | CE61: 0 | CF61: 0 | CG61: 0 | CH61: 0 | CI61: 0 | CJ61: 0 | CK61: 0 | CL61: 0 | CM61: 0 | CN61: 0 | CO61: 0 | CP61: 0 | CQ61: 0 | CR61: 0 | CS61: 0 | CT61: 0 | CU61: 0 | CV61: 0 | CW61: 0 | CX61: 0 | CY61: 0 | CZ61: 0 | DA61: 0
A62: 36 | N62: - | O62: - | P62: =IF($X$19="Reg",X62,TEXT(V62,"0.00")) -> 0 | S62: 0 | T62: =IF(AND(D62="",E62=""),0,IF(E62="",IF(D62<AH62,AH62,D62),AQ62)) -> 0 | U62: =IF(B62="","",IF(AA62=FALSE,"Yes","No")) ->  | V62: =IFERROR(IF(AE62=0,"-",IF(C62=$AQ$16,(((AE62*AP62))*(1-AI62)+(AE62*AI62*$U$8))/(2080/12*$W$22),((AE62)*(1-AI62)+(AE62*AI62*$U$8))/(2080/12*$W$22))),"-") -> - | W62: =IFERROR(IF(AF62=0,"-",IF(C62=$AQ$16,(((AF62*AP62))*(1-AI62)+(AF62*AI62*$U$8))/(2080/12*$W$22),((AF62)*(1-AI62)+(AF62*AI62*$U$8))/(2080/12*$W$22))),"-") -> - | X62: 0 | Y62: =IF(AND(D62="",E62=""),0,IF(E62="",IF(D62<AH62,AH62,0),0)) -> 0 | AA62: TRUE | AB62: =IF(AND($X$19="LMW",N62>0),TRUE,FALSE) -> FALSE | AC62: 0 | AD62: =IF(E62>0,TRUE,FALSE) -> FALSE | AE62: =IF(AD62=TRUE,(2080/12*$W$22*AL62),G62) -> 0 | AF62: =IF($X$19="LMW",AE62,IF(AD62=TRUE,(2080/12*$W$22*AM62),H62)) -> 0 | AG62: =IF(AD62=TRUE,0,D62) -> 0 | AH62: 0 | AI62: =IF(C62="",0,IF(AND($X$19="LMW",C62="N/A"),0,IF(C62="Administrative",1,F62))) -> 0 | AJ62: =AE62*(1-AI62) -> 0 | AK62: =AF62*(1-AI62) -> 0 | AL62: =IF(AD62=TRUE,G62,IFERROR((G62/(2080/12))/$W$22,0)) -> 0 | AM62: =IF($X$19="LMW",AL62,IF(AD62=TRUE,H62,IFERROR((H62/(2080/12))/$W$22,0))) -> 0 | AN62: =IFERROR(IF($AN$15=TRUE,(IF(K62="",0,VLOOKUP(K62,$AN$8:$AO$12,2,FALSE))),1),0) -> 1 | AO62: =IFERROR(L62/M62,0) -> 0 | AP62: =IFERROR(IF((L62/M62)>1,1,(L62/M62)),0) -> 0 | AQ62: =E62/$W$22/(2080/12) -> 0 | AR62: 0 | AS62: 0 | AT62: 0 | AU62: 0 | AV62: 0 | AW62: =IF($X$19="LMW",0,IF(AN62=0,0,IF(C62=$AQ$18,AG62*AE62*(1-AI62)+(E62*AL62*(1-AI62)),0))) -> 0 | AX62: =IF($X$19="LMW",0,IF(AN62=0,0,IF(C62=$AQ$18,AH62*AF62*(1-AI62)+(E62*AM62*(1-AI62)),0))) -> 0 | AY62: =IF($X$19="LMW",0,IF(AN62=0,0,IF(C62=$AQ$18,AE62*(1-AI62),0))) -> 0 | AZ62: =IF($X$19="LMW",0,IF(AN62=0,0,IF(C62=$AQ$18,AF62*(1-AI62),0))) -> 0 | BA62: =IF($X$19="LMW",0,IF(AN62=0,0,IF(C62=$AQ$19,AG62*AE62*(1-AI62)+(E62*AL62*(1-AI62)),0))) -> 0 | BB62: =IF($X$19="LMW",0,IF(AN62=0,0,IF(C62=$AQ$19,AH62*AF62*(1-AI62)+(E62*AM62*(1-AI62)),0))) -> 0 | BC62: =IF($X$19="LMW",0,IF(AN62=0,0,IF(C62=$AQ$19,AE62*(1-AI62),0))) -> 0 | BD62: =IF($X$19="LMW",0,IF(AN62=0,0,IF(C62=$AQ$19,AF62*(1-AI62),0))) -> 0 | BE62: =IF($X$19="LMW",0,IF(AN62=0,0,IF(C62=$AQ$20,AG62*AE62*(1-AI62)+(E62*AL62*(1-AI62)),0))) -> 0 | BF62: =IF($X$19="LMW",0,IF(AN62=0,0,IF(C62=$AQ$20,AH62*AF62*(1-AI62)+(E62*AM62*(1-AI62)),0))) -> 0 | BG62: =IF($X$19="LMW",0,IF(AN62=0,0,IF(C62=$AQ$20,AE62*(1-AI62),0))) -> 0 | BH62: =IF($X$19="LMW",0,IF(AN62=0,0,IF(C62=$AQ$20,AF62*(1-AI62),0))) -> 0 | BI62: =IF($X$19="LMW",0,IF(AN62=0,0,IF(C62=$AQ$21,AG62*AE62*(1-AI62)+(E62*AL62*(1-AI62)),0))) -> 0 | BJ62: =IF($X$19="LMW",0,IF(AN62=0,0,IF(C62=$AQ$21,AH62*AF62*(1-AI62)+(E62*AM62*(1-AI62)),0))) -> 0 | BK62: =IF($X$19="LMW",0,IF(AN62=0,0,IF(C62=$AQ$21,AE62*(1-AI62),0))) -> 0 | BL62: =IF($X$19="LMW",0,IF(AN62=0,0,IF(C62=$AQ$21,AF62*(1-AI62),0))) -> 0 | BM62: =IF($X$19="Reg",IF(AN62=0,0,IF(C62="Direct Support",AG62*AE62*(1-AI62)+(E62*AL62*(1-AI62)),0)),0) -> 0 | BN62: =IF($X$19="Reg",IF(AN62=0,0,IF(C62="Direct Support",T62*AF62*(1-AI62),0)),0) -> 0 | BO62: =IF($X$19="Reg",IF(AN62=0,0,IF(C62="Direct Support",AE62*(1-AI62),0)),0) -> 0 | BP62: =IF($X$19="Reg",IF(AN62=0,0,IF(C62="Direct Support",AF62*(1-AI62),0)),0) -> 0 | BQ62: =IF($X$19="LMW",IF(AB62=TRUE,IF(AN62=0,0,IF(C62="Direct Support",AG62*AE62*(1-AI62)+(E62*AL62*(1-AI62)),0)),0),0) -> 0 | BR62: =IF($X$19="LMW",IF(AB62=TRUE,IF(AN62=0,0,IF(C62="Direct Support",T62*AF62*(1-AI62)+(E62*AM62*(1-AI62)),0)),0),0) -> 0 | BS62: =IF($X$19="LMW",IF(AB62=TRUE,IF(AN62=0,0,IF(C62="Direct Support",AE62*(1-AI62),0)),0),0) -> 0 | BT62: =IF($X$19="LMW",IF(AB62=TRUE,IF(AN62=0,0,IF(C62="Direct Support",AF62*(1-AI62),0)),0),0) -> 0 | BU62: =IF($X$19="LMW",IF(AB62=FALSE,IF(AN62=0,0,IF(C62="Direct Support",AG62*AE62*(1-AI62)+(E62*AL62*(1-AI62)),0)),0),0) -> 0 | BV62: =IF($X$19="LMW",IF(AB62=FALSE,IF(AN62=0,0,IF(C62="Direct Support",T62*AF62*(1-AI62)+(E62*AM62*(1-AI62)),0)),0),0) -> 0 | BW62: =IF($X$19="LMW",IF(AB62=FALSE,IF(AN62=0,0,IF(C62="Direct Support",AE62*(1-AI62),0)),0),0) -> 0 | BX62: =IF($X$19="LMW",IF(AB62=FALSE,IF(AN62=0,0,IF(C62="Direct Support",AF62*(1-AI62),0)),0),0) -> 0 | BY62: 0 | BZ62: 0 | CA62: 0 | CB62: 0 | CC62: 0 | CD62: 0 | CE62: 0 | CF62: 0 | CG62: =(AG62*AE62+(E62*AL62))*AI62*$U$8 -> 0 | CH62: =(AH62*AF62+(E62*AM62))*AI62*$U$8 -> 0 | CI62: =CH62-CG62 -> 0 | CJ62: =AE62*AI62*$U$8 -> 0 | CK62: =AF62*AI62*$U$8 -> 0 | CL62: 0 | CM62: 0 | CN62: 0 | CO62: 0 | CP62: 0 | CQ62: 0 | CR62: 0 | CS62: =(IF($C62=CL$22,($AL62*($AI62)*CL$23),0)+ IF($C62=CM$22,($AL62*($AI62)*CM$23),0)+ IF($C62=CN$22,($AL62*($AI62)*CN$23),0)+ IF($C62=CO$22,($AL62*($AI62)*CO$23),0)+ IF($C62=CP$22,($AL62*($AI62)*CP$23),0)+ IF($C62=CR$22,($AL62*($AI62)*CR$23),0)+ IF($C62=CQ$22,($AL62*($AI62)*CQ$23),0))*$U$8 -> 0 | CT62: 0 | CU62: 0 | CV62: 0 | CW62: 0 | CX62: 0 | CY62: 0 | CZ62: 0 | DA62: =(IF($C62=CT$22,($AM62*($AI62)*CT$23),0)+ IF($C62=CU$22,($AM62*($AI62)*CU$23),0)+ IF($C62=CV$22,($AM62*($AI62)*CV$23),0)+ IF($C62=CW$22,($AM62*($AI62)*CW$23),0)+ IF($C62=CX$22,($AM62*($AI62)*CX$23),0)+ IF($C62=CZ$22,($AM62*($AI62)*CZ$23),0)+ IF($C62=CY$22,($AM62*($AI62)*CY$23),0))*$U$8 -> 0
A63: 37 | N63: =IF($X$19="Reg",TEXT(V63,"0.00"),X63) -> - | O63: =IF($X$19="Reg",TEXT(W63,"0.00"),Y63) -> - | P63: 0 | S63: =IF($X$19="Reg",Y63,TEXT(W63,"0.00")) -> 0 | T63: 0 | V63: - | W63: - | X63: =IF((Y63-D63)>0,Y63-D63,0) -> 0 | Y63: 0 | AA63: TRUE | AB63: FALSE | AC63: =AF63-AE63 -> 0 | AD63: FALSE | AE63: 0 | AF63: 0 | AG63: 0 | AH63: 0 | AI63: 0 | AJ63: 0 | AK63: 0 | AL63: 0 | AM63: 0 | AN63: 1 | AO63: 0 | AP63: 0 | AQ63: 0 | AR63: 0 | AS63: 0 | AT63: 0 | AU63: 0 | AV63: 0 | AW63: 0 | AX63: 0 | AY63: 0 | AZ63: 0 | BA63: 0 | BB63: 0 | BC63: 0 | BD63: 0 | BE63: 0 | BF63: 0 | BG63: 0 | BH63: 0 | BI63: 0 | BJ63: 0 | BK63: 0 | BL63: 0 | BM63: 0 | BN63: 0 | BO63: 0 | BP63: 0 | BQ63: 0 | BR63: 0 | BS63: 0 | BT63: 0 | BU63: 0 | BV63: 0 | BW63: 0 | BX63: 0 | BY63: 0 | BZ63: 0 | CA63: 0 | CB63: 0 | CC63: 0 | CD63: 0 | CE63: 0 | CF63: 0 | CG63: 0 | CH63: 0 | CI63: 0 | CJ63: 0 | CK63: 0 | CL63: 0 | CM63: 0 | CN63: 0 | CO63: 0 | CP63: 0 | CQ63: 0 | CR63: 0 | CS63: 0 | CT63: 0 | CU63: 0 | CV63: 0 | CW63: 0 | CX63: 0 | CY63: 0 | CZ63: 0 | DA63: 0
A64: 38 | N64: - | O64: - | P64: =IF($X$19="Reg",X64,TEXT(V64,"0.00")) -> 0 | S64: 0 | T64: =IF(AND(D64="",E64=""),0,IF(E64="",IF(D64<AH64,AH64,D64),AQ64)) -> 0 | U64: =IF(B64="","",IF(AA64=FALSE,"Yes","No")) ->  | V64: =IFERROR(IF(AE64=0,"-",IF(C64=$AQ$16,(((AE64*AP64))*(1-AI64)+(AE64*AI64*$U$8))/(2080/12*$W$22),((AE64)*(1-AI64)+(AE64*AI64*$U$8))/(2080/12*$W$22))),"-") -> - | W64: =IFERROR(IF(AF64=0,"-",IF(C64=$AQ$16,(((AF64*AP64))*(1-AI64)+(AF64*AI64*$U$8))/(2080/12*$W$22),((AF64)*(1-AI64)+(AF64*AI64*$U$8))/(2080/12*$W$22))),"-") -> - | X64: 0 | Y64: =IF(AND(D64="",E64=""),0,IF(E64="",IF(D64<AH64,AH64,0),0)) -> 0 | AA64: TRUE | AB64: =IF(AND($X$19="LMW",N64>0),TRUE,FALSE) -> FALSE | AC64: 0 | AD64: =IF(E64>0,TRUE,FALSE) -> FALSE | AE64: =IF(AD64=TRUE,(2080/12*$W$22*AL64),G64) -> 0 | AF64: =IF($X$19="LMW",AE64,IF(AD64=TRUE,(2080/12*$W$22*AM64),H64)) -> 0 | AG64: =IF(AD64=TRUE,0,D64) -> 0 | AH64: 0 | AI64: =IF(C64="",0,IF(AND($X$19="LMW",C64="N/A"),0,IF(C64="Administrative",1,F64))) -> 0 | AJ64: =AE64*(1-AI64) -> 0 | AK64: =AF64*(1-AI64) -> 0 | AL64: =IF(AD64=TRUE,G64,IFERROR((G64/(2080/12))/$W$22,0)) -> 0 | AM64: =IF($X$19="LMW",AL64,IF(AD64=TRUE,H64,IFERROR((H64/(2080/12))/$W$22,0))) -> 0 | AN64: =IFERROR(IF($AN$15=TRUE,(IF(K64="",0,VLOOKUP(K64,$AN$8:$AO$12,2,FALSE))),1),0) -> 1 | AO64: =IFERROR(L64/M64,0) -> 0 | AP64: =IFERROR(IF((L64/M64)>1,1,(L64/M64)),0) -> 0 | AQ64: =E64/$W$22/(2080/12) -> 0 | AR64: 0 | AS64: 0 | AT64: 0 | AU64: 0 | AV64: 0 | AW64: =IF($X$19="LMW",0,IF(AN64=0,0,IF(C64=$AQ$18,AG64*AE64*(1-AI64)+(E64*AL64*(1-AI64)),0))) -> 0 | AX64: =IF($X$19="LMW",0,IF(AN64=0,0,IF(C64=$AQ$18,AH64*AF64*(1-AI64)+(E64*AM64*(1-AI64)),0))) -> 0 | AY64: =IF($X$19="LMW",0,IF(AN64=0,0,IF(C64=$AQ$18,AE64*(1-AI64),0))) -> 0 | AZ64: =IF($X$19="LMW",0,IF(AN64=0,0,IF(C64=$AQ$18,AF64*(1-AI64),0))) -> 0 | BA64: =IF($X$19="LMW",0,IF(AN64=0,0,IF(C64=$AQ$19,AG64*AE64*(1-AI64)+(E64*AL64*(1-AI64)),0))) -> 0 | BB64: =IF($X$19="LMW",0,IF(AN64=0,0,IF(C64=$AQ$19,AH64*AF64*(1-AI64)+(E64*AM64*(1-AI64)),0))) -> 0 | BC64: =IF($X$19="LMW",0,IF(AN64=0,0,IF(C64=$AQ$19,AE64*(1-AI64),0))) -> 0 | BD64: =IF($X$19="LMW",0,IF(AN64=0,0,IF(C64=$AQ$19,AF64*(1-AI64),0))) -> 0 | BE64: =IF($X$19="LMW",0,IF(AN64=0,0,IF(C64=$AQ$20,AG64*AE64*(1-AI64)+(E64*AL64*(1-AI64)),0))) -> 0 | BF64: =IF($X$19="LMW",0,IF(AN64=0,0,IF(C64=$AQ$20,AH64*AF64*(1-AI64)+(E64*AM64*(1-AI64)),0))) -> 0 | BG64: =IF($X$19="LMW",0,IF(AN64=0,0,IF(C64=$AQ$20,AE64*(1-AI64),0))) -> 0 | BH64: =IF($X$19="LMW",0,IF(AN64=0,0,IF(C64=$AQ$20,AF64*(1-AI64),0))) -> 0 | BI64: =IF($X$19="LMW",0,IF(AN64=0,0,IF(C64=$AQ$21,AG64*AE64*(1-AI64)+(E64*AL64*(1-AI64)),0))) -> 0 | BJ64: =IF($X$19="LMW",0,IF(AN64=0,0,IF(C64=$AQ$21,AH64*AF64*(1-AI64)+(E64*AM64*(1-AI64)),0))) -> 0 | BK64: =IF($X$19="LMW",0,IF(AN64=0,0,IF(C64=$AQ$21,AE64*(1-AI64),0))) -> 0 | BL64: =IF($X$19="LMW",0,IF(AN64=0,0,IF(C64=$AQ$21,AF64*(1-AI64),0))) -> 0 | BM64: =IF($X$19="Reg",IF(AN64=0,0,IF(C64="Direct Support",AG64*AE64*(1-AI64)+(E64*AL64*(1-AI64)),0)),0) -> 0 | BN64: =IF($X$19="Reg",IF(AN64=0,0,IF(C64="Direct Support",T64*AF64*(1-AI64),0)),0) -> 0 | BO64: =IF($X$19="Reg",IF(AN64=0,0,IF(C64="Direct Support",AE64*(1-AI64),0)),0) -> 0 | BP64: =IF($X$19="Reg",IF(AN64=0,0,IF(C64="Direct Support",AF64*(1-AI64),0)),0) -> 0 | BQ64: =IF($X$19="LMW",IF(AB64=TRUE,IF(AN64=0,0,IF(C64="Direct Support",AG64*AE64*(1-AI64)+(E64*AL64*(1-AI64)),0)),0),0) -> 0 | BR64: =IF($X$19="LMW",IF(AB64=TRUE,IF(AN64=0,0,IF(C64="Direct Support",T64*AF64*(1-AI64)+(E64*AM64*(1-AI64)),0)),0),0) -> 0 | BS64: =IF($X$19="LMW",IF(AB64=TRUE,IF(AN64=0,0,IF(C64="Direct Support",AE64*(1-AI64),0)),0),0) -> 0 | BT64: =IF($X$19="LMW",IF(AB64=TRUE,IF(AN64=0,0,IF(C64="Direct Support",AF64*(1-AI64),0)),0),0) -> 0 | BU64: =IF($X$19="LMW",IF(AB64=FALSE,IF(AN64=0,0,IF(C64="Direct Support",AG64*AE64*(1-AI64)+(E64*AL64*(1-AI64)),0)),0),0) -> 0 | BV64: =IF($X$19="LMW",IF(AB64=FALSE,IF(AN64=0,0,IF(C64="Direct Support",T64*AF64*(1-AI64)+(E64*AM64*(1-AI64)),0)),0),0) -> 0 | BW64: =IF($X$19="LMW",IF(AB64=FALSE,IF(AN64=0,0,IF(C64="Direct Support",AE64*(1-AI64),0)),0),0) -> 0 | BX64: =IF($X$19="LMW",IF(AB64=FALSE,IF(AN64=0,0,IF(C64="Direct Support",AF64*(1-AI64),0)),0),0) -> 0 | BY64: 0 | BZ64: 0 | CA64: 0 | CB64: 0 | CC64: 0 | CD64: 0 | CE64: 0 | CF64: 0 | CG64: =(AG64*AE64+(E64*AL64))*AI64*$U$8 -> 0 | CH64: =(AH64*AF64+(E64*AM64))*AI64*$U$8 -> 0 | CI64: =CH64-CG64 -> 0 | CJ64: =AE64*AI64*$U$8 -> 0 | CK64: =AF64*AI64*$U$8 -> 0 | CL64: 0 | CM64: 0 | CN64: 0 | CO64: 0 | CP64: 0 | CQ64: 0 | CR64: 0 | CS64: =(IF($C64=CL$22,($AL64*($AI64)*CL$23),0)+ IF($C64=CM$22,($AL64*($AI64)*CM$23),0)+ IF($C64=CN$22,($AL64*($AI64)*CN$23),0)+ IF($C64=CO$22,($AL64*($AI64)*CO$23),0)+ IF($C64=CP$22,($AL64*($AI64)*CP$23),0)+ IF($C64=CR$22,($AL64*($AI64)*CR$23),0)+ IF($C64=CQ$22,($AL64*($AI64)*CQ$23),0))*$U$8 -> 0 | CT64: 0 | CU64: 0 | CV64: 0 | CW64: 0 | CX64: 0 | CY64: 0 | CZ64: 0 | DA64: =(IF($C64=CT$22,($AM64*($AI64)*CT$23),0)+ IF($C64=CU$22,($AM64*($AI64)*CU$23),0)+ IF($C64=CV$22,($AM64*($AI64)*CV$23),0)+ IF($C64=CW$22,($AM64*($AI64)*CW$23),0)+ IF($C64=CX$22,($AM64*($AI64)*CX$23),0)+ IF($C64=CZ$22,($AM64*($AI64)*CZ$23),0)+ IF($C64=CY$22,($AM64*($AI64)*CY$23),0))*$U$8 -> 0
A65: 39 | N65: =IF($X$19="Reg",TEXT(V65,"0.00"),X65) -> - | O65: =IF($X$19="Reg",TEXT(W65,"0.00"),Y65) -> - | P65: 0 | S65: =IF($X$19="Reg",Y65,TEXT(W65,"0.00")) -> 0 | T65: 0 | V65: - | W65: - | X65: =IF((Y65-D65)>0,Y65-D65,0) -> 0 | Y65: 0 | AA65: TRUE | AB65: FALSE | AC65: =AF65-AE65 -> 0 | AD65: FALSE | AE65: 0 | AF65: 0 | AG65: 0 | AH65: 0 | AI65: 0 | AJ65: 0 | AK65: 0 | AL65: 0 | AM65: 0 | AN65: 1 | AO65: 0 | AP65: 0 | AQ65: 0 | AR65: 0 | AS65: 0 | AT65: 0 | AU65: 0 | AV65: 0 | AW65: 0 | AX65: 0 | AY65: 0 | AZ65: 0 | BA65: 0 | BB65: 0 | BC65: 0 | BD65: 0 | BE65: 0 | BF65: 0 | BG65: 0 | BH65: 0 | BI65: 0 | BJ65: 0 | BK65: 0 | BL65: 0 | BM65: 0 | BN65: 0 | BO65: 0 | BP65: 0 | BQ65: 0 | BR65: 0 | BS65: 0 | BT65: 0 | BU65: 0 | BV65: 0 | BW65: 0 | BX65: 0 | BY65: 0 | BZ65: 0 | CA65: 0 | CB65: 0 | CC65: 0 | CD65: 0 | CE65: 0 | CF65: 0 | CG65: 0 | CH65: 0 | CI65: 0 | CJ65: 0 | CK65: 0 | CL65: 0 | CM65: 0 | CN65: 0 | CO65: 0 | CP65: 0 | CQ65: 0 | CR65: 0 | CS65: 0 | CT65: 0 | CU65: 0 | CV65: 0 | CW65: 0 | CX65: 0 | CY65: 0 | CZ65: 0 | DA65: 0
A66: 40 | N66: - | O66: - | P66: =IF($X$19="Reg",X66,TEXT(V66,"0.00")) -> 0 | S66: 0 | T66: =IF(AND(D66="",E66=""),0,IF(E66="",IF(D66<AH66,AH66,D66),AQ66)) -> 0 | U66: =IF(B66="","",IF(AA66=FALSE,"Yes","No")) ->  | V66: =IFERROR(IF(AE66=0,"-",IF(C66=$AQ$16,(((AE66*AP66))*(1-AI66)+(AE66*AI66*$U$8))/(2080/12*$W$22),((AE66)*(1-AI66)+(AE66*AI66*$U$8))/(2080/12*$W$22))),"-") -> - | W66: =IFERROR(IF(AF66=0,"-",IF(C66=$AQ$16,(((AF66*AP66))*(1-AI66)+(AF66*AI66*$U$8))/(2080/12*$W$22),((AF66)*(1-AI66)+(AF66*AI66*$U$8))/(2080/12*$W$22))),"-") -> - | X66: 0 | Y66: =IF(AND(D66="",E66=""),0,IF(E66="",IF(D66<AH66,AH66,0),0)) -> 0 | AA66: TRUE | AB66: =IF(AND($X$19="LMW",N66>0),TRUE,FALSE) -> FALSE | AC66: 0 | AD66: =IF(E66>0,TRUE,FALSE) -> FALSE | AE66: =IF(AD66=TRUE,(2080/12*$W$22*AL66),G66) -> 0 | AF66: =IF($X$19="LMW",AE66,IF(AD66=TRUE,(2080/12*$W$22*AM66),H66)) -> 0 | AG66: =IF(AD66=TRUE,0,D66) -> 0 | AH66: 0 | AI66: =IF(C66="",0,IF(AND($X$19="LMW",C66="N/A"),0,IF(C66="Administrative",1,F66))) -> 0 | AJ66: =AE66*(1-AI66) -> 0 | AK66: =AF66*(1-AI66) -> 0 | AL66: =IF(AD66=TRUE,G66,IFERROR((G66/(2080/12))/$W$22,0)) -> 0 | AM66: =IF($X$19="LMW",AL66,IF(AD66=TRUE,H66,IFERROR((H66/(2080/12))/$W$22,0))) -> 0 | AN66: =IFERROR(IF($AN$15=TRUE,(IF(K66="",0,VLOOKUP(K66,$AN$8:$AO$12,2,FALSE))),1),0) -> 1 | AO66: =IFERROR(L66/M66,0) -> 0 | AP66: =IFERROR(IF((L66/M66)>1,1,(L66/M66)),0) -> 0 | AQ66: =E66/$W$22/(2080/12) -> 0 | AR66: 0 | AS66: 0 | AT66: 0 | AU66: 0 | AV66: 0 | AW66: =IF($X$19="LMW",0,IF(AN66=0,0,IF(C66=$AQ$18,AG66*AE66*(1-AI66)+(E66*AL66*(1-AI66)),0))) -> 0 | AX66: =IF($X$19="LMW",0,IF(AN66=0,0,IF(C66=$AQ$18,AH66*AF66*(1-AI66)+(E66*AM66*(1-AI66)),0))) -> 0 | AY66: =IF($X$19="LMW",0,IF(AN66=0,0,IF(C66=$AQ$18,AE66*(1-AI66),0))) -> 0 | AZ66: =IF($X$19="LMW",0,IF(AN66=0,0,IF(C66=$AQ$18,AF66*(1-AI66),0))) -> 0 | BA66: =IF($X$19="LMW",0,IF(AN66=0,0,IF(C66=$AQ$19,AG66*AE66*(1-AI66)+(E66*AL66*(1-AI66)),0))) -> 0 | BB66: =IF($X$19="LMW",0,IF(AN66=0,0,IF(C66=$AQ$19,AH66*AF66*(1-AI66)+(E66*AM66*(1-AI66)),0))) -> 0 | BC66: =IF($X$19="LMW",0,IF(AN66=0,0,IF(C66=$AQ$19,AE66*(1-AI66),0))) -> 0 | BD66: =IF($X$19="LMW",0,IF(AN66=0,0,IF(C66=$AQ$19,AF66*(1-AI66),0))) -> 0 | BE66: =IF($X$19="LMW",0,IF(AN66=0,0,IF(C66=$AQ$20,AG66*AE66*(1-AI66)+(E66*AL66*(1-AI66)),0))) -> 0 | BF66: =IF($X$19="LMW",0,IF(AN66=0,0,IF(C66=$AQ$20,AH66*AF66*(1-AI66)+(E66*AM66*(1-AI66)),0))) -> 0 | BG66: =IF($X$19="LMW",0,IF(AN66=0,0,IF(C66=$AQ$20,AE66*(1-AI66),0))) -> 0 | BH66: =IF($X$19="LMW",0,IF(AN66=0,0,IF(C66=$AQ$20,AF66*(1-AI66),0))) -> 0 | BI66: =IF($X$19="LMW",0,IF(AN66=0,0,IF(C66=$AQ$21,AG66*AE66*(1-AI66)+(E66*AL66*(1-AI66)),0))) -> 0 | BJ66: =IF($X$19="LMW",0,IF(AN66=0,0,IF(C66=$AQ$21,AH66*AF66*(1-AI66)+(E66*AM66*(1-AI66)),0))) -> 0 | BK66: =IF($X$19="LMW",0,IF(AN66=0,0,IF(C66=$AQ$21,AE66*(1-AI66),0))) -> 0 | BL66: =IF($X$19="LMW",0,IF(AN66=0,0,IF(C66=$AQ$21,AF66*(1-AI66),0))) -> 0 | BM66: =IF($X$19="Reg",IF(AN66=0,0,IF(C66="Direct Support",AG66*AE66*(1-AI66)+(E66*AL66*(1-AI66)),0)),0) -> 0 | BN66: =IF($X$19="Reg",IF(AN66=0,0,IF(C66="Direct Support",T66*AF66*(1-AI66),0)),0) -> 0 | BO66: =IF($X$19="Reg",IF(AN66=0,0,IF(C66="Direct Support",AE66*(1-AI66),0)),0) -> 0 | BP66: =IF($X$19="Reg",IF(AN66=0,0,IF(C66="Direct Support",AF66*(1-AI66),0)),0) -> 0 | BQ66: =IF($X$19="LMW",IF(AB66=TRUE,IF(AN66=0,0,IF(C66="Direct Support",AG66*AE66*(1-AI66)+(E66*AL66*(1-AI66)),0)),0),0) -> 0 | BR66: =IF($X$19="LMW",IF(AB66=TRUE,IF(AN66=0,0,IF(C66="Direct Support",T66*AF66*(1-AI66)+(E66*AM66*(1-AI66)),0)),0),0) -> 0 | BS66: =IF($X$19="LMW",IF(AB66=TRUE,IF(AN66=0,0,IF(C66="Direct Support",AE66*(1-AI66),0)),0),0) -> 0 | BT66: =IF($X$19="LMW",IF(AB66=TRUE,IF(AN66=0,0,IF(C66="Direct Support",AF66*(1-AI66),0)),0),0) -> 0 | BU66: =IF($X$19="LMW",IF(AB66=FALSE,IF(AN66=0,0,IF(C66="Direct Support",AG66*AE66*(1-AI66)+(E66*AL66*(1-AI66)),0)),0),0) -> 0 | BV66: =IF($X$19="LMW",IF(AB66=FALSE,IF(AN66=0,0,IF(C66="Direct Support",T66*AF66*(1-AI66)+(E66*AM66*(1-AI66)),0)),0),0) -> 0 | BW66: =IF($X$19="LMW",IF(AB66=FALSE,IF(AN66=0,0,IF(C66="Direct Support",AE66*(1-AI66),0)),0),0) -> 0 | BX66: =IF($X$19="LMW",IF(AB66=FALSE,IF(AN66=0,0,IF(C66="Direct Support",AF66*(1-AI66),0)),0),0) -> 0 | BY66: 0 | BZ66: 0 | CA66: 0 | CB66: 0 | CC66: 0 | CD66: 0 | CE66: 0 | CF66: 0 | CG66: =(AG66*AE66+(E66*AL66))*AI66*$U$8 -> 0 | CH66: =(AH66*AF66+(E66*AM66))*AI66*$U$8 -> 0 | CI66: =CH66-CG66 -> 0 | CJ66: =AE66*AI66*$U$8 -> 0 | CK66: =AF66*AI66*$U$8 -> 0 | CL66: 0 | CM66: 0 | CN66: 0 | CO66: 0 | CP66: 0 | CQ66: 0 | CR66: 0 | CS66: =(IF($C66=CL$22,($AL66*($AI66)*CL$23),0)+ IF($C66=CM$22,($AL66*($AI66)*CM$23),0)+ IF($C66=CN$22,($AL66*($AI66)*CN$23),0)+ IF($C66=CO$22,($AL66*($AI66)*CO$23),0)+ IF($C66=CP$22,($AL66*($AI66)*CP$23),0)+ IF($C66=CR$22,($AL66*($AI66)*CR$23),0)+ IF($C66=CQ$22,($AL66*($AI66)*CQ$23),0))*$U$8 -> 0 | CT66: 0 | CU66: 0 | CV66: 0 | CW66: 0 | CX66: 0 | CY66: 0 | CZ66: 0 | DA66: =(IF($C66=CT$22,($AM66*($AI66)*CT$23),0)+ IF($C66=CU$22,($AM66*($AI66)*CU$23),0)+ IF($C66=CV$22,($AM66*($AI66)*CV$23),0)+ IF($C66=CW$22,($AM66*($AI66)*CW$23),0)+ IF($C66=CX$22,($AM66*($AI66)*CX$23),0)+ IF($C66=CZ$22,($AM66*($AI66)*CZ$23),0)+ IF($C66=CY$22,($AM66*($AI66)*CY$23),0))*$U$8 -> 0
A67: 41 | N67: =IF($X$19="Reg",TEXT(V67,"0.00"),X67) -> - | O67: =IF($X$19="Reg",TEXT(W67,"0.00"),Y67) -> - | P67: 0 | S67: =IF($X$19="Reg",Y67,TEXT(W67,"0.00")) -> 0 | T67: 0 | V67: - | W67: - | X67: =IF((Y67-D67)>0,Y67-D67,0) -> 0 | Y67: 0 | AA67: TRUE | AB67: FALSE | AC67: =AF67-AE67 -> 0 | AD67: FALSE | AE67: 0 | AF67: 0 | AG67: 0 | AH67: 0 | AI67: 0 | AJ67: 0 | AK67: 0 | AL67: 0 | AM67: 0 | AN67: 1 | AO67: 0 | AP67: 0 | AQ67: 0 | AR67: 0 | AS67: 0 | AT67: 0 | AU67: 0 | AV67: 0 | AW67: 0 | AX67: 0 | AY67: 0 | AZ67: 0 | BA67: 0 | BB67: 0 | BC67: 0 | BD67: 0 | BE67: 0 | BF67: 0 | BG67: 0 | BH67: 0 | BI67: 0 | BJ67: 0 | BK67: 0 | BL67: 0 | BM67: 0 | BN67: 0 | BO67: 0 | BP67: 0 | BQ67: 0 | BR67: 0 | BS67: 0 | BT67: 0 | BU67: 0 | BV67: 0 | BW67: 0 | BX67: 0 | BY67: 0 | BZ67: 0 | CA67: 0 | CB67: 0 | CC67: 0 | CD67: 0 | CE67: 0 | CF67: 0 | CG67: 0 | CH67: 0 | CI67: 0 | CJ67: 0 | CK67: 0 | CL67: 0 | CM67: 0 | CN67: 0 | CO67: 0 | CP67: 0 | CQ67: 0 | CR67: 0 | CS67: 0 | CT67: 0 | CU67: 0 | CV67: 0 | CW67: 0 | CX67: 0 | CY67: 0 | CZ67: 0 | DA67: 0
A68: 42 | N68: - | O68: - | P68: =IF($X$19="Reg",X68,TEXT(V68,"0.00")) -> 0 | S68: 0 | T68: =IF(AND(D68="",E68=""),0,IF(E68="",IF(D68<AH68,AH68,D68),AQ68)) -> 0 | U68: =IF(B68="","",IF(AA68=FALSE,"Yes","No")) ->  | V68: =IFERROR(IF(AE68=0,"-",IF(C68=$AQ$16,(((AE68*AP68))*(1-AI68)+(AE68*AI68*$U$8))/(2080/12*$W$22),((AE68)*(1-AI68)+(AE68*AI68*$U$8))/(2080/12*$W$22))),"-") -> - | W68: =IFERROR(IF(AF68=0,"-",IF(C68=$AQ$16,(((AF68*AP68))*(1-AI68)+(AF68*AI68*$U$8))/(2080/12*$W$22),((AF68)*(1-AI68)+(AF68*AI68*$U$8))/(2080/12*$W$22))),"-") -> - | X68: 0 | Y68: =IF(AND(D68="",E68=""),0,IF(E68="",IF(D68<AH68,AH68,0),0)) -> 0 | AA68: TRUE | AB68: =IF(AND($X$19="LMW",N68>0),TRUE,FALSE) -> FALSE | AC68: 0 | AD68: =IF(E68>0,TRUE,FALSE) -> FALSE | AE68: =IF(AD68=TRUE,(2080/12*$W$22*AL68),G68) -> 0 | AF68: =IF($X$19="LMW",AE68,IF(AD68=TRUE,(2080/12*$W$22*AM68),H68)) -> 0 | AG68: =IF(AD68=TRUE,0,D68) -> 0 | AH68: 0 | AI68: =IF(C68="",0,IF(AND($X$19="LMW",C68="N/A"),0,IF(C68="Administrative",1,F68))) -> 0 | AJ68: =AE68*(1-AI68) -> 0 | AK68: =AF68*(1-AI68) -> 0 | AL68: =IF(AD68=TRUE,G68,IFERROR((G68/(2080/12))/$W$22,0)) -> 0 | AM68: =IF($X$19="LMW",AL68,IF(AD68=TRUE,H68,IFERROR((H68/(2080/12))/$W$22,0))) -> 0 | AN68: =IFERROR(IF($AN$15=TRUE,(IF(K68="",0,VLOOKUP(K68,$AN$8:$AO$12,2,FALSE))),1),0) -> 1 | AO68: =IFERROR(L68/M68,0) -> 0 | AP68: =IFERROR(IF((L68/M68)>1,1,(L68/M68)),0) -> 0 | AQ68: =E68/$W$22/(2080/12) -> 0 | AR68: 0 | AS68: 0 | AT68: 0 | AU68: 0 | AV68: 0 | AW68: =IF($X$19="LMW",0,IF(AN68=0,0,IF(C68=$AQ$18,AG68*AE68*(1-AI68)+(E68*AL68*(1-AI68)),0))) -> 0 | AX68: =IF($X$19="LMW",0,IF(AN68=0,0,IF(C68=$AQ$18,AH68*AF68*(1-AI68)+(E68*AM68*(1-AI68)),0))) -> 0 | AY68: =IF($X$19="LMW",0,IF(AN68=0,0,IF(C68=$AQ$18,AE68*(1-AI68),0))) -> 0 | AZ68: =IF($X$19="LMW",0,IF(AN68=0,0,IF(C68=$AQ$18,AF68*(1-AI68),0))) -> 0 | BA68: =IF($X$19="LMW",0,IF(AN68=0,0,IF(C68=$AQ$19,AG68*AE68*(1-AI68)+(E68*AL68*(1-AI68)),0))) -> 0 | BB68: =IF($X$19="LMW",0,IF(AN68=0,0,IF(C68=$AQ$19,AH68*AF68*(1-AI68)+(E68*AM68*(1-AI68)),0))) -> 0 | BC68: =IF($X$19="LMW",0,IF(AN68=0,0,IF(C68=$AQ$19,AE68*(1-AI68),0))) -> 0 | BD68: =IF($X$19="LMW",0,IF(AN68=0,0,IF(C68=$AQ$19,AF68*(1-AI68),0))) -> 0 | BE68: =IF($X$19="LMW",0,IF(AN68=0,0,IF(C68=$AQ$20,AG68*AE68*(1-AI68)+(E68*AL68*(1-AI68)),0))) -> 0 | BF68: =IF($X$19="LMW",0,IF(AN68=0,0,IF(C68=$AQ$20,AH68*AF68*(1-AI68)+(E68*AM68*(1-AI68)),0))) -> 0 | BG68: =IF($X$19="LMW",0,IF(AN68=0,0,IF(C68=$AQ$20,AE68*(1-AI68),0))) -> 0 | BH68: =IF($X$19="LMW",0,IF(AN68=0,0,IF(C68=$AQ$20,AF68*(1-AI68),0))) -> 0 | BI68: =IF($X$19="LMW",0,IF(AN68=0,0,IF(C68=$AQ$21,AG68*AE68*(1-AI68)+(E68*AL68*(1-AI68)),0))) -> 0 | BJ68: =IF($X$19="LMW",0,IF(AN68=0,0,IF(C68=$AQ$21,AH68*AF68*(1-AI68)+(E68*AM68*(1-AI68)),0))) -> 0 | BK68: =IF($X$19="LMW",0,IF(AN68=0,0,IF(C68=$AQ$21,AE68*(1-AI68),0))) -> 0 | BL68: =IF($X$19="LMW",0,IF(AN68=0,0,IF(C68=$AQ$21,AF68*(1-AI68),0))) -> 0 | BM68: =IF($X$19="Reg",IF(AN68=0,0,IF(C68="Direct Support",AG68*AE68*(1-AI68)+(E68*AL68*(1-AI68)),0)),0) -> 0 | BN68: =IF($X$19="Reg",IF(AN68=0,0,IF(C68="Direct Support",T68*AF68*(1-AI68),0)),0) -> 0 | BO68: =IF($X$19="Reg",IF(AN68=0,0,IF(C68="Direct Support",AE68*(1-AI68),0)),0) -> 0 | BP68: =IF($X$19="Reg",IF(AN68=0,0,IF(C68="Direct Support",AF68*(1-AI68),0)),0) -> 0 | BQ68: =IF($X$19="LMW",IF(AB68=TRUE,IF(AN68=0,0,IF(C68="Direct Support",AG68*AE68*(1-AI68)+(E68*AL68*(1-AI68)),0)),0),0) -> 0 | BR68: =IF($X$19="LMW",IF(AB68=TRUE,IF(AN68=0,0,IF(C68="Direct Support",T68*AF68*(1-AI68)+(E68*AM68*(1-AI68)),0)),0),0) -> 0 | BS68: =IF($X$19="LMW",IF(AB68=TRUE,IF(AN68=0,0,IF(C68="Direct Support",AE68*(1-AI68),0)),0),0) -> 0 | BT68: =IF($X$19="LMW",IF(AB68=TRUE,IF(AN68=0,0,IF(C68="Direct Support",AF68*(1-AI68),0)),0),0) -> 0 | BU68: =IF($X$19="LMW",IF(AB68=FALSE,IF(AN68=0,0,IF(C68="Direct Support",AG68*AE68*(1-AI68)+(E68*AL68*(1-AI68)),0)),0),0) -> 0 | BV68: =IF($X$19="LMW",IF(AB68=FALSE,IF(AN68=0,0,IF(C68="Direct Support",T68*AF68*(1-AI68)+(E68*AM68*(1-AI68)),0)),0),0) -> 0 | BW68: =IF($X$19="LMW",IF(AB68=FALSE,IF(AN68=0,0,IF(C68="Direct Support",AE68*(1-AI68),0)),0),0) -> 0 | BX68: =IF($X$19="LMW",IF(AB68=FALSE,IF(AN68=0,0,IF(C68="Direct Support",AF68*(1-AI68),0)),0),0) -> 0 | BY68: 0 | BZ68: 0 | CA68: 0 | CB68: 0 | CC68: 0 | CD68: 0 | CE68: 0 | CF68: 0 | CG68: =(AG68*AE68+(E68*AL68))*AI68*$U$8 -> 0 | CH68: =(AH68*AF68+(E68*AM68))*AI68*$U$8 -> 0 | CI68: =CH68-CG68 -> 0 | CJ68: =AE68*AI68*$U$8 -> 0 | CK68: =AF68*AI68*$U$8 -> 0 | CL68: 0 | CM68: 0 | CN68: 0 | CO68: 0 | CP68: 0 | CQ68: 0 | CR68: 0 | CS68: =(IF($C68=CL$22,($AL68*($AI68)*CL$23),0)+ IF($C68=CM$22,($AL68*($AI68)*CM$23),0)+ IF($C68=CN$22,($AL68*($AI68)*CN$23),0)+ IF($C68=CO$22,($AL68*($AI68)*CO$23),0)+ IF($C68=CP$22,($AL68*($AI68)*CP$23),0)+ IF($C68=CR$22,($AL68*($AI68)*CR$23),0)+ IF($C68=CQ$22,($AL68*($AI68)*CQ$23),0))*$U$8 -> 0 | CT68: 0 | CU68: 0 | CV68: 0 | CW68: 0 | CX68: 0 | CY68: 0 | CZ68: 0 | DA68: =(IF($C68=CT$22,($AM68*($AI68)*CT$23),0)+ IF($C68=CU$22,($AM68*($AI68)*CU$23),0)+ IF($C68=CV$22,($AM68*($AI68)*CV$23),0)+ IF($C68=CW$22,($AM68*($AI68)*CW$23),0)+ IF($C68=CX$22,($AM68*($AI68)*CX$23),0)+ IF($C68=CZ$22,($AM68*($AI68)*CZ$23),0)+ IF($C68=CY$22,($AM68*($AI68)*CY$23),0))*$U$8 -> 0
A69: 43 | N69: =IF($X$19="Reg",TEXT(V69,"0.00"),X69) -> - | O69: =IF($X$19="Reg",TEXT(W69,"0.00"),Y69) -> - | P69: 0 | S69: =IF($X$19="Reg",Y69,TEXT(W69,"0.00")) -> 0 | T69: 0 | V69: - | W69: - | X69: =IF((Y69-D69)>0,Y69-D69,0) -> 0 | Y69: 0 | AA69: TRUE | AB69: FALSE | AC69: =AF69-AE69 -> 0 | AD69: FALSE | AE69: 0 | AF69: 0 | AG69: 0 | AH69: 0 | AI69: 0 | AJ69: 0 | AK69: 0 | AL69: 0 | AM69: 0 | AN69: 1 | AO69: 0 | AP69: 0 | AQ69: 0 | AR69: 0 | AS69: 0 | AT69: 0 | AU69: 0 | AV69: 0 | AW69: 0 | AX69: 0 | AY69: 0 | AZ69: 0 | BA69: 0 | BB69: 0 | BC69: 0 | BD69: 0 | BE69: 0 | BF69: 0 | BG69: 0 | BH69: 0 | BI69: 0 | BJ69: 0 | BK69: 0 | BL69: 0 | BM69: 0 | BN69: 0 | BO69: 0 | BP69: 0 | BQ69: 0 | BR69: 0 | BS69: 0 | BT69: 0 | BU69: 0 | BV69: 0 | BW69: 0 | BX69: 0 | BY69: 0 | BZ69: 0 | CA69: 0 | CB69: 0 | CC69: 0 | CD69: 0 | CE69: 0 | CF69: 0 | CG69: 0 | CH69: 0 | CI69: 0 | CJ69: 0 | CK69: 0 | CL69: 0 | CM69: 0 | CN69: 0 | CO69: 0 | CP69: 0 | CQ69: 0 | CR69: 0 | CS69: 0 | CT69: 0 | CU69: 0 | CV69: 0 | CW69: 0 | CX69: 0 | CY69: 0 | CZ69: 0 | DA69: 0
A70: 44 | N70: - | O70: - | P70: =IF($X$19="Reg",X70,TEXT(V70,"0.00")) -> 0 | S70: 0 | T70: =IF(AND(D70="",E70=""),0,IF(E70="",IF(D70<AH70,AH70,D70),AQ70)) -> 0 | U70: =IF(B70="","",IF(AA70=FALSE,"Yes","No")) ->  | V70: =IFERROR(IF(AE70=0,"-",IF(C70=$AQ$16,(((AE70*AP70))*(1-AI70)+(AE70*AI70*$U$8))/(2080/12*$W$22),((AE70)*(1-AI70)+(AE70*AI70*$U$8))/(2080/12*$W$22))),"-") -> - | W70: =IFERROR(IF(AF70=0,"-",IF(C70=$AQ$16,(((AF70*AP70))*(1-AI70)+(AF70*AI70*$U$8))/(2080/12*$W$22),((AF70)*(1-AI70)+(AF70*AI70*$U$8))/(2080/12*$W$22))),"-") -> - | X70: 0 | Y70: =IF(AND(D70="",E70=""),0,IF(E70="",IF(D70<AH70,AH70,0),0)) -> 0 | AA70: TRUE | AB70: =IF(AND($X$19="LMW",N70>0),TRUE,FALSE) -> FALSE | AC70: 0 | AD70: =IF(E70>0,TRUE,FALSE) -> FALSE | AE70: =IF(AD70=TRUE,(2080/12*$W$22*AL70),G70) -> 0 | AF70: =IF($X$19="LMW",AE70,IF(AD70=TRUE,(2080/12*$W$22*AM70),H70)) -> 0 | AG70: =IF(AD70=TRUE,0,D70) -> 0 | AH70: 0 | AI70: =IF(C70="",0,IF(AND($X$19="LMW",C70="N/A"),0,IF(C70="Administrative",1,F70))) -> 0 | AJ70: =AE70*(1-AI70) -> 0 | AK70: =AF70*(1-AI70) -> 0 | AL70: =IF(AD70=TRUE,G70,IFERROR((G70/(2080/12))/$W$22,0)) -> 0 | AM70: =IF($X$19="LMW",AL70,IF(AD70=TRUE,H70,IFERROR((H70/(2080/12))/$W$22,0))) -> 0 | AN70: =IFERROR(IF($AN$15=TRUE,(IF(K70="",0,VLOOKUP(K70,$AN$8:$AO$12,2,FALSE))),1),0) -> 1 | AO70: =IFERROR(L70/M70,0) -> 0 | AP70: =IFERROR(IF((L70/M70)>1,1,(L70/M70)),0) -> 0 | AQ70: =E70/$W$22/(2080/12) -> 0 | AR70: 0 | AS70: 0 | AT70: 0 | AU70: 0 | AV70: 0 | AW70: =IF($X$19="LMW",0,IF(AN70=0,0,IF(C70=$AQ$18,AG70*AE70*(1-AI70)+(E70*AL70*(1-AI70)),0))) -> 0 | AX70: =IF($X$19="LMW",0,IF(AN70=0,0,IF(C70=$AQ$18,AH70*AF70*(1-AI70)+(E70*AM70*(1-AI70)),0))) -> 0 | AY70: =IF($X$19="LMW",0,IF(AN70=0,0,IF(C70=$AQ$18,AE70*(1-AI70),0))) -> 0 | AZ70: =IF($X$19="LMW",0,IF(AN70=0,0,IF(C70=$AQ$18,AF70*(1-AI70),0))) -> 0 | BA70: =IF($X$19="LMW",0,IF(AN70=0,0,IF(C70=$AQ$19,AG70*AE70*(1-AI70)+(E70*AL70*(1-AI70)),0))) -> 0 | BB70: =IF($X$19="LMW",0,IF(AN70=0,0,IF(C70=$AQ$19,AH70*AF70*(1-AI70)+(E70*AM70*(1-AI70)),0))) -> 0 | BC70: =IF($X$19="LMW",0,IF(AN70=0,0,IF(C70=$AQ$19,AE70*(1-AI70),0))) -> 0 | BD70: =IF($X$19="LMW",0,IF(AN70=0,0,IF(C70=$AQ$19,AF70*(1-AI70),0))) -> 0 | BE70: =IF($X$19="LMW",0,IF(AN70=0,0,IF(C70=$AQ$20,AG70*AE70*(1-AI70)+(E70*AL70*(1-AI70)),0))) -> 0 | BF70: =IF($X$19="LMW",0,IF(AN70=0,0,IF(C70=$AQ$20,AH70*AF70*(1-AI70)+(E70*AM70*(1-AI70)),0))) -> 0 | BG70: =IF($X$19="LMW",0,IF(AN70=0,0,IF(C70=$AQ$20,AE70*(1-AI70),0))) -> 0 | BH70: =IF($X$19="LMW",0,IF(AN70=0,0,IF(C70=$AQ$20,AF70*(1-AI70),0))) -> 0 | BI70: =IF($X$19="LMW",0,IF(AN70=0,0,IF(C70=$AQ$21,AG70*AE70*(1-AI70)+(E70*AL70*(1-AI70)),0))) -> 0 | BJ70: =IF($X$19="LMW",0,IF(AN70=0,0,IF(C70=$AQ$21,AH70*AF70*(1-AI70)+(E70*AM70*(1-AI70)),0))) -> 0 | BK70: =IF($X$19="LMW",0,IF(AN70=0,0,IF(C70=$AQ$21,AE70*(1-AI70),0))) -> 0 | BL70: =IF($X$19="LMW",0,IF(AN70=0,0,IF(C70=$AQ$21,AF70*(1-AI70),0))) -> 0 | BM70: =IF($X$19="Reg",IF(AN70=0,0,IF(C70="Direct Support",AG70*AE70*(1-AI70)+(E70*AL70*(1-AI70)),0)),0) -> 0 | BN70: =IF($X$19="Reg",IF(AN70=0,0,IF(C70="Direct Support",T70*AF70*(1-AI70),0)),0) -> 0 | BO70: =IF($X$19="Reg",IF(AN70=0,0,IF(C70="Direct Support",AE70*(1-AI70),0)),0) -> 0 | BP70: =IF($X$19="Reg",IF(AN70=0,0,IF(C70="Direct Support",AF70*(1-AI70),0)),0) -> 0 | BQ70: =IF($X$19="LMW",IF(AB70=TRUE,IF(AN70=0,0,IF(C70="Direct Support",AG70*AE70*(1-AI70)+(E70*AL70*(1-AI70)),0)),0),0) -> 0 | BR70: =IF($X$19="LMW",IF(AB70=TRUE,IF(AN70=0,0,IF(C70="Direct Support",T70*AF70*(1-AI70)+(E70*AM70*(1-AI70)),0)),0),0) -> 0 | BS70: =IF($X$19="LMW",IF(AB70=TRUE,IF(AN70=0,0,IF(C70="Direct Support",AE70*(1-AI70),0)),0),0) -> 0 | BT70: =IF($X$19="LMW",IF(AB70=TRUE,IF(AN70=0,0,IF(C70="Direct Support",AF70*(1-AI70),0)),0),0) -> 0 | BU70: =IF($X$19="LMW",IF(AB70=FALSE,IF(AN70=0,0,IF(C70="Direct Support",AG70*AE70*(1-AI70)+(E70*AL70*(1-AI70)),0)),0),0) -> 0 | BV70: =IF($X$19="LMW",IF(AB70=FALSE,IF(AN70=0,0,IF(C70="Direct Support",T70*AF70*(1-AI70)+(E70*AM70*(1-AI70)),0)),0),0) -> 0 | BW70: =IF($X$19="LMW",IF(AB70=FALSE,IF(AN70=0,0,IF(C70="Direct Support",AE70*(1-AI70),0)),0),0) -> 0 | BX70: =IF($X$19="LMW",IF(AB70=FALSE,IF(AN70=0,0,IF(C70="Direct Support",AF70*(1-AI70),0)),0),0) -> 0 | BY70: 0 | BZ70: 0 | CA70: 0 | CB70: 0 | CC70: 0 | CD70: 0 | CE70: 0 | CF70: 0 | CG70: =(AG70*AE70+(E70*AL70))*AI70*$U$8 -> 0 | CH70: =(AH70*AF70+(E70*AM70))*AI70*$U$8 -> 0 | CI70: =CH70-CG70 -> 0 | CJ70: =AE70*AI70*$U$8 -> 0 | CK70: =AF70*AI70*$U$8 -> 0 | CL70: 0 | CM70: 0 | CN70: 0 | CO70: 0 | CP70: 0 | CQ70: 0 | CR70: 0 | CS70: =(IF($C70=CL$22,($AL70*($AI70)*CL$23),0)+ IF($C70=CM$22,($AL70*($AI70)*CM$23),0)+ IF($C70=CN$22,($AL70*($AI70)*CN$23),0)+ IF($C70=CO$22,($AL70*($AI70)*CO$23),0)+ IF($C70=CP$22,($AL70*($AI70)*CP$23),0)+ IF($C70=CR$22,($AL70*($AI70)*CR$23),0)+ IF($C70=CQ$22,($AL70*($AI70)*CQ$23),0))*$U$8 -> 0 | CT70: 0 | CU70: 0 | CV70: 0 | CW70: 0 | CX70: 0 | CY70: 0 | CZ70: 0 | DA70: =(IF($C70=CT$22,($AM70*($AI70)*CT$23),0)+ IF($C70=CU$22,($AM70*($AI70)*CU$23),0)+ IF($C70=CV$22,($AM70*($AI70)*CV$23),0)+ IF($C70=CW$22,($AM70*($AI70)*CW$23),0)+ IF($C70=CX$22,($AM70*($AI70)*CX$23),0)+ IF($C70=CZ$22,($AM70*($AI70)*CZ$23),0)+ IF($C70=CY$22,($AM70*($AI70)*CY$23),0))*$U$8 -> 0
A71: 45 | N71: =IF($X$19="Reg",TEXT(V71,"0.00"),X71) -> - | O71: =IF($X$19="Reg",TEXT(W71,"0.00"),Y71) -> - | P71: 0 | S71: =IF($X$19="Reg",Y71,TEXT(W71,"0.00")) -> 0 | T71: 0 | V71: - | W71: - | X71: =IF((Y71-D71)>0,Y71-D71,0) -> 0 | Y71: 0 | AA71: TRUE | AB71: FALSE | AC71: =AF71-AE71 -> 0 | AD71: FALSE | AE71: 0 | AF71: 0 | AG71: 0 | AH71: 0 | AI71: 0 | AJ71: 0 | AK71: 0 | AL71: 0 | AM71: 0 | AN71: 1 | AO71: 0 | AP71: 0 | AQ71: 0 | AR71: 0 | AS71: 0 | AT71: 0 | AU71: 0 | AV71: 0 | AW71: 0 | AX71: 0 | AY71: 0 | AZ71: 0 | BA71: 0 | BB71: 0 | BC71: 0 | BD71: 0 | BE71: 0 | BF71: 0 | BG71: 0 | BH71: 0 | BI71: 0 | BJ71: 0 | BK71: 0 | BL71: 0 | BM71: 0 | BN71: 0 | BO71: 0 | BP71: 0 | BQ71: 0 | BR71: 0 | BS71: 0 | BT71: 0 | BU71: 0 | BV71: 0 | BW71: 0 | BX71: 0 | BY71: =IF($AN$15=FALSE,(IF(C71=$AQ$16,AG71*AE71*(1-AI71)+(E71*AL71*(1-AI71)),0))*AP71,0) -> 0 | BZ71: =IF($AN$15=FALSE,(IF(C71=$AQ$16,AH71*AF71*(1-AI71)+(E71*AM71*(1-AI71)),0))*AP71,0) -> 0 | CA71: =IF($AN$15=FALSE,(IF(C71="Management",AE71*(1-AI71),0))*AP71,0) -> 0 | CB71: =IF($AN$15=FALSE,(IF(C71="Management",AF71*(1-AI71),0))*AP71,0) -> 0 | CC71: =IF($AN$15=TRUE,(IF(C71=$AQ$16,AG71*AE71*(1-AI71)+(E71*AL71*(1-AI71)),0))*AP71,0) -> 0 | CD71: =IF($AN$15=TRUE,(IF(C71=$AQ$16,AH71*AF71*(1-AI71)+(E71*AM71*(1-AI71)),0))*AP71,0) -> 0 | CE71: =IF($AN$15=TRUE,(IF(C71="Management",AE71*(1-AI71),0))*AP71,0) -> 0 | CF71: =IF($AN$15=TRUE,(IF(C71="Management",AF71*(1-AI71),0))*AP71,0) -> 0 | CG71: 0 | CH71: 0 | CI71: 0 | CJ71: 0 | CK71: 0 | CL71: 0 | CM71: 0 | CN71: 0 | CO71: 0 | CP71: 0 | CQ71: 0 | CR71: 0 | CS71: 0 | CT71: 0 | CU71: 0 | CV71: 0 | CW71: 0 | CX71: 0 | CY71: 0 | CZ71: 0 | DA71: 0
A72: 46 | N72: - | O72: - | P72: =IF($X$19="Reg",X72,TEXT(V72,"0.00")) -> 0 | S72: 0 | T72: =IF(AND(D72="",E72=""),0,IF(E72="",IF(D72<AH72,AH72,D72),AQ72)) -> 0 | U72: =IF(B72="","",IF(AA72=FALSE,"Yes","No")) ->  | V72: =IFERROR(IF(AE72=0,"-",IF(C72=$AQ$16,(((AE72*AP72))*(1-AI72)+(AE72*AI72*$U$8))/(2080/12*$W$22),((AE72)*(1-AI72)+(AE72*AI72*$U$8))/(2080/12*$W$22))),"-") -> - | W72: =IFERROR(IF(AF72=0,"-",IF(C72=$AQ$16,(((AF72*AP72))*(1-AI72)+(AF72*AI72*$U$8))/(2080/12*$W$22),((AF72)*(1-AI72)+(AF72*AI72*$U$8))/(2080/12*$W$22))),"-") -> - | X72: 0 | Y72: =IF(AND(D72="",E72=""),0,IF(E72="",IF(D72<AH72,AH72,0),0)) -> 0 | AA72: TRUE | AB72: =IF(AND($X$19="LMW",N72>0),TRUE,FALSE) -> FALSE | AC72: 0 | AD72: =IF(E72>0,TRUE,FALSE) -> FALSE | AE72: =IF(AD72=TRUE,(2080/12*$W$22*AL72),G72) -> 0 | AF72: =IF($X$19="LMW",AE72,IF(AD72=TRUE,(2080/12*$W$22*AM72),H72)) -> 0 | AG72: =IF(AD72=TRUE,0,D72) -> 0 | AH72: 0 | AI72: =IF(C72="",0,IF(AND($X$19="LMW",C72="N/A"),0,IF(C72="Administrative",1,F72))) -> 0 | AJ72: =AE72*(1-AI72) -> 0 | AK72: =AF72*(1-AI72) -> 0 | AL72: =IF(AD72=TRUE,G72,IFERROR((G72/(2080/12))/$W$22,0)) -> 0 | AM72: =IF($X$19="LMW",AL72,IF(AD72=TRUE,H72,IFERROR((H72/(2080/12))/$W$22,0))) -> 0 | AN72: =IFERROR(IF($AN$15=TRUE,(IF(K72="",0,VLOOKUP(K72,$AN$8:$AO$12,2,FALSE))),1),0) -> 1 | AO72: =IFERROR(L72/M72,0) -> 0 | AP72: =IFERROR(IF((L72/M72)>1,1,(L72/M72)),0) -> 0 | AQ72: =E72/$W$22/(2080/12) -> 0 | AR72: 0 | AS72: 0 | AT72: 0 | AU72: 0 | AV72: 0 | AW72: =IF($X$19="LMW",0,IF(AN72=0,0,IF(C72=$AQ$18,AG72*AE72*(1-AI72)+(E72*AL72*(1-AI72)),0))) -> 0 | AX72: =IF($X$19="LMW",0,IF(AN72=0,0,IF(C72=$AQ$18,AH72*AF72*(1-AI72)+(E72*AM72*(1-AI72)),0))) -> 0 | AY72: =IF($X$19="LMW",0,IF(AN72=0,0,IF(C72=$AQ$18,AE72*(1-AI72),0))) -> 0 | AZ72: =IF($X$19="LMW",0,IF(AN72=0,0,IF(C72=$AQ$18,AF72*(1-AI72),0))) -> 0 | BA72: =IF($X$19="LMW",0,IF(AN72=0,0,IF(C72=$AQ$19,AG72*AE72*(1-AI72)+(E72*AL72*(1-AI72)),0))) -> 0 | BB72: =IF($X$19="LMW",0,IF(AN72=0,0,IF(C72=$AQ$19,AH72*AF72*(1-AI72)+(E72*AM72*(1-AI72)),0))) -> 0 | BC72: =IF($X$19="LMW",0,IF(AN72=0,0,IF(C72=$AQ$19,AE72*(1-AI72),0))) -> 0 | BD72: =IF($X$19="LMW",0,IF(AN72=0,0,IF(C72=$AQ$19,AF72*(1-AI72),0))) -> 0 | BE72: =IF($X$19="LMW",0,IF(AN72=0,0,IF(C72=$AQ$20,AG72*AE72*(1-AI72)+(E72*AL72*(1-AI72)),0))) -> 0 | BF72: =IF($X$19="LMW",0,IF(AN72=0,0,IF(C72=$AQ$20,AH72*AF72*(1-AI72)+(E72*AM72*(1-AI72)),0))) -> 0 | BG72: =IF($X$19="LMW",0,IF(AN72=0,0,IF(C72=$AQ$20,AE72*(1-AI72),0))) -> 0 | BH72: =IF($X$19="LMW",0,IF(AN72=0,0,IF(C72=$AQ$20,AF72*(1-AI72),0))) -> 0 | BI72: =IF($X$19="LMW",0,IF(AN72=0,0,IF(C72=$AQ$21,AG72*AE72*(1-AI72)+(E72*AL72*(1-AI72)),0))) -> 0 | BJ72: =IF($X$19="LMW",0,IF(AN72=0,0,IF(C72=$AQ$21,AH72*AF72*(1-AI72)+(E72*AM72*(1-AI72)),0))) -> 0 | BK72: =IF($X$19="LMW",0,IF(AN72=0,0,IF(C72=$AQ$21,AE72*(1-AI72),0))) -> 0 | BL72: =IF($X$19="LMW",0,IF(AN72=0,0,IF(C72=$AQ$21,AF72*(1-AI72),0))) -> 0 | BM72: =IF($X$19="Reg",IF(AN72=0,0,IF(C72="Direct Support",AG72*AE72*(1-AI72)+(E72*AL72*(1-AI72)),0)),0) -> 0 | BN72: =IF($X$19="Reg",IF(AN72=0,0,IF(C72="Direct Support",T72*AF72*(1-AI72),0)),0) -> 0 | BO72: =IF($X$19="Reg",IF(AN72=0,0,IF(C72="Direct Support",AE72*(1-AI72),0)),0) -> 0 | BP72: =IF($X$19="Reg",IF(AN72=0,0,IF(C72="Direct Support",AF72*(1-AI72),0)),0) -> 0 | BQ72: =IF($X$19="LMW",IF(AB72=TRUE,IF(AN72=0,0,IF(C72="Direct Support",AG72*AE72*(1-AI72)+(E72*AL72*(1-AI72)),0)),0),0) -> 0 | BR72: =IF($X$19="LMW",IF(AB72=TRUE,IF(AN72=0,0,IF(C72="Direct Support",T72*AF72*(1-AI72)+(E72*AM72*(1-AI72)),0)),0),0) -> 0 | BS72: =IF($X$19="LMW",IF(AB72=TRUE,IF(AN72=0,0,IF(C72="Direct Support",AE72*(1-AI72),0)),0),0) -> 0 | BT72: =IF($X$19="LMW",IF(AB72=TRUE,IF(AN72=0,0,IF(C72="Direct Support",AF72*(1-AI72),0)),0),0) -> 0 | BU72: =IF($X$19="LMW",IF(AB72=FALSE,IF(AN72=0,0,IF(C72="Direct Support",AG72*AE72*(1-AI72)+(E72*AL72*(1-AI72)),0)),0),0) -> 0 | BV72: =IF($X$19="LMW",IF(AB72=FALSE,IF(AN72=0,0,IF(C72="Direct Support",T72*AF72*(1-AI72)+(E72*AM72*(1-AI72)),0)),0),0) -> 0 | BW72: =IF($X$19="LMW",IF(AB72=FALSE,IF(AN72=0,0,IF(C72="Direct Support",AE72*(1-AI72),0)),0),0) -> 0 | BX72: =IF($X$19="LMW",IF(AB72=FALSE,IF(AN72=0,0,IF(C72="Direct Support",AF72*(1-AI72),0)),0),0) -> 0 | BY72: =IF($AN$15=FALSE,(IF(C72=$AQ$16,AG72*AE72*(1-AI72)+(E72*AL72*(1-AI72)),0))*AP72,0) -> 0 | BZ72: =IF($AN$15=FALSE,(IF(C72=$AQ$16,AH72*AF72*(1-AI72)+(E72*AM72*(1-AI72)),0))*AP72,0) -> 0 | CA72: =IF($AN$15=FALSE,(IF(C72="Management",AE72*(1-AI72),0))*AP72,0) -> 0 | CB72: =IF($AN$15=FALSE,(IF(C72="Management",AF72*(1-AI72),0))*AP72,0) -> 0 | CC72: =IF($AN$15=TRUE,(IF(C72=$AQ$16,AG72*AE72*(1-AI72)+(E72*AL72*(1-AI72)),0))*AP72,0) -> 0 | CD72: =IF($AN$15=TRUE,(IF(C72=$AQ$16,AH72*AF72*(1-AI72)+(E72*AM72*(1-AI72)),0))*AP72,0) -> 0 | CE72: =IF($AN$15=TRUE,(IF(C72="Management",AE72*(1-AI72),0))*AP72,0) -> 0 | CF72: =IF($AN$15=TRUE,(IF(C72="Management",AF72*(1-AI72),0))*AP72,0) -> 0 | CG72: =(AG72*AE72+(E72*AL72))*AI72*$U$8 -> 0 | CH72: =(AH72*AF72+(E72*AM72))*AI72*$U$8 -> 0 | CI72: =CH72-CG72 -> 0 | CJ72: =AE72*AI72*$U$8 -> 0 | CK72: =AF72*AI72*$U$8 -> 0 | CL72: 0 | CM72: 0 | CN72: 0 | CO72: 0 | CP72: 0 | CQ72: 0 | CR72: 0 | CS72: =(IF($C72=CL$22,($AL72*($AI72)*CL$23),0)+ IF($C72=CM$22,($AL72*($AI72)*CM$23),0)+ IF($C72=CN$22,($AL72*($AI72)*CN$23),0)+ IF($C72=CO$22,($AL72*($AI72)*CO$23),0)+ IF($C72=CP$22,($AL72*($AI72)*CP$23),0)+ IF($C72=CR$22,($AL72*($AI72)*CR$23),0)+ IF($C72=CQ$22,($AL72*($AI72)*CQ$23),0))*$U$8 -> 0 | CT72: 0 | CU72: 0 | CV72: 0 | CW72: 0 | CX72: 0 | CY72: 0 | CZ72: 0 | DA72: =(IF($C72=CT$22,($AM72*($AI72)*CT$23),0)+ IF($C72=CU$22,($AM72*($AI72)*CU$23),0)+ IF($C72=CV$22,($AM72*($AI72)*CV$23),0)+ IF($C72=CW$22,($AM72*($AI72)*CW$23),0)+ IF($C72=CX$22,($AM72*($AI72)*CX$23),0)+ IF($C72=CZ$22,($AM72*($AI72)*CZ$23),0)+ IF($C72=CY$22,($AM72*($AI72)*CY$23),0))*$U$8 -> 0
A73: 47 | N73: =IF($X$19="Reg",TEXT(V73,"0.00"),X73) -> - | O73: =IF($X$19="Reg",TEXT(W73,"0.00"),Y73) -> - | P73: 0 | S73: =IF($X$19="Reg",Y73,TEXT(W73,"0.00")) -> 0 | T73: 0 | V73: - | W73: - | X73: =IF((Y73-D73)>0,Y73-D73,0) -> 0 | Y73: 0 | AA73: TRUE | AB73: FALSE | AC73: =AF73-AE73 -> 0 | AD73: FALSE | AE73: 0 | AF73: 0 | AG73: 0 | AH73: 0 | AI73: 0 | AJ73: 0 | AK73: 0 | AL73: 0 | AM73: 0 | AN73: 1 | AO73: 0 | AP73: 0 | AQ73: 0 | AR73: 0 | AS73: 0 | AT73: 0 | AU73: 0 | AV73: 0 | AW73: 0 | AX73: 0 | AY73: 0 | AZ73: 0 | BA73: 0 | BB73: 0 | BC73: 0 | BD73: 0 | BE73: 0 | BF73: 0 | BG73: 0 | BH73: 0 | BI73: 0 | BJ73: 0 | BK73: 0 | BL73: 0 | BM73: 0 | BN73: 0 | BO73: 0 | BP73: 0 | BQ73: 0 | BR73: 0 | BS73: 0 | BT73: 0 | BU73: 0 | BV73: 0 | BW73: 0 | BX73: 0 | BY73: 0 | BZ73: 0 | CA73: 0 | CB73: 0 | CC73: 0 | CD73: 0 | CE73: 0 | CF73: 0 | CG73: 0 | CH73: 0 | CI73: 0 | CJ73: 0 | CK73: 0 | CL73: 0 | CM73: 0 | CN73: 0 | CO73: 0 | CP73: 0 | CQ73: 0 | CR73: 0 | CS73: 0 | CT73: 0 | CU73: 0 | CV73: 0 | CW73: 0 | CX73: 0 | CY73: 0 | CZ73: 0 | DA73: 0
A74: 48 | N74: - | O74: - | P74: =IF($X$19="Reg",X74,TEXT(V74,"0.00")) -> 0 | S74: 0 | T74: =IF(AND(D74="",E74=""),0,IF(E74="",IF(D74<AH74,AH74,D74),AQ74)) -> 0 | U74: =IF(B74="","",IF(AA74=FALSE,"Yes","No")) ->  | V74: =IFERROR(IF(AE74=0,"-",IF(C74=$AQ$16,(((AE74*AP74))*(1-AI74)+(AE74*AI74*$U$8))/(2080/12*$W$22),((AE74)*(1-AI74)+(AE74*AI74*$U$8))/(2080/12*$W$22))),"-") -> - | W74: =IFERROR(IF(AF74=0,"-",IF(C74=$AQ$16,(((AF74*AP74))*(1-AI74)+(AF74*AI74*$U$8))/(2080/12*$W$22),((AF74)*(1-AI74)+(AF74*AI74*$U$8))/(2080/12*$W$22))),"-") -> - | X74: 0 | Y74: =IF(AND(D74="",E74=""),0,IF(E74="",IF(D74<AH74,AH74,0),0)) -> 0 | AA74: TRUE | AB74: =IF(AND($X$19="LMW",N74>0),TRUE,FALSE) -> FALSE | AC74: 0 | AD74: =IF(E74>0,TRUE,FALSE) -> FALSE | AE74: =IF(AD74=TRUE,(2080/12*$W$22*AL74),G74) -> 0 | AF74: =IF($X$19="LMW",AE74,IF(AD74=TRUE,(2080/12*$W$22*AM74),H74)) -> 0 | AG74: =IF(AD74=TRUE,0,D74) -> 0 | AH74: 0 | AI74: =IF(C74="",0,IF(AND($X$19="LMW",C74="N/A"),0,IF(C74="Administrative",1,F74))) -> 0 | AJ74: =AE74*(1-AI74) -> 0 | AK74: =AF74*(1-AI74) -> 0 | AL74: =IF(AD74=TRUE,G74,IFERROR((G74/(2080/12))/$W$22,0)) -> 0 | AM74: =IF($X$19="LMW",AL74,IF(AD74=TRUE,H74,IFERROR((H74/(2080/12))/$W$22,0))) -> 0 | AN74: =IFERROR(IF($AN$15=TRUE,(IF(K74="",0,VLOOKUP(K74,$AN$8:$AO$12,2,FALSE))),1),0) -> 1 | AO74: =IFERROR(L74/M74,0) -> 0 | AP74: =IFERROR(IF((L74/M74)>1,1,(L74/M74)),0) -> 0 | AQ74: =E74/$W$22/(2080/12) -> 0 | AR74: 0 | AS74: 0 | AT74: 0 | AU74: 0 | AV74: 0 | AW74: =IF($X$19="LMW",0,IF(AN74=0,0,IF(C74=$AQ$18,AG74*AE74*(1-AI74)+(E74*AL74*(1-AI74)),0))) -> 0 | AX74: =IF($X$19="LMW",0,IF(AN74=0,0,IF(C74=$AQ$18,AH74*AF74*(1-AI74)+(E74*AM74*(1-AI74)),0))) -> 0 | AY74: =IF($X$19="LMW",0,IF(AN74=0,0,IF(C74=$AQ$18,AE74*(1-AI74),0))) -> 0 | AZ74: =IF($X$19="LMW",0,IF(AN74=0,0,IF(C74=$AQ$18,AF74*(1-AI74),0))) -> 0 | BA74: =IF($X$19="LMW",0,IF(AN74=0,0,IF(C74=$AQ$19,AG74*AE74*(1-AI74)+(E74*AL74*(1-AI74)),0))) -> 0 | BB74: =IF($X$19="LMW",0,IF(AN74=0,0,IF(C74=$AQ$19,AH74*AF74*(1-AI74)+(E74*AM74*(1-AI74)),0))) -> 0 | BC74: =IF($X$19="LMW",0,IF(AN74=0,0,IF(C74=$AQ$19,AE74*(1-AI74),0))) -> 0 | BD74: =IF($X$19="LMW",0,IF(AN74=0,0,IF(C74=$AQ$19,AF74*(1-AI74),0))) -> 0 | BE74: =IF($X$19="LMW",0,IF(AN74=0,0,IF(C74=$AQ$20,AG74*AE74*(1-AI74)+(E74*AL74*(1-AI74)),0))) -> 0 | BF74: =IF($X$19="LMW",0,IF(AN74=0,0,IF(C74=$AQ$20,AH74*AF74*(1-AI74)+(E74*AM74*(1-AI74)),0))) -> 0 | BG74: =IF($X$19="LMW",0,IF(AN74=0,0,IF(C74=$AQ$20,AE74*(1-AI74),0))) -> 0 | BH74: =IF($X$19="LMW",0,IF(AN74=0,0,IF(C74=$AQ$20,AF74*(1-AI74),0))) -> 0 | BI74: =IF($X$19="LMW",0,IF(AN74=0,0,IF(C74=$AQ$21,AG74*AE74*(1-AI74)+(E74*AL74*(1-AI74)),0))) -> 0 | BJ74: =IF($X$19="LMW",0,IF(AN74=0,0,IF(C74=$AQ$21,AH74*AF74*(1-AI74)+(E74*AM74*(1-AI74)),0))) -> 0 | BK74: =IF($X$19="LMW",0,IF(AN74=0,0,IF(C74=$AQ$21,AE74*(1-AI74),0))) -> 0 | BL74: =IF($X$19="LMW",0,IF(AN74=0,0,IF(C74=$AQ$21,AF74*(1-AI74),0))) -> 0 | BM74: =IF($X$19="Reg",IF(AN74=0,0,IF(C74="Direct Support",AG74*AE74*(1-AI74)+(E74*AL74*(1-AI74)),0)),0) -> 0 | BN74: =IF($X$19="Reg",IF(AN74=0,0,IF(C74="Direct Support",T74*AF74*(1-AI74),0)),0) -> 0 | BO74: =IF($X$19="Reg",IF(AN74=0,0,IF(C74="Direct Support",AE74*(1-AI74),0)),0) -> 0 | BP74: =IF($X$19="Reg",IF(AN74=0,0,IF(C74="Direct Support",AF74*(1-AI74),0)),0) -> 0 | BQ74: =IF($X$19="LMW",IF(AB74=TRUE,IF(AN74=0,0,IF(C74="Direct Support",AG74*AE74*(1-AI74)+(E74*AL74*(1-AI74)),0)),0),0) -> 0 | BR74: =IF($X$19="LMW",IF(AB74=TRUE,IF(AN74=0,0,IF(C74="Direct Support",T74*AF74*(1-AI74)+(E74*AM74*(1-AI74)),0)),0),0) -> 0 | BS74: =IF($X$19="LMW",IF(AB74=TRUE,IF(AN74=0,0,IF(C74="Direct Support",AE74*(1-AI74),0)),0),0) -> 0 | BT74: =IF($X$19="LMW",IF(AB74=TRUE,IF(AN74=0,0,IF(C74="Direct Support",AF74*(1-AI74),0)),0),0) -> 0 | BU74: =IF($X$19="LMW",IF(AB74=FALSE,IF(AN74=0,0,IF(C74="Direct Support",AG74*AE74*(1-AI74)+(E74*AL74*(1-AI74)),0)),0),0) -> 0 | BV74: =IF($X$19="LMW",IF(AB74=FALSE,IF(AN74=0,0,IF(C74="Direct Support",T74*AF74*(1-AI74)+(E74*AM74*(1-AI74)),0)),0),0) -> 0 | BW74: =IF($X$19="LMW",IF(AB74=FALSE,IF(AN74=0,0,IF(C74="Direct Support",AE74*(1-AI74),0)),0),0) -> 0 | BX74: =IF($X$19="LMW",IF(AB74=FALSE,IF(AN74=0,0,IF(C74="Direct Support",AF74*(1-AI74),0)),0),0) -> 0 | BY74: 0 | BZ74: 0 | CA74: 0 | CB74: 0 | CC74: 0 | CD74: 0 | CE74: 0 | CF74: 0 | CG74: =(AG74*AE74+(E74*AL74))*AI74*$U$8 -> 0 | CH74: =(AH74*AF74+(E74*AM74))*AI74*$U$8 -> 0 | CI74: =CH74-CG74 -> 0 | CJ74: =AE74*AI74*$U$8 -> 0 | CK74: =AF74*AI74*$U$8 -> 0 | CL74: 0 | CM74: 0 | CN74: 0 | CO74: 0 | CP74: 0 | CQ74: 0 | CR74: 0 | CS74: =(IF($C74=CL$22,($AL74*($AI74)*CL$23),0)+ IF($C74=CM$22,($AL74*($AI74)*CM$23),0)+ IF($C74=CN$22,($AL74*($AI74)*CN$23),0)+ IF($C74=CO$22,($AL74*($AI74)*CO$23),0)+ IF($C74=CP$22,($AL74*($AI74)*CP$23),0)+ IF($C74=CR$22,($AL74*($AI74)*CR$23),0)+ IF($C74=CQ$22,($AL74*($AI74)*CQ$23),0))*$U$8 -> 0 | CT74: 0 | CU74: 0 | CV74: 0 | CW74: 0 | CX74: 0 | CY74: 0 | CZ74: 0 | DA74: =(IF($C74=CT$22,($AM74*($AI74)*CT$23),0)+ IF($C74=CU$22,($AM74*($AI74)*CU$23),0)+ IF($C74=CV$22,($AM74*($AI74)*CV$23),0)+ IF($C74=CW$22,($AM74*($AI74)*CW$23),0)+ IF($C74=CX$22,($AM74*($AI74)*CX$23),0)+ IF($C74=CZ$22,($AM74*($AI74)*CZ$23),0)+ IF($C74=CY$22,($AM74*($AI74)*CY$23),0))*$U$8 -> 0
A75: 49 | N75: =IF($X$19="Reg",TEXT(V75,"0.00"),X75) -> - | O75: =IF($X$19="Reg",TEXT(W75,"0.00"),Y75) -> - | P75: 0 | S75: =IF($X$19="Reg",Y75,TEXT(W75,"0.00")) -> 0 | T75: 0 | V75: - | W75: - | X75: =IF((Y75-D75)>0,Y75-D75,0) -> 0 | Y75: 0 | AA75: TRUE | AB75: FALSE | AC75: =AF75-AE75 -> 0 | AD75: FALSE | AE75: 0 | AF75: 0 | AG75: 0 | AH75: 0 | AI75: 0 | AJ75: 0 | AK75: 0 | AL75: 0 | AM75: 0 | AN75: 1 | AO75: 0 | AP75: 0 | AQ75: 0 | AR75: 0 | AS75: 0 | AT75: 0 | AU75: 0 | AV75: 0 | AW75: 0 | AX75: 0 | AY75: 0 | AZ75: 0 | BA75: 0 | BB75: 0 | BC75: 0 | BD75: 0 | BE75: 0 | BF75: 0 | BG75: 0 | BH75: 0 | BI75: 0 | BJ75: 0 | BK75: 0 | BL75: 0 | BM75: 0 | BN75: 0 | BO75: 0 | BP75: 0 | BQ75: 0 | BR75: 0 | BS75: 0 | BT75: 0 | BU75: 0 | BV75: 0 | BW75: 0 | BX75: 0 | BY75: 0 | BZ75: 0 | CA75: 0 | CB75: 0 | CC75: 0 | CD75: 0 | CE75: 0 | CF75: 0 | CG75: 0 | CH75: 0 | CI75: 0 | CJ75: 0 | CK75: 0 | CL75: 0 | CM75: 0 | CN75: 0 | CO75: 0 | CP75: 0 | CQ75: 0 | CR75: 0 | CS75: 0 | CT75: 0 | CU75: 0 | CV75: 0 | CW75: 0 | CX75: 0 | CY75: 0 | CZ75: 0 | DA75: 0
A76: =A75+1 -> 50 | N76: =IF($X$19="Reg",TEXT(V76,"0.00"),X76) -> - | O76: =IF($X$19="Reg",TEXT(W76,"0.00"),Y76) -> - | P76: =IF($X$19="Reg",X76,TEXT(V76,"0.00")) -> 0 | S76: =IF($X$19="Reg",Y76,TEXT(W76,"0.00")) -> 0 | T76: =IF(AND(D76="",E76=""),0,IF(E76="",IF(D76<AH76,AH76,D76),AQ76)) -> 0 | U76: =IF(B76="","",IF(AA76=FALSE,"Yes","No")) ->  | V76: =IFERROR(IF(AE76=0,"-",IF(C76=$AQ$16,(((AE76*AP76))*(1-AI76)+(AE76*AI76*$U$8))/(2080/12*$W$22),((AE76)*(1-AI76)+(AE76*AI76*$U$8))/(2080/12*$W$22))),"-") -> - | W76: =IFERROR(IF(AF76=0,"-",IF(C76=$AQ$16,(((AF76*AP76))*(1-AI76)+(AF76*AI76*$U$8))/(2080/12*$W$22),((AF76)*(1-AI76)+(AF76*AI76*$U$8))/(2080/12*$W$22))),"-") -> - | X76: =IF((Y76-D76)>0,Y76-D76,0) -> 0 | Y76: =IF(AND(D76="",E76=""),0,IF(E76="",IF(D76<AH76,AH76,0),0)) -> 0 | AA76: TRUE | AB76: =IF(AND($X$19="LMW",N76>0),TRUE,FALSE) -> FALSE | AC76: =AF76-AE76 -> 0 | AD76: =IF(E76>0,TRUE,FALSE) -> FALSE | AE76: =IF(AD76=TRUE,(2080/12*$W$22*AL76),G76) -> 0 | AF76: =IF($X$19="LMW",AE76,IF(AD76=TRUE,(2080/12*$W$22*AM76),H76)) -> 0 | AG76: =IF(AD76=TRUE,0,D76) -> 0 | AH76: 0 | AI76: =IF(C76="",0,IF(AND($X$19="LMW",C76="N/A"),0,IF(C76="Administrative",1,F76))) -> 0 | AJ76: =AE76*(1-AI76) -> 0 | AK76: =AF76*(1-AI76) -> 0 | AL76: =IF(AD76=TRUE,G76,IFERROR((G76/(2080/12))/$W$22,0)) -> 0 | AM76: =IF($X$19="LMW",AL76,IF(AD76=TRUE,H76,IFERROR((H76/(2080/12))/$W$22,0))) -> 0 | AN76: =IFERROR(IF($AN$15=TRUE,(IF(K76="",0,VLOOKUP(K76,$AN$8:$AO$12,2,FALSE))),1),0) -> 1 | AO76: =IFERROR(L76/M76,0) -> 0 | AP76: =IFERROR(IF((L76/M76)>1,1,(L76/M76)),0) -> 0 | AQ76: =E76/$W$22/(2080/12) -> 0 | AR76: 0 | AS76: 0 | AT76: 0 | AU76: 0 | AV76: 0 | AW76: =IF($X$19="LMW",0,IF(AN76=0,0,IF(C76=$AQ$18,AG76*AE76*(1-AI76)+(E76*AL76*(1-AI76)),0))) -> 0 | AX76: =IF($X$19="LMW",0,IF(AN76=0,0,IF(C76=$AQ$18,AH76*AF76*(1-AI76)+(E76*AM76*(1-AI76)),0))) -> 0 | AY76: =IF($X$19="LMW",0,IF(AN76=0,0,IF(C76=$AQ$18,AE76*(1-AI76),0))) -> 0 | AZ76: =IF($X$19="LMW",0,IF(AN76=0,0,IF(C76=$AQ$18,AF76*(1-AI76),0))) -> 0 | BA76: =IF($X$19="LMW",0,IF(AN76=0,0,IF(C76=$AQ$19,AG76*AE76*(1-AI76)+(E76*AL76*(1-AI76)),0))) -> 0 | BB76: =IF($X$19="LMW",0,IF(AN76=0,0,IF(C76=$AQ$19,AH76*AF76*(1-AI76)+(E76*AM76*(1-AI76)),0))) -> 0 | BC76: =IF($X$19="LMW",0,IF(AN76=0,0,IF(C76=$AQ$19,AE76*(1-AI76),0))) -> 0 | BD76: =IF($X$19="LMW",0,IF(AN76=0,0,IF(C76=$AQ$19,AF76*(1-AI76),0))) -> 0 | BE76: =IF($X$19="LMW",0,IF(AN76=0,0,IF(C76=$AQ$20,AG76*AE76*(1-AI76)+(E76*AL76*(1-AI76)),0))) -> 0 | BF76: =IF($X$19="LMW",0,IF(AN76=0,0,IF(C76=$AQ$20,AH76*AF76*(1-AI76)+(E76*AM76*(1-AI76)),0))) -> 0 | BG76: =IF($X$19="LMW",0,IF(AN76=0,0,IF(C76=$AQ$20,AE76*(1-AI76),0))) -> 0 | BH76: =IF($X$19="LMW",0,IF(AN76=0,0,IF(C76=$AQ$20,AF76*(1-AI76),0))) -> 0 | BI76: =IF($X$19="LMW",0,IF(AN76=0,0,IF(C76=$AQ$21,AG76*AE76*(1-AI76)+(E76*AL76*(1-AI76)),0))) -> 0 | BJ76: =IF($X$19="LMW",0,IF(AN76=0,0,IF(C76=$AQ$21,AH76*AF76*(1-AI76)+(E76*AM76*(1-AI76)),0))) -> 0 | BK76: =IF($X$19="LMW",0,IF(AN76=0,0,IF(C76=$AQ$21,AE76*(1-AI76),0))) -> 0 | BL76: =IF($X$19="LMW",0,IF(AN76=0,0,IF(C76=$AQ$21,AF76*(1-AI76),0))) -> 0 | BM76: =IF($X$19="Reg",IF(AN76=0,0,IF(C76="Direct Support",AG76*AE76*(1-AI76)+(E76*AL76*(1-AI76)),0)),0) -> 0 | BN76: =IF($X$19="Reg",IF(AN76=0,0,IF(C76="Direct Support",T76*AF76*(1-AI76),0)),0) -> 0 | BO76: =IF($X$19="Reg",IF(AN76=0,0,IF(C76="Direct Support",AE76*(1-AI76),0)),0) -> 0 | BP76: =IF($X$19="Reg",IF(AN76=0,0,IF(C76="Direct Support",AF76*(1-AI76),0)),0) -> 0 | BQ76: =IF($X$19="LMW",IF(AB76=TRUE,IF(AN76=0,0,IF(C76="Direct Support",AG76*AE76*(1-AI76)+(E76*AL76*(1-AI76)),0)),0),0) -> 0 | BR76: =IF($X$19="LMW",IF(AB76=TRUE,IF(AN76=0,0,IF(C76="Direct Support",T76*AF76*(1-AI76)+(E76*AM76*(1-AI76)),0)),0),0) -> 0 | BS76: =IF($X$19="LMW",IF(AB76=TRUE,IF(AN76=0,0,IF(C76="Direct Support",AE76*(1-AI76),0)),0),0) -> 0 | BT76: =IF($X$19="LMW",IF(AB76=TRUE,IF(AN76=0,0,IF(C76="Direct Support",AF76*(1-AI76),0)),0),0) -> 0 | BU76: =IF($X$19="LMW",IF(AB76=FALSE,IF(AN76=0,0,IF(C76="Direct Support",AG76*AE76*(1-AI76)+(E76*AL76*(1-AI76)),0)),0),0) -> 0 | BV76: =IF($X$19="LMW",IF(AB76=FALSE,IF(AN76=0,0,IF(C76="Direct Support",T76*AF76*(1-AI76)+(E76*AM76*(1-AI76)),0)),0),0) -> 0 | BW76: =IF($X$19="LMW",IF(AB76=FALSE,IF(AN76=0,0,IF(C76="Direct Support",AE76*(1-AI76),0)),0),0) -> 0 | BX76: =IF($X$19="LMW",IF(AB76=FALSE,IF(AN76=0,0,IF(C76="Direct Support",AF76*(1-AI76),0)),0),0) -> 0 | BY76: 0 | BZ76: 0 | CA76: 0 | CB76: 0 | CC76: 0 | CD76: 0 | CE76: 0 | CF76: 0 | CG76: =(AG76*AE76+(E76*AL76))*AI76*$U$8 -> 0 | CH76: =(AH76*AF76+(E76*AM76))*AI76*$U$8 -> 0 | CI76: =CH76-CG76 -> 0 | CJ76: =AE76*AI76*$U$8 -> 0 | CK76: =AF76*AI76*$U$8 -> 0 | CL76: =IF($C76=CL$22,($AL76*(1-$AI76)*CL$23),0) -> 0 | CM76: 0 | CN76: 0 | CO76: =IF($C76=CO$22,($AL76*(1-$AI76)*CO$23),0) -> 0 | CP76: 0 | CQ76: 0 | CR76: 0 | CS76: =(IF($C76=CL$22,($AL76*($AI76)*CL$23),0)+ IF($C76=CM$22,($AL76*($AI76)*CM$23),0)+ IF($C76=CN$22,($AL76*($AI76)*CN$23),0)+ IF($C76=CO$22,($AL76*($AI76)*CO$23),0)+ IF($C76=CP$22,($AL76*($AI76)*CP$23),0)+ IF($C76=CR$22,($AL76*($AI76)*CR$23),0)+ IF($C76=CQ$22,($AL76*($AI76)*CQ$23),0))*$U$8 -> 0 | CT76: =IF($C76=CT$22,($AM76*(1-$AI76)*CT$23),0) -> 0 | CU76: 0 | CV76: 0 | CW76: =IF($C76=CW$22,($AM76*(1-$AI76)*CW$23),0) -> 0 | CX76: 0 | CY76: 0 | CZ76: 0 | DA76: =(IF($C76=CT$22,($AM76*($AI76)*CT$23),0)+ IF($C76=CU$22,($AM76*($AI76)*CU$23),0)+ IF($C76=CV$22,($AM76*($AI76)*CV$23),0)+ IF($C76=CW$22,($AM76*($AI76)*CW$23),0)+ IF($C76=CX$22,($AM76*($AI76)*CX$23),0)+ IF($C76=CZ$22,($AM76*($AI76)*CZ$23),0)+ IF($C76=CY$22,($AM76*($AI76)*CY$23),0))*$U$8 -> 0
AC77: =H77-G77 -> 0 | AD77: FALSE | AE77: 0 | AF77: 0 | AH77: 0 | AI77: 0 | AJ77: 0 | AK77: 0 | AL77: 0 | AM77: 0 | AN77: 1 | AO77: 0 | AP77: 0 | AQ77: 0 | AR77: 0 | AS77: 0 | AT77: 0 | AU77: 0 | AV77: 0 | AW77: 0 | AX77: 0 | AY77: 0 | AZ77: 0 | BA77: 0 | BB77: 0 | BC77: 0 | BD77: 0 | BE77: 0 | BF77: 0 | BG77: 0 | BH77: 0 | BI77: 0 | BJ77: 0 | BK77: 0 | BL77: 0 | BM77: 0 | BN77: 0 | BO77: 0 | BP77: 0 | BQ77: 0 | BR77: 0 | BS77: 0 | BT77: 0 | BU77: 0 | BV77: 0 | BW77: 0 | BX77: 0 | BY77: 0 | BZ77: 0 | CA77: 0 | CB77: 0 | CC77: 0 | CD77: 0 | CE77: 0 | CF77: 0 | CG77: 0 | CH77: 0 | CI77: 0 | CJ77: 0 | CK77: 0 | CL77: 0 | CM77: 0 | CN77: 0 | CO77: 0 | CP77: 0 | CQ77: 0 | CR77: 0 | CS77: 0 | CT77: 0 | CU77: 0 | CV77: 0 | CW77: 0 | CX77: 0 | CY77: 0 | CZ77: 0 | DA77: 0
A78: Provide justification below for proposed wage increases, staff positions, or hour changes. Explain why these changes are necessary for Health & Safety needs. | AH78: =IF($AC$1="YES",IFERROR(VLOOKUP(I78,$K$4:$O$10,5,FALSE),0),0) -> 0 | AL78: =SUM(AL27:AL77) -> 0 | AM78: =SUM(AM27:AM77) -> 0 | AN78: 1 | AR78: =SUM(AR27:AR77) -> 0 | AS78: 0 | AT78: 0 | AU78: 0 | AV78: 0 | AW78: 0 | AX78: 0 | AY78: 0 | AZ78: 0 | BA78: 0 | BB78: 0 | BC78: 0 | BD78: 0 | BE78: 0 | BF78: 0 | BG78: 0 | BH78: 0 | BI78: 0 | BJ78: 0 | BK78: 0 | BL78: 0 | BM78: 0 | BN78: 0 | BO78: 0 | BP78: 0 | BQ78: 0 | BR78: 0 | BS78: 0 | BT78: 0 | BU78: 0 | BV78: 0 | BW78: 0 | BX78: =SUM(BX27:BX77) -> 0 | BY78: 0 | BZ78: 0 | CA78: 0 | CB78: 0 | CC78: 0 | CD78: 0 | CE78: 0 | CF78: 0 | CG78: 0 | CH78: 0 | CI78: 0 | CJ78: 0 | CK78: 0 | CL78: 0 | CM78: 0 | CN78: 0 | CO78: 0 | CP78: 0 | CQ78: 0 | CR78: 0 | CS78: 0 | CT78: 0 | CU78: 0 | CV78: 0 | CW78: 0 | CX78: 0 | CY78: 0 | CZ78: 0 | DA78: 0
CG80: # of Admin w/ increase | CI80: =COUNTIF(CI27:CI76,">0") -> 0
CG81: Yes/No | CI81: =IF(CI80>0,"Yes","No") -> No

Sheet B
A1: SECTION B: PROGRAM COSTS
J2: Wages | K2: Benefits
B3: Service Provider Name | C3: =IF(A!C4="","",A!C4) ->  | I3: Calculated Direct Support Wages (Original) | J3: =A!BM78/A!BO78 ->  | K3: =C17 -> 0
B4: Vendor Number | C4: =IF(A!C5="","",A!C5) ->  | I4: Calculated Direct Support Wages (Revised) | J4: =A!BN78/A!BP78 ->  | K4: =C17 -> 0
B5: Service Code | C5: =IF(A!C7="","",A!C7) ->  | I5: Calculated Management Wages (Original) | J5: =(A!BY78+A!CC78)/(A!CA78+A!CE78) ->  | K5: =C18 -> 0
B6: Vendoring Regional Center | C6: =IF(A!C17="","",A!C17) ->  | I6: Calculated Management Wages (Revised) | J6: =(A!BZ78+A!CD78)/(A!CB78+A!CF78) ->  | K6: =C18 -> 0
I7: Calculated Administrative Wages (Original) | J7: =A!CG78/A!CJ78 ->  | K7: =IFERROR(A!CS78*(1/(A!CJ78/(2080/12))),0) -> 0
B8: ="Payroll & Liability Costs ("&TEXT((SUM(C10:C14)+SUM(H10:H14)),"0.00%")&" Total)" -> Payroll & Liability Costs (8.35% Total) | I8: Calculated Administrative Wages (Revised) | J8: =A!CH78/A!CK78 ->  | K8: =IFERROR(A!DA78*(1/(A!CK78/(2080/12))),0) -> 0
A9: Employer Payroll Taxes - Federal | E9: Employer Payroll Taxes - State | I9: Administrative Ratio | J9: =A!CJ24 -> 0
B10: Social Security / FICA | C10: 0.062 | E10: SUI (CA State Unemployment Ins.) | I10: Calculated Other1 Wages (Original) | J10: =A!AW78/A!AY78 ->  | K10: =H17 -> 0
B11: Medicare Tax | C11: 0.0145 | E11: ETT (CA Employment Training Tax) | H11: 0.001 | I11: Calucalted Other1 Wages (Revised) | J11: =A!AX78/A!AZ78 ->  | K11: =H17 -> 0
B12: State & Federal Unemployment Tax | C12: 0.006 | I12: Calculated Other2 Wages (Original) | J12: =A!BA78/A!BC78 ->  | K12: =H18 -> 0
A13: Misc. Mandated Costs | I13: Calucalted Other2 Wages (Revised) | J13: =A!BB78/A!BD78 ->  | K13: =H18 -> 0
B14: Workers Compensation | I14: Calculated Other3 Wages (Original) | J14: =A!BE78/A!BG78 ->  | K14: =H19 -> 0
A15: Mandatory Costs Total % | C15: =ROUND(SUM(C10:C14)+SUM(H10:H14),4) -> 0.0835 | I15: Calucalted Other1 Wages (Revised)
B16: ="Benefits per FTE ("&D!L2&" Month)" -> Benefits per FTE (3 Month) | I16: Calculated Other3 Wages (Revised) | J16: =A!BF78/A!BH78 ->  | K16: =H19 -> 0
B17: Direct Support - Benefits | E17: =IF(J24="LMW","",I36&" Support - Benefits") -> Other #1 Support - Benefits | I17: Calculated Other4 Wages (Original) | J17: =A!BI78/A!BK78 ->  | K17: =H20 -> 0
B18: Management - Benefits | E18: =IF(J24="LMW","",I37&" Support - Benefits") -> Other #2 Support - Benefits | I18: Calculated Other4 Wages (Revised) | J18: =A!BJ78/A!BL78 ->  | K18: =H20 -> 0
B19: Administrative - Benefits | E19: =IF(J24="LMW","",I38&" Support - Benefits") -> Other #3 Support - Benefits | I19: Calculated DSP (Original)-LMW | J19: =A!BQ78/A!BS78 ->  | K19: =C17 -> 0
E20: =IF(J24="LMW","",I39&" Support - Benefits") -> Other #4 Support - Benefits | I20: Calculated DSP (Revised)-LMW | J20: =A!BR78/A!BT78 ->  | K20: =C17 -> 0
I21: Calculated DSP (Original)-Non LMW | J21: =A!BU78/A!BW78 ->  | K21: =C17 -> 0
B22: ="Operations Costs ("&D!L2&" Month"&K29&" - "&A!C13&")" -> Operations Costs (3 Months - ) | I22: Calculated DSP (Revised)-Non LMW | J22: =A!BV78/A!BX78 ->  | K22: =C17 -> 0
B23: Lease/Mortgage | E23: Community Care Licence Renewal Costs
B24: Utilities | E24: Transportation | I24: H&S Type | J24: =A!W13 -> Reg
A25: License Renewal Costs | E25: Transportation Repair
I27: Increase of Existing Service? | J27: =A!AC1 -> Yes
I28: =IF(J27="Yes"," Billed","") -> Billed
I29: # of Months | J29: =A!W22 -> 3 | K29: =IF(J29=1,"","s") -> s
B31: ="Program Costs (Describe) - "&TEXT(J64,"0.0%")&" Allocation" -> Program Costs (Describe) - 0.0% Allocation | G31: Current Cost | H31: Proposed Cost
A32: 1.
A33: 2.
A34: 3.
A35: 4.
A36: 5. | I36: =D!K11 -> Other #1
B37: Consumer Specific Program Costs (Describe) - 100% Allocation | G37: Current Cost | H37: Proposed Cost | I37: =D!K14 -> Other #2
A38: 1. | I38: =D!K17 -> Other #3
A39: 2. | I39: =D!K20 -> Other #4
A40: 3. | I40: Yes
A41: 4. | I41: No
A42: 5.
B44: ="Program Consultants - "&TEXT(J65,"0.0%")& " Allocation" -> Program Consultants - 0.0% Allocation | F44: Hourly Rate | G44: Current Hours | H44: Proposed Hours | I44: Current Budget Cost | J44: Proposed Budget Cost
G45: ="("&D!L2&" Month"&K29&")" -> (3 Months) | H45: ="("&D!L2&" Month"&K29&")" -> (3 Months)
A46: 1. | I46: =F46*G46*$J$65 -> 0 | J46: =F46*H46*$J$65 -> 0
A47: 2. | I47: =F47*G47*$J$65 -> 0 | J47: =F47*H47*$J$65 -> 0
A48: 3. | I48: 0 | J48: 0
A49: 4. | I49: 0 | J49: 0
A50: 5. | I50: 0 | J50: 0
B51: Consumer Specific Consultants - 100% Allocation | F51: Hourly Rate | G51: Current Hours | H51: Proposed Hours
G52: ="("&D!L2&" Month"&K29&")" -> (3 Months) | H52: ="("&D!L2&" Month"&K29&")" -> (3 Months)
A53: 1. | I53: =F53*G53 -> 0 | J53: =F53*H53 -> 0
A54: 2. | I54: =F54*G54 -> 0 | J54: =F54*H54 -> 0
A55: 3. | I55: =F55*G55 -> 0 | J55: =F55*H55 -> 0
A56: 4. | I56: =F56*G56 -> 0 | J56: =F56*H56 -> 0
A57: 5. | I57: =F57*G57 -> 0 | J57: =F57*H57 -> 0
B59: ="Administrative Costs ("&D!L2&" Month"&K29&" - "&A!C13&") - " &TEXT(J66,"0.0%")& " Allocation" -> Administrative Costs (3 Months - ) - 0.0% Allocation
B60: Taxes | E60: Depreciation
B61: Repair & Maintenance | E61: Management Services
B62: Depreciation
B63: ="Other Administrative Costs (List Below) - "&TEXT(J66,"0.00%")&" Allocation" -> Other Administrative Costs (List Below) - 0.00% Allocation | G63: Current | H63: Proposed
A64: 1. | I64: Program Costs | J64: =A!U5 -> 0
A65: 2. | I65: Program Consultants | J65: =A!U6 -> 0
A66: 3. | I66: Administrative Costs | J66: =A!U7 -> 0
A67: 4. | I67: Administrative Staff | J67: =A!U8 -> 0
A68: 5.
A70: For Regional Center Only | C70: =D!L2&" Month Period = "&A!C13 -> 3 Month Period =
C71: Current Units Billed | G71: Proposed Billable Units
B72: ="Subcode #1 - "&A!K12 -> Subcode #1 - | D72: =IF(A!L12="","","("&A!L12&" Rate)") -> 
B73: ="Subcode #2 - "&A!K13 -> Subcode #2 - | D73: =IF(A!L13="","","("&A!L13&" Rate)") -> 
B74: ="Subcode #3 - "&A!K14 -> Subcode #3 - | D74: =IF(A!L14="","","("&A!L14&" Rate)") -> 
B75: ="Subcode #4 - "&A!K15 -> Subcode #4 - | D75: =IF(A!L15="","","("&A!L15&" Rate)") -> 
B76: ="Subcode #5 - "&A!K16 -> Subcode #5 - | D76: =IF(A!L16="","","("&A!L16&" Rate)") -> 
B77: Does Agency incur any changes to Administrative Staff Costs due to request? | H77: =A!CI81&", "&A!CI80&" Staff" -> No, 0 Staff
B78: If there is a change for Administrative Staff or General Administrative Costs, is this necessary for health & safety needs for consumer(s)? If yes, please justify in attached letter. | H78: No

Sheet C
A1: SECTION C: ADDITIONAL PROGRAM COSTS | I1: Calculated Other Wages (Original) | J1: =A!AW78/A!AY78 ->  | K1: =H18 -> 0 | L1: [second is benefits]
I2: Calucalted Other Wages (Revised) | J2: =A!AX78/A!AZ78 ->  | K2: =H18 -> 0
B3: Service Provider Name | C3: =IF(A!C4="","",A!C4) ->  | I3: Calculated Direct Support Wages (Original) | J3: =A!BM78/A!BO78 ->  | K3: =C17 -> 0
B4: Vendor Number | C4: =IF(A!C5="","",A!C5) ->  | I4: Calculated Direct Support Wages (Revised) | J4: =A!BN78/A!BP78 ->  | K4: =C17 -> 0
B5: Service Code | C5: =IF(A!C7="","",A!C7) ->  | I5: Calculated Management Wages (Original) | J5: =A!BY78/A!CA78 ->  | K5: =C18 -> 0
B6: Vendoring Regional Center | C6: =IF(A!C17="","",A!C17) ->  | I6: Calculated Management Wages (Revised) | J6: =A!BZ78/A!CB78 ->  | K6: =C18 -> 0
I7: Calculated Administrative Wages (Original) | J7: =A!CG78/A!CJ78 ->  | K7: =IFERROR(A!CS78*(1/(A!CJ78/(2080/12))),0) -> 0
B8: ="Payroll & Liability Costs ("&TEXT((SUM(C10:C14)+SUM(H10:H14)),"0.00%")&" Total)" -> Payroll & Liability Costs (10.00% Total) | I8: Calculated Administrative Wages (Revised) | J8: =A!CH78/A!CK78 ->  | K8: =IFERROR(A!DA78*(1/(A!CK78/(2080/12))),0) -> 0
A9: Employer Payroll Taxes - Federal | E9: Employer Payroll Taxes - State | I9: Administrative Ratio | J9: =A!CJ24 -> 0
A10: Social Security / FICA | C10: 0.062 | E10: SUI (CA State Unemployment Ins.)
A11: Medicare Tax | C11: 0.0145 | E11: ETT (CA Employment Training Tax) | H11: 0.001
A12: Federal Unemployment Tax | C12: 0.006 | I12: Yes
A13: Misc. Mandated Costs | I13: No
A14: Workers Compensation | C14: 0.0165
A15: Mandatory Costs Total % | C15: =SUM(C10:C14)+SUM(H10:H14) -> 0.1
B16: ="Benefits per FTE ("&J22&" Month)" -> Benefits per FTE (0 Month)
A17: Direct Support - Benefits | E17: Administrative - Benefits | I17: Increase of Existing Service?
A18: Management - Benefits | E18: Other Support - Benefits | I18: =A!AC1 -> Yes
I19: =IF(I18="No","Proposed","") -> 
B20: ="Operations Costs ("&A!C13&")" -> Operations Costs () | I20: =IF(I18="Yes"," Billed","") -> Billed
A21: Lease/Mortgage | E21: License Renewal Costs
A22: Utilities | E22: Transportation | I22: # of Months | J22: =A!C12 -> 0
A23: License Renewal Costs | E23: Transportation Repair
J27: CURRENT | O27: CURRENT
J28: 1 | K28: 2 | L28: 3 | M28: 4 | N28: 5 | O28: 1 | P28: 2 | Q28: 3 | R28: 4 | S28: 5
B29: ="Program Costs (Describe) - "&TEXT(J83,"0.0%")&" Allocation" -> Program Costs (Describe) - 0.0% Allocation | F29: Subcode | G29: Current Cost | H29: Proposed Cost | J29: =A!K12 -> 0 | K29: =A!K13 -> 0 | L29: =A!K14 -> 0 | M29: =A!K15 -> 0 | N29: =A!K16 -> 0 | O29: =A!K12 -> 0 | P29: =A!K13 -> 0 | Q29: =A!K14 -> 0 | R29: =A!K15 -> 0 | S29: =A!K16 -> 0
A30: 6. | I30: Program Costs | J30: =SUMIF($F30:$F39,J29,$G30:$G39) -> 0 | K30: =SUMIF($F30:$F39,K29,$G30:$G39) -> 0 | L30: =SUMIF($F30:$F39,L29,$G30:$G39) -> 0 | M30: =SUMIF($F30:$F39,M29,$G30:$G39) -> 0 | N30: =SUMIF($F30:$F39,N29,$G30:$G39) -> 0 | O30: =IF($J$46="LMW",J30,SUMIF($F30:$F39,J29,$H30:$H39)) -> 0 | P30: =IF($J$46="LMW",K30,SUMIF($F30:$F39,K29,$H30:$H39)) -> 0 | Q30: =IF($J$46="LMW",L30,SUMIF($F30:$F39,L29,$H30:$H39)) -> 0 | R30: =IF($J$46="LMW",M30,SUMIF($F30:$F39,M29,$H30:$H39)) -> 0 | S30: =IF($J$46="LMW",N30,SUMIF($F30:$F39,N29,$H30:$H39)) -> 0
A31: 7. | I31: Consumer Specific Program Costs | J31: =SUMIF($F41:$F50,J29,$G41:$G50) -> 0 | K31: =SUMIF($F41:$F50,K29,$G41:$G50) -> 0 | L31: =SUMIF($F41:$F50,L29,$G41:$G50) -> 0 | M31: =SUMIF($F41:$F50,M29,$G41:$G50) -> 0 | N31: =SUMIF($F41:$F50,N29,$G41:$G50) -> 0 | O31: =IF($J$46="LMW",J31,SUMIF($F41:$F50,J29,$H41:$H50)) -> 0 | P31: =IF($J$46="LMW",K31,SUMIF($F41:$F50,K29,$H41:$H50)) -> 0 | Q31: =IF($J$46="LMW",L31,SUMIF($F41:$F50,L29,$H41:$H50)) -> 0 | R31: =IF($J$46="LMW",M31,SUMIF($F41:$F50,M29,$H41:$H50)) -> 0 | S31: =IF($J$46="LMW",N31,SUMIF($F41:$F50,N29,$H41:$H50)) -> 0
A32: 8. | I32: Program Consultants | J32: =IFERROR(SUMIF($F53:$F62,J29,$I53:$I62)/$J$84,0) -> 0 | K32: =IFERROR(SUMIF($F53:$F62,K29,$I53:$I62)/$J$84,0) -> 0 | L32: 0 | M32: 0 | N32: 0 | O32: =IF($J$46="LMW",J32,IFERROR(SUMIF($F53:$F62,J29,$J53:$J62)/$J$84,0)) -> 0 | P32: =IF($J$46="LMW",K32,IFERROR(SUMIF($F53:$F62,K29,$J53:$J62)/$J$84,0)) -> 0 | Q32: 0 | R32: 0 | S32: 0
A33: 9. | I33: Consumer Specific Program Consultants | J33: =SUMIF($F65:$F74,J29,$I65:$I74) -> 0 | K33: =SUMIF($F65:$F74,K29,$I65:$I74) -> 0 | L33: =SUMIF($F65:$F74,L29,$I65:$I74) -> 0 | M33: =SUMIF($F65:$F74,M29,$I65:$I74) -> 0 | N33: =SUMIF($F65:$F74,N29,$I65:$I74) -> 0 | O33: =IF($J$46="LMW",J33,SUMIF($F65:$F74,J29,$J65:$J74)) -> 0 | P33: =IF($J$46="LMW",K33,SUMIF($F65:$F74,K29,$J65:$J74)) -> 0 | Q33: =IF($J$46="LMW",L33,SUMIF($F65:$F74,L29,$J65:$J74)) -> 0 | R33: =IF($J$46="LMW",M33,SUMIF($F65:$F74,M29,$J65:$J74)) -> 0 | S33: =IF($J$46="LMW",N33,SUMIF($F65:$F74,N29,$J65:$J74)) -> 0
A34: 10. | I34: Totals | J34: =IF($J$48=TRUE,(J30*$J$83)+J31+(J32*$J$84)+J33,0) -> 0 | K34: =IF($J$48=TRUE,(K30*$J$83)+K31+(K32*$J$84)+K33,0) -> 0 | L34: 0 | M34: 0 | N34: 0 | O34: =(O30*$J$83)+O31+(O32*$J$84)+O33 -> 0 | P34: =(P30*$J$83)+P31+(P32*$J$84)+P33 -> 0 | Q34: 0 | R34: 0 | S34: 0
A35: 11. | I35: Difference | J35: =O34-J34 -> 0 | K35: =P34-K34 -> 0 | L35: 0 | M35: 0 | N35: 0
A36: 12.
A37: 13. | I37: Current Total for Subcode Specific Ops-Monthly | J37: =IFERROR(IF(J48=TRUE,SUM(J34:N34)/J22,0),0) -> 0
A38: 14. | I38: Proposed Total for Subcode Specific Ops-Monthly | J38: =IFERROR(SUM(O34:S34)/J22,0) -> 0
A39: 15.
B40: Consumer Specific Program Costs (Describe) - 100% Allocation | F40: Subcode | G40: Current Cost | H40: Proposed Cost | I40: Admin | J40: =IF($J48=TRUE,SUMIF($F81:$F90,J29,$G81:$G90),0) -> 0 | K40: =IF(J48=TRUE,SUMIF($F81:$F90,K29,$G81:$G90),0) -> 0 | L40: =IF(J48=TRUE,SUMIF($F81:$F90,L29,$G81:$G90),0) -> 0 | M40: =IF(J48=TRUE,SUMIF($F81:$F90,M29,$G81:$G90),0) -> 0 | N40: =IF(J48=TRUE,SUMIF($F81:$F90,N29,$G81:$G90),0) -> 0 | O40: =IF($J$46="LMW",J40,SUMIF($F81:$F90,O29,$H81:$H90)) -> 0 | P40: =IF($J$46="LMW",K40,SUMIF($F81:$F90,P29,$H81:$H90)) -> 0 | Q40: =IF($J$46="LMW",L40,SUMIF($F81:$F90,Q29,$H81:$H90)) -> 0 | R40: =IF($J$46="LMW",M40,SUMIF($F81:$F90,R29,$H81:$H90)) -> 0 | S40: =IF($J$46="LMW",N40,SUMIF($F81:$F90,S29,$H81:$H90)) -> 0
A41: 6. | I41: Difference | J41: =O40-J40 -> 0 | K41: =P40-K40 -> 0 | L41: =Q40-L40 -> 0 | M41: =R40-M40 -> 0 | N41: =S40-N40 -> 0
A42: 7.
A43: 8. | I43: Current Total for Subcode Specific Admin-Monthly | J43: =IFERROR(IF(J48=TRUE,SUM(J40:N40)/J22,0),0) -> 0
A44: 9. | I44: Proposed Total for Subcode Specific Admin-Monthly | J44: =IFERROR(SUM(O40:S40)/J22,0) -> 0
A45: 10.
A46: 11. | I46: Type | J46: =A!X19 -> Reg
A47: 12. | I47: Program/Admin Ratio | J47: =IFERROR(A!C10/A!C9,0) -> 0
A48: 13. | I48: Existing Service? | J48: =IF(J46="LMW",TRUE,NOT(D!AJ58)) -> TRUE
A49: 14.
A50: 15.
B51: ="Program Consultants - "&TEXT(J84,"0.0%")& " Allocation" -> Program Consultants - 0.0% Allocation | D51: Hourly Rate | F51: Subcode | G51: Current Hours | H51: Proposed Hours | I51: Current Budget Cost | J51: Proposed Budget Cost
G52: ="("&D!L2&" Month"&B!K29&")" -> (3 Months) | H52: ="("&D!L2&" Month"&B!K29&")" -> (3 Months)
A53: 6. | I53: =D53*G53*$J$84 -> 0 | J53: =D53*H53*$J$84 -> 0
A54: 7. | I54: =D54*G54*$J$84 -> 0 | J54: =D54*H54*$J$84 -> 0
A55: 8. | I55: 0 | J55: 0
A56: 9. | I56: 0 | J56: 0
A57: 10. | I57: 0 | J57: 0
A58: 11. | I58: 0 | J58: 0
A59: 12. | I59: 0 | J59: 0
A60: 13. | I60: 0 | J60: 0
A61: 14. | I61: 0 | J61: 0
A62: 15. | I62: 0 | J62: 0
B63: Consumer Specific Consultants - 100% Allocation | D63: Hourly Rate | F63: Subcode | G63: Current Hours | H63: Proposed Hours
G64: ="("&D!L2&" Month"&B!K29&")" -> (3 Months) | H64: ="("&D!L2&" Month"&B!K29&")" -> (3 Months)
A65: 6. | I65: =D65*G65 -> 0 | J65: =D65*H65 -> 0
A66: 7. | I66: =D66*G66 -> 0 | J66: =D66*H66 -> 0
A67: 8. | I67: =D67*G67 -> 0 | J67: 0
A68: 9. | I68: =D68*G68 -> 0 | J68: 0
A69: 10. | I69: =D69*G69 -> 0 | J69: 0
A70: 11. | I70: 0 | J70: 0
A71: 12. | I71: 0 | J71: 0
A72: 13. | I72: 0 | J72: 0
A73: 14. | I73: 0 | J73: 0
A74: 15. | I74: 0 | J74: 0
B76: ="Subcode Directed Administrative Costs ("&D!L2&" Month"&B!K29&" - "&A!C13&")" -> Subcode Directed Administrative Costs (3 Months - )
B77: Taxes | E77: Depreciation
B78: Repair & Maintenance | E78: Management Services
B79: Depreciation
B80: Administrative Costs (List Below) - 100% Allocation * | F80: Subcode | G80: Current Cost | H80: Proposed Cost
A81: 6.
A82: 7.
A83: 8. | I83: Program Costs | J83: =A!U5 -> 0
A84: 9. | I84: Program Consultants | J84: =A!U6 -> 0
A85: 10. | I85: Administrative Costs | J85: =A!U7 -> 0
A86: 11. | I86: Administrative Staff | J86: =A!U8 -> 0
A87: 12.
A88: 13.
A89: 14.
A90: 15.
A92: For Regional Center Only | C92: =J22&" Month Period = "&A!C13 -> 0 Month Period =
C93: Current Units Billed | F93: Proposed Billable Units
B94: ="Subcode #1 - "&A!K12 -> Subcode #1 - | C94: =730*3 -> 2190 | F94: =C94 -> 2190 | G94: =IF(A!L12="","","("&A!L12&" Rate)") -> 
B95: ="Subcode #2 - "&A!K13 -> Subcode #2 - | C95: =C94/24 -> 91.25 | F95: =C95 -> 91.25 | G95: =IF(A!L13="","","("&A!L13&" Rate)") -> 
B96: ="Subcode #3 - "&A!K14 -> Subcode #3 - | C96: 3 | F96: =C96 -> 3 | G96: =IF(A!L14="","","("&A!L14&" Rate)") -> 
B97: ="Subcode #4 - "&A!K15 -> Subcode #4 - | G97: =IF(A!L15="","","("&A!L15&" Rate)") -> 
B98: ="Subcode #5 - "&A!K16 -> Subcode #5 - | G98: =IF(A!L16="","","("&A!L16&" Rate)") -> 
B99: Does Agency incur any changes to Administrative Staff Costs due to request? | H99: =A!CI81&", "&A!CI80&" Staff" -> No, 0 Staff
B100: If there is a change for Administrative Staff or General Administrative Costs, is this necessary for health & safety needs for consumer(s)? | H100: No
B102: * Subcode Directed Administrative Costs are always set at 100% Allocation.

Sheet D
A1: SECTION D: MONTHLY PROGRAM BUDGET | K1: New Service? | L1: =IF(A!AC1="NO",TRUE,FALSE) -> FALSE
K2: # Of Months | L2: =IF(N2=0,3,N2) -> 3 | N2: =A!C12 -> 0
A3: ="Vendor: "&B!C3 -> Vendor: | D3: ="Rate Type: "&A!C16 -> Rate Type: | F3: ="Vendor Number: "&A!C5 -> Vendor Number: | I3: ="Consumers in Program: "&A!C9 -> Consumers in Program: | K3: Type | L3: =A!X19 -> Reg
A4: =L2&" Month Review Period: "&A!C13 -> 3 Month Review Period: | D4: ="Service Code: "&B!C5 -> Service Code: | F4: ="Vendoring Regional Center: "&A!C17 -> Vendoring Regional Center: | I4: ="Consumers in Request: "&A!C10 -> Consumers in Request:
A6: Direct Program Costs | D6: Current | F6: Proposed | H6: Difference
C7: Hours | D7: Rate | E7: Total | F7: Rate | G7: Total | H7: Total | I7: Notes | K7: Name | L7: Same Hours? | N7: Current | O7: Proposed
B8: =M8 -> Direct Support - Wages | C8: =IF(L1=TRUE,"",IF(N8=0,"",IF(AI58="no",O8,N8))) ->  | D8: =IFERROR(IF(L3="LMW",B!J19,B!J3),0) -> 0 | E8: =IF(L1=TRUE,0,IFERROR(C8*D8,0)) -> 0 | F8: =IFERROR(IF(L3="LMW",B!J20,B!J4),0) -> 0 | G8: =O8*F8 -> 0 | H8: =G8-E8 -> 0 | I8: =IF(L8=TRUE,"","Proposed Hours = "&TEXT(O8,"0.00")) ->  | J8: =E8=G8 -> TRUE | L8: =N8=O8 -> TRUE | M8: =IF(L3="LMW","Direct Support - Wages (M.Wage Only)","Direct Support - Wages") -> Direct Support - Wages | N8: =IF(L3="LMW",A!BS78/L2,IF(L1=TRUE,0,A!BO78/L2)) -> 0 | O8: =IF(L3="LMW",A!BT78/L2,A!BP78/L2) -> 0
B9: Direct Support - Payroll & Liability | D9: =IF(D8=0,"",B!C15) ->  | E9: =IF(L1=TRUE,0,IFERROR(SUM(E8:E8)*D9,0)) -> 0 | F9: =IF(F8=0,"",B!C15) ->  | G9: =IFERROR(SUM(G8:G8)*F9,0) -> 0 | H9: =G9-E9 -> 0 | J9: =E9=G9 -> TRUE
B10: Direct Support - Benefits | C10: =IF(L1=TRUE,"",IF(N8=0,"","FTE = "&ROUND((SUM(C8)/(2080/12)),2))) ->  | D10: =IF(N8=0,0,B!C17/L2) -> 0 | E10: =IF(L1=TRUE,0,IFERROR((SUM(N8)/(2080/12))*D10,0)) -> 0 | F10: =IF(O8=0,0,B!C17/L2) -> 0 | G10: =(SUM(O8)/(2080/12))*F10 -> 0 | H10: =G10-E10 -> 0 | I10: ="Proposed FTE = "&ROUND((SUM(O8)/(2080/12)),2) -> Proposed FTE = 0 | J10: TRUE
B11: =M11&" Support - Wages" -> Other #1 Support - Wages | C11: =IF(L1=TRUE,"",IF(N11=0,"",IF(AI58="no",O11,N11))) ->  | D11: =IFERROR(IF(L3="LMW",B!J21,B!J10),0) -> 0 | E11: =IF(L1=TRUE,0,D11*N11) -> 0 | F11: =IFERROR(IF(L3="LMW",B!J22,B!J11),0) -> 0 | G11: =F11*O11 -> 0 | H11: =G11-E11 -> 0 | I11: =IF(L11=TRUE,"","Proposed Hours = "&TEXT(O11,"0.00")) ->  | J11: =E11=G11 -> TRUE | K11: =IF(A!N19="","Other #1",A!N19) -> Other #1 | L11: =N11=O11 -> TRUE | M11: =IF(L3="LMW","Direct ",K11) -> Other #1 | N11: =IF(L3="LMW",A!BW78/L2,IF(L1=TRUE,0,A!AY78/L2)) -> 0 | O11: =IF(L3="LMW",A!BX78/L2,A!AZ78/L2) -> 0
B12: =M11&" Support - Payroll & Liability" -> Other #1 Support - Payroll & Liability | D12: =IF(D11=0,"",B!C15) ->  | E12: =IF(L1=TRUE,0,IFERROR(SUM(E11)*D12,0)) -> 0 | F12: =IF(F11=0,"",B!C15) ->  | G12: =IFERROR(SUM(G11)*F12,0) -> 0 | H12: =G12-E12 -> 0 | J12: TRUE
B13: =M11&" Support - Benefits" -> Other #1 Support - Benefits | C13: =IF(L1=TRUE,"",IF(N11=0,"","FTE = "&ROUND((SUM(C11)/(2080/12)),2))) ->  | D13: =IF(L3="LMW",IF(N11=0,0,B!C17/L2),IF(N11=0,0,B!H17/L2)) -> 0 | E13: =IF(L1=TRUE,0,(SUM(N11)/(2080/12))*D13) -> 0 | F13: =IF(L3="LMW",IF(O11=0,0,B!C17/L2),IF(O11=0,0,B!H17/L2)) -> 0 | G13: =(SUM(O11)/(2080/12))*F13 -> 0 | H13: 0 | I13: ="Proposed FTE = "&ROUND((SUM(O11)/(2080/12)),2) -> Proposed FTE = 0 | J13: TRUE
B14: =K14&" Support - Wages" -> Other #2 Support - Wages | C14: =IF(L1=TRUE,"",IF(N14=0,"",IF(AI58="no",O14,N14))) ->  | D14: =IFERROR(B!J12,0) -> 0 | E14: =IF(L1=TRUE,0,D14*N14) -> 0 | F14: =IFERROR(B!J13,0) -> 0 | G14: =F14*O14 -> 0 | H14: 0 | I14: =IF(L14=TRUE,"","Proposed Hours = "&TEXT(O14,"0.00")) ->  | J14: TRUE | K14: =IF(A!N20="","Other #2",A!N20) -> Other #2 | L14: =N14=O14 -> TRUE | N14: =IF(L1=TRUE,0,A!BC78/L2) -> 0 | O14: =A!BD78/L2 -> 0
B15: =K14&" Support - Payroll & Liability" -> Other #2 Support - Payroll & Liability | D15: =IF(D14=0,"",B!C15) ->  | E15: =IF(L1=TRUE,0,IFERROR(SUM(E14)*D15,0)) -> 0 | F15: =IF(F14=0,"",B!C15) ->  | G15: =IFERROR(SUM(G14)*F15,0) -> 0 | H15: 0 | J15: TRUE
B16: =K14&" Support - Benefits" -> Other #2 Support - Benefits | C16: =IF(L1=TRUE,"",IF(N14=0,"","FTE = "&ROUND((SUM(C14)/(2080/12)),2))) ->  | D16: =IF(N14=0,0,B!H18/L2) -> 0 | E16: =IF(L1=TRUE,0,(SUM(N14)/(2080/12))*D16) -> 0 | F16: =IF(O14=0,0,B!H18/L2) -> 0 | G16: =(SUM(O14)/(2080/12))*F16 -> 0 | H16: 0 | I16: ="Proposed FTE = "&ROUND((SUM(O14)/(2080/12)),2) -> Proposed FTE = 0 | J16: TRUE
B17: =K17&" Support - Wages" -> Other #3 Support - Wages | C17: =IF(L1=TRUE,"",IF(N17=0,"",IF(AI58="no",O17,N17))) ->  | D17: =IFERROR(B!J14,0) -> 0 | E17: =IF(L1=TRUE,0,D17*N17) -> 0 | F17: =IFERROR(B!J16,0) -> 0 | G17: =F17*O17 -> 0 | H17: 0 | I17: =IF(L17=TRUE,"","Proposed Hours = "&TEXT(O17,"0.00")) ->  | J17: TRUE | K17: =IF(A!N21="","Other #3",A!N21) -> Other #3 | L17: =N17=O17 -> TRUE | N17: =IF(L1=TRUE,0,A!BG78/L2) -> 0 | O17: =A!BH78/L2 -> 0
B18: =K17&" Support - Payroll & Liability" -> Other #3 Support - Payroll & Liability | D18: =IF(D17=0,"",B!C15) ->  | E18: =IF(L1=TRUE,0,IFERROR(SUM(E17)*D18,0)) -> 0 | F18: =IF(F17=0,"",B!C15) ->  | G18: =IFERROR(SUM(G17)*F18,0) -> 0 | H18: 0 | J18: TRUE
B19: =K17&" Support - Benefits" -> Other #3 Support - Benefits | C19: =IF(L1=TRUE,"",IF(N17=0,"","FTE = "&ROUND((SUM(C17)/(2080/12)),2))) ->  | D19: =IF(N17=0,0,B!H19/L2) -> 0 | E19: =IF(L1=TRUE,0,(SUM(N17)/(2080/12))*D19) -> 0 | F19: =IF(O17=0,0,B!H19/L2) -> 0 | G19: =(SUM(O17)/(2080/12))*F19 -> 0 | H19: 0 | I19: ="Proposed FTE = "&ROUND((SUM(O17)/(2080/12)),2) -> Proposed FTE = 0 | J19: TRUE
B20: =K20&" Support - Wages" -> Other #4 Support - Wages | C20: =IF(L1=TRUE,"",IF(N20=0,"",IF(AI61="no",O20,N20))) ->  | D20: =IFERROR(B!J17,0) -> 0 | E20: =IF(L1=TRUE,0,D20*N20) -> 0 | F20: =IFERROR(B!J18,0) -> 0 | G20: =F20*O20 -> 0 | H20: 0 | I20: =IF(L20=TRUE,"","Proposed Hours = "&TEXT(O20,"0.00")) ->  | J20: TRUE | K20: =IF(A!N22="","Other #4",A!N22) -> Other #4 | L20: =N20=O20 -> TRUE | N20: =IF(L1=TRUE,0,A!BK78/L2) -> 0 | O20: =A!BL78/L2 -> 0
B21: =K20&" Support - Payroll & Liability" -> Other #4 Support - Payroll & Liability | D21: =IF(D20=0,"",B!C15) ->  | E21: =IF(L1=TRUE,0,IFERROR(SUM(E20)*D21,0)) -> 0 | F21: =IF(F20=0,"",B!C15) ->  | G21: =IFERROR(SUM(G20)*F21,0) -> 0 | H21: 0 | J21: TRUE
B22: =K20&" Support - Benefits" -> Other #4 Support - Benefits | C22: =IF(L1=TRUE,"",IF(N20=0,"","FTE = "&ROUND((SUM(C20)/(2080/12)),2))) ->  | D22: =IF(N20=0,0,B!H20/L2) -> 0 | E22: =IF(L1=TRUE,0,(SUM(N20)/(2080/12))*D22) -> 0 | F22: =IF(O20=0,0,B!H20/L2) -> 0 | G22: =(SUM(O20)/(2080/12))*F22 -> 0 | H22: 0 | I22: ="Proposed FTE = "&ROUND((SUM(O20)/(2080/12)),2) -> Proposed FTE = 0 | J22: TRUE
B23: Management - Wages | C23: =IF(L1=TRUE,"",IF(N23=0,"",IF(AI58="No",O23,N23))) ->  | D23: =IFERROR(B!J5,0) -> 0 | E23: =IF(L1=TRUE,0,IFERROR(C23*D23,0)) -> 0 | F23: =IFERROR(B!J6,0) -> 0 | G23: =O23*F23 -> 0 | H23: =G23-E23 -> 0 | I23: =IF(L23=TRUE,"","Proposed Hours = "&TEXT(O23,"0.00")) ->  | J23: =E23=G23 -> TRUE | L23: =N23=O23 -> TRUE | N23: =IF(L1=TRUE,0,(A!CA78+A!CE78)/L2) -> 0 | O23: =(A!CB78+A!CF78)/L2 -> 0
B24: Management - Payroll & Liability | D24: =IF(D23=0,"",B!C15) ->  | E24: =IF(L1=TRUE,0,IFERROR(SUM(E23:E23)*D24,0)) -> 0 | F24: =IF(F23=0,"",B!C15) ->  | G24: =IFERROR(SUM(G23:G23)*F24,0) -> 0 | H24: =G24-E24 -> 0 | J24: =E24=G24 -> TRUE
B25: Management - Benefits | C25: =IF(L1=TRUE,"",IF(N23=0,"","FTE = "&ROUND((SUM(C23:C23)/(2080/12)),2))) ->  | D25: =IF(N23=0,0,B!C18/L2) -> 0 | E25: =IF(L1=TRUE,0,(SUM(N23)/(2080/12))*D25) -> 0 | F25: =IF(O23=0,0,B!C18/L2) -> 0 | G25: =(SUM(O23)/(2080/12))*F25 -> 0 | H25: =G25-E25 -> 0 | I25: ="Proposed FTE = "&ROUND((SUM(O23)/(2080/12)),2) -> Proposed FTE = 0 | J25: =E25=G25 -> TRUE
B26: Subtotal | E26: =SUM(E8:E25) -> 0 | G26: =SUM(G8:G25) -> 0 | H26: =SUM(H8:H25) -> 0 | I26: =TEXT((IFERROR(H26/E26,"0")),"0.00%")&" Increase" -> 0.00% Increase
A28: Operations | D28: Current | F28: Proposed | H28: Difference
E29: Total | G29: Total | H29: Total | I29: Notes | M29: Allocation
B30: Lease/Mortgage | E30: =IF(L1=TRUE,0,G30) -> 0 | G30: =(B!C23*A!U4)/L2 -> 0 | H30: =G30-E30 -> 0 | I30: =IF(M30=A!$V$1,"",IF(AND(E30=0,G30=0),"","Allocated at "&TEXT(M30,"0.00%"))) ->  | J30: =E30=G30 -> TRUE | M30: =A!U4 -> 0
B31: Utilities | E31: =IF(L1=TRUE,0,G31) -> 0 | G31: =(B!C24*A!U4)/L2 -> 0 | H31: =G31-E31 -> 0 | I31: =IF(M31=A!$V$1,"",IF(AND(E31=0,G31=0),"","Allocated at "&TEXT(M31,"0.00%"))) ->  | J31: =E31=G31 -> TRUE | M31: =A!U4 -> 0
B32: License Renewal Costs | E32: =G32 -> 0 | G32: =(B!C25*B!$J$9)/3 -> 0 | H32: 0 | I32: =IF(M32=A!$V$1,"",IF(AND(E32=0,G32=0),"","Allocated at "&TEXT(M32,"0.00%"))) ->  | J32: TRUE
B33: Community Care License Renewal Costs | E33: =IF(L1=TRUE,0,G33) -> 0 | G33: =(B!H23*A!U4)/L2 -> 0 | H33: 0 | I33: =IF(M33=A!$V$1,"",IF(AND(E33=0,G33=0),"","Allocated at "&TEXT(M33,"0.00%"))) ->  | J33: TRUE | M33: =A!U4 -> 0
B34: Transportation | E34: =IF(L1=TRUE,0,G34) -> 0 | G34: =(B!H24*A!U4)/L2 -> 0 | H34: 0 | I34: =IF(M34=A!$V$1,"",IF(AND(E34=0,G34=0),"","Allocated at "&TEXT(M34,"0.00%"))) ->  | J34: TRUE | M34: =A!U4 -> 0
B35: Transportation Repair | E35: =G35 -> 0 | G35: =(B!H25*B!$J$9)/3 -> 0 | H35: 0 | I35: =IF(M35=A!$V$1,"",IF(AND(E35=0,G35=0),"","Allocated at "&TEXT(M35,"0.00%"))) ->  | J35: TRUE
B36: Program Costs1 | E36: =IF(L1=TRUE,0,((SUM(B!G32:G36))*M36)/L2+((SUM('C'!G30:G39))*M36)/L2) -> 0 | G36: =IF(L3="LMW",E36,((SUM(B!H32:H36))*M36)/L2+((SUM('C'!H30:H39))*M36)/L2) -> 0 | H36: 0 | I36: =IF(M36=A!$V$1,"",IF(AND(E36=0,G36=0),"","Allocated at "&TEXT(M36,"0.00%"))) ->  | J36: TRUE | M36: =A!U5 -> 0
B37: Consumer Specific Program Costs1 | E37: =IF(L3="LMW",0,IF(L1=TRUE,0,SUM(B!G38:G42)/L2+SUM('C'!G41:G50)/L2)) -> 0 | G37: =IF(L3="LMW",E37,SUM(B!H38:H42)/L2+SUM('C'!H41:H50)/L2) -> 0 | H37: 0 | J37: TRUE
B38: Program Consultants1 | E38: =IF(L1=TRUE,0,SUM(B!I46:I50)/L2+SUM('C'!I53:I62)/L2) -> 0 | G38: =IF(L3="LMW",E38,SUM(B!J46:J50)/L2+SUM('C'!J53:J62)/L2) -> 0 | H38: 0 | I38: =IF(M38=A!$V$1,"",IF(AND(E38=0,G38=0),"","Allocated at "&TEXT(M38,"0.00%"))) ->  | J38: TRUE | M38: =A!U6 -> 0
B39: Consumer Specific Consultants1 | E39: =IF(L3="LMW",0,IF(L1=TRUE,0,SUM(B!I53:I57)/L2+SUM('C'!I65:I74)/L2)) -> 0 | G39: =IF(L3="LMW",E39,SUM(B!J53:J57)/L2+SUM('C'!J65:J74)/L2) -> 0 | H39: 0 | J39: TRUE
B40: Operations Subtotal | E40: =SUM(E30:E39) -> 0 | G40: =SUM(G30:G39) -> 0 | H40: 0 | I40: =TEXT((IFERROR(H40/E40,0)),"0.00%")&" Increase" -> 0.00% Increase | J40: =E40=G40 -> TRUE
A42: Administrative2 | D42: Current | F42: Proposed | H42: Difference
C43: Hours | D43: Rate | E43: Total | F43: Rate | G43: Total | H43: Total | I43: Notes | L43: Same Hours? | N43: Current | O43: Proposed
B44: Administrative - Wages | C44: =IF(L1=TRUE,"",IF(N44=0,"",IF(AI58="no",O44,N44))) ->  | D44: =IFERROR(B!J7,0) -> 0 | E44: =IF(L1=TRUE,0,IFERROR(C44*D44,0)) -> 0 | F44: =IF(AI60="YES",IFERROR(B!J8,0),D44) -> 0 | G44: =O44*F44 -> 0 | H44: =G44-E44 -> 0 | I44: =IF(M44=A!$V$1,"",IF(AND(E44=0,G44=0),"","Allocated at "&TEXT(M44,"0.00%"))) ->  | J44: =E44=G44 -> TRUE | L44: =N44=O44 -> TRUE | M44: =A!U8 -> 0 | N44: =IF(L1=TRUE,0,A!CJ78/L2) -> 0 | O44: =IF(AI60="No",N44,A!CK78/L2) -> 0
B45: Administrative - Payroll & Liability | D45: =IF(D44=0,"",B!C15) ->  | E45: =IF(L1=TRUE,0,IFERROR(SUM(E44:E44)*D45,0)) -> 0 | F45: =IF(F44=0,"",B!C15) ->  | G45: =IFERROR(SUM(G44:G44)*F45,0) -> 0 | H45: 0 | J45: TRUE
B46: Administrative - Benefits | C46: =IF(L1=TRUE,"",IF(N44=0,"","FTE = "&ROUND((SUM(C44:C44)/(2080/12)),2))) ->  | D46: =IF(B!K7=0,0,B!K7/L2) -> 0 | E46: =IF(L1=TRUE,0,IFERROR((SUM(C44:C44)/(2080/12))*D46,0)) -> 0 | F46: =IF(L3="LMW",D46,IF(B!K8=0,0,B!K8/L2)) -> 0 | G46: =IFERROR((SUM(O44)/(2080/12))*F46,0) -> 0 | H46: 0 | I46: ="Proposed FTE = "&ROUND((SUM(O44)/(2080/12)),2) -> Proposed FTE = 0 | J46: =E46=G46 -> TRUE
B47: Taxes | E47: =IF(L1=TRUE,0,G47) -> 0 | G47: =B!C60*B!$J$9/L2 -> 0 | H47: 0 | J47: TRUE
B48: Repair & Maintenance | E48: =IF(L1=TRUE,0,G48) -> 0 | G48: =B!C61*B!$J$9/L2 -> 0 | H48: 0 | J48: TRUE
B49: Depreciation | E49: =IF(L1=TRUE,0,G49) -> 0 | G49: =B!H60*B!$J$9/L2 -> 0 | H49: 0 | J49: TRUE
B50: Management Services | E50: =IF(L1=TRUE,0,G50) -> 0 | G50: =B!H61*B!$J$9/L2 -> 0 | H50: 0 | J50: TRUE
B51: Other Administrative Costs1 | E51: =IF(L1=TRUE,0,SUM(B!G64:G68)*B!$J$66/L2+SUM('C'!G81:G90)/L2) -> 0 | G51: =IF(L3="LMW",E51,SUM(B!H64:H68)*B!$J$66/L2+SUM('C'!H81:H90)/L2) -> 0 | H51: 0 | J51: TRUE | AI51: Type
B52: Administrative Subtotal | E52: =SUM(E44:E51) -> 0 | G52: =SUM(G44:G51) -> 0 | H52: 0 | I52: =TEXT((IFERROR(H52/E52,0)),"0.00%")&" Increase" -> 0.00% Increase | J52: =E52=G52 -> TRUE | AJ52: =L3 -> Reg
AI53: Make Whole?
A54: Totals | D54: Current | F54: Proposed | H54: Difference | AJ54: =IF(AJ52="LMW",FALSE,IF(I76="YES",TRUE,FALSE)) -> FALSE
B55: Direct Program Percentage | E55: =IFERROR(E26/E61,0) -> 0 | G55: =IFERROR(G26/G61,0) -> 0 | H55: =G55-E55 -> 0 | AI55: Include Proposed Admin?
B56: Operations Percentage | E56: =IFERROR(E40/E61,0) -> 0 | G56: =IFERROR(G40/G61,0) -> 0 | H56: 0 | AJ56: =IF(AJ52="LMW",FALSE,OR(AJ58,AJ60)) -> FALSE
B57: Administrative Percentage | E57: =IFERROR(E52/E61,0) -> 0 | G57: =IFERROR(G52/G61,0) -> 0 | H57: 0 | AI57: Existing Service?
B58: Direct Program Subtotal | E58: =E26 -> 0 | G58: =G26 -> 0 | H58: 0 | I58: =IF(H58=0,"",TEXT((IFERROR(H26/E26,0)),"0.00%")&" Increase") ->  | L58: =F65/D65 ->  | AH58: =OR(AJ54,AJ58) -> FALSE | AI58: =IF(AJ52="LMW","Yes",IF(A!AC1="","Yes",A!AC1)) -> Yes | AJ58: =AI58="No" -> FALSE | FH58: LMW Rate Cap | FI58: =A!V21 -> No
B59: Operations Subtotal | E59: =E40 -> 0 | G59: =G40 -> 0 | H59: 0 | I59: =IF(H59=0,"",TEXT((IFERROR(H40/E40,0)),"0.00%")&" Increase") ->  | AI59: Admin Justified? | ET59: Evenly Distro? | EU59: =A!AN17 -> FALSE | FH59: Yes | FI59: =IF(FI61>1,1,IF(FI61<0,0,FI61)) ->  | FN59: Yes | FO59: =IF(FO61<0,0,FO61) -> 0
B60: Administrative Subtotal | E60: =E52 -> 0 | G60: =G52 -> 0 | H60: 0 | I60: =IF(H60=0,"",TEXT((IFERROR(H52/E52,0)),"0.00%")&" Increase") ->  | AH60: =IF(AJ52="LMW","No",IF(B!H78="","No",B!H78)) -> No | AI60: =IF(AI58="No","Yes",AH60) -> No | AJ60: =AI60="Yes" -> FALSE | EU60: =ES65/4 -> 0 | FH60: No | FI60: 1 | FN60: No | FO60: 1
B61: Budget Total | E61: =SUM(E58:E60) -> 0 | G61: =SUM(G58:G60) -> 0 | H61: 0 | I61: =TEXT((IFERROR(H61/E61,0)),"0.00%")&" Increase" -> 0.00% Increase | FI61: =((SUM(H8:H10,H23:H25))-E73)/(SUM(H8:H10,H23:H25)) ->  | FO61: =IFERROR(-($E$70-$G$61)/$FH$70,0) -> 0 | FQ61: 1 | FR61: 2 | FS61: 3 | FT61: 4 | FU61: 5 | FV61: 6 | FW61: 7 | FX61: 8 | FY61: 9 | FZ61: 10 | GA61: 11 | GB61: 12
AD62: Prorate; Does not include Subcode Specific Ops/Admin | BZ62: *Manager - Subcode specific ONLY | DZ62: *Manager - Subcode specific ONLY | EJ62: Subcode Specific Budget Totals | EN62: Subcode Specific Increases | ER62: Ops/Admin | ES62: Wage | EW62: RHS | EZ62: Make Whole | FD62: LMW - INC/MW | FI62: Adjusted-NoProfit | FJ62: Adjust-NoProfit | FK62: LMW - MW | FQ62: Code = 1 | FR62: Code = 2 | FS62: Code 3, 4 | FU62: Code = 5 | FV62: Code = 6 | FW62: Code 7, 8 | FY62: Code = 9 | FZ62: Code = 10 | GA62: Code = 11 | GB62: Code = 12
A63: Proposed Adjustments | C63: Current | D63: =IF(AI58="No","Median/Frozen Rate","Current") -> Current | F63: Proposed | H63: Difference | J63: Current | K63: Proposed | P63: Bypassed Units Calc (w/ Factor) | R63: Include Admin | S63: Admin Adj. | T63: Admin Adj. | U63: Include | V63: Mgmt Adj. | W63: Mgmt Adj. | X63: Include | Y63: Ops Adj. | Z63: Ops Adj. | AB63: Exist Srvc | AC63: Exist Srvc | AD63: Current | AE63: Proposed | AF63: Current | AG63: Proposed | AH63: Current | AI63: Proposed | AJ63: Current (Does Not Include Subcode Specfic Ops/Admin) | CJ63: Proposed; Does Not Include Subcode Specific Ops/Admin | EJ63: Current | EK63: Proposed | EL63: Proposed | EM63: Difference | ER63: Diference | ES63: Difference | ET63: Average | EU63: Bypass | EV63: Proposed | EW63: % of Total | EX63: Diff Bypass | EY63: Diff Bypass | EZ63: Paid | FA63: Diff Bypass | FB63: Diff Bypass | FD63: Wage Difference | FE63: Diff Bypass | FG63: Diff Bypass | FI63: Subcode | FJ63: Average | FK63: Current Paid | FL63: TotalSubcode Costs | FM63: Current Paid | FO63: Subcode | FP63: Average | FQ63: Exst Srvc; INC | FR63: Exst Srvc; Make Whole | FS63: New Service | FU63: Exist Srvc; INC | FV63: Exist Srvc; Make Whole | FW63: New Service | FY63: LMW; Exst Srvc; INC/MW | FZ63: LMW; Exst Srvc; INC/MW | GA63: LMW; Est Srvc; MW | GB63: LMW; Est Srvc; MW
C64: Units Billed | D64: Rate | E64: Total | F64: Rate | G64: Total | J64: # Of Units | K64: # of Units | L64: Subcode | M64: Type | N64: Factor | O64: Bypass Adj | P64: Current # | Q64: Proposed # | S64: % | T64: Weighted % | U64: Mgmt | V64: % | W64: Weighted % | X64: Ops | Y64: % | Z64: Weighted % | AA64: % | AB64: Yes | AC64: No | AD64: Manage | AE64: Manager | AF64: Ops | AG64: Ops | AH64: Admin | AI64: Admin | AJ64: DSP-Hrs | AK64: DSP-Pay | AL64: DSP-Rate | AM64: DSP-MC | AN64: DSP-Ben | AO64: DSP-SUM | AP64: LMW-Hrs | AQ64: LMW-Pay | AR64: LMW-Rate | AS64: LMW-MC | AT64: LMW-Ben | AU64: LMW-Sum | AV64: NoLMW-Hrs | AW64: NoLMW-Pay | AX64: NoLMW-Rate | AY64: NoLMW-MC | AZ64: NoLMW-Ben | BA64: NoLMW-Sum | BB64: Other1-Hrs | BC64: Other1-Pay | BD64: Other1-Rate | BE64: Other1-MC | BF64: Other1-Ben | BG64: Other1-Sum | BH64: Other2-Hrs | BI64: Other2-Pay | BJ64: Other2-Rate | BK64: Other2-MC | BL64: Other2-Ben | BM64: Other2-Sum | BN64: Other3-Hrs | BO64: Other3-Pay | BP64: Other3-Rate | BQ64: Other3-MC | BR64: Other3-Ben | BS64: Other3-Sum | BT64: Other4-Hrs | BU64: Other4-Pay | BV64: Other4-Rate | BW64: Other4-MC | BX64: Other4-Ben | BY64: Other4-Sum | BZ64: Manager-Hrs | CA64: Manager-Pay | CB64: Manager-Rate | CC64: Manager-MC | CD64: Manager-Ben | CE64: Manager-Sum | CF64: Dir-Pro Costs | CG64: Manager | CH64: Ops/Adm | CI64: Budget-Total | CJ64: DSP-Hrs | CK64: DSP-Pay | CL64: DSP-Rate | CM64: DSP-MC | CN64: DSP-Ben | CO64: DSP-SUM | CP64: LMW-Hrs | CQ64: LMW-Pay | CR64: LMW-Rate | CS64: LMW-MC | CT64: LMW-Ben | CU64: LMW-Sum | CV64: NoLMW-Hrs | CW64: NoLMW-Pay | CX64: NoLMW-Rate | CY64: NoLMW-MC | CZ64: NoLMW-Ben | DA64: NoLMW-Sum | DB64: Other1-Hrs | DC64: Other1-Pay | DD64: Other1-Rate | DE64: Other1-MC | DF64: Other1-Ben | DG64: Other1-Sum | DH64: Other2-Hrs | DI64: Other2-Pay | DJ64: Other2-Rate | DK64: Other2-MC | DL64: Other2-Ben | DM64: Other2-Sum | DN64: Other3-Hrs | DO64: Other3-Pay | DP64: Other3-Rate | DQ64: Other3-MC | DR64: Other3-Ben | DS64: Other3-Sum | DT64: Other4-Hrs | DU64: Other4-Pay | DV64: Other4-Rate | DW64: Other4-MC | DX64: Other4-Ben | DY64: Other4-Sum | DZ64: Manager-Hrs | EA64: Manager-Pay | EB64: Manager-Rate | EC64: Manager-MC | ED64: Manager-Ben | EE64: Manager-Sum | EF64: Dir-Pro Costs | EG64: Manager | EH64: Ops/Adm | EI64: Budget-Total | EL64: % of Total | EN64: Pro-Costs | EO64: Budget Total | EP64: Ops | EQ64: Admin | EY64: Distro | EZ64: if bypass | FB64: Distro | FG64: Distro | FI64: =IF(FI58="No",FI60,FI59) -> 1 | FJ64: =FI64 -> 1 | FM64: Wages | FN64: Units % | FO64: =IF(FI58="Yes",FO59,FO59) -> 0 | FQ64: Subcode Specific | FR64: Subcode Specific | FS64: Subcode Specific | FU64: Average | FV64: Average | FW64: Average | FY64: Subcode Specific | FZ64: Average | GA64: Subcode Specific | GB64: Average
B65: ="Subcode #1: "&A!K12&" "&A!AC12 -> Subcode #1: | C65: =IF($L$1=TRUE,K65,J65) -> 0 | D65: =A!N12 -> 0 | E65: =D65*C65 -> 0 | F65: =HLOOKUP($Q$89,$FQ$61:$GB$69,5,FALSE) -> 0 | G65: =K65*F65 -> 0 | H65: =G65-E65 -> 0 | I65: =IF(J65=K65,IF(H65=0,"",TEXT((IFERROR(F65-D65,0)),"$0.00")&" Rate Increase"&" ("&TEXT((IFERROR(F65/D65-1,"")),"0.0%")&")"),"Proposed Units = "&TEXT(K65,"0.00")) ->  | J65: =IF(A!N12="",0,IF($AJ$58=FALSE,B!C72/$L$2,K65)) -> 0 | K65: =IF(A!N12="",0,IF($L$3="LMW",B!C72/$L$2,B!G72/$L$2)) -> 0 | L65: 1 | M65: =A!L12 -> 0 | N65: =IF($K$76,VLOOKUP(M65,J78:K82,2,FALSE),1) -> 1 | O65: =IF(A!U12="YES",TRUE,FALSE) -> FALSE | P65: =IF(O65=FALSE,J65,0)*N65 -> 0 | Q65: =IF(O65=FALSE,K65,0)*N65 -> 0 | R65: =IF(A!T12="Yes",FALSE,TRUE) -> TRUE | S65: =IF(R65=FALSE,0,AA65) -> 0 | T65: =IFERROR(S65/$S$70,0) -> 0 | U65: =IF(A!R12="Yes",FALSE,TRUE) -> TRUE | V65: =IF(U65=FALSE,0,AA65) -> 0 | W65: =IFERROR(V65/$V$70,0) -> 0 | X65: =IF(A!S12="Yes",FALSE,TRUE) -> TRUE | Y65: =IF(X65=FALSE,0,AA65) -> 0 | Z65: =IFERROR(Y65/$Y$70,0) -> 0 | AA65: =IF($AJ$58=TRUE,AC65,AB65) -> 0 | AB65: =IFERROR(P65/$P$70,0) -> 0 | AC65: =IFERROR(Q65/$Q$70,0) -> 0 | AD65: =(SUM($E$23:$E$25)-$CE$70)*W65 -> 0 | AE65: =(SUM($G$23:$G$25)-$EE$70)*W65 -> 0 | AF65: =($E$40-'C'!$J$37)*Z65 -> 0 | AG65: =IF($AJ$52="LMW",AF65,($G$40-'C'!$J$38)*Z65) -> 0 | AH65: =($E$52-'C'!$J$43)*T65 -> 0 | AI65: =IF($AJ$52="LMW",AH65,IF(AJ$56=TRUE,($G$52-'C'!$J$44)*T65,(G$52-'C'!$J$44)*T65)) -> 0 | AJ65: =SUMIFS(A!BO:BO,A!AN:AN,L65,A!C:C,A!$AQ$15)/$L$2 -> 0 | AK65: =SUMIFS(A!BM:BM,A!AN:AN,L65,A!C:C,A!$AQ$15)/$L$2 -> 0 | AL65: =IFERROR(AK65/AJ65,0) -> 0 | AM65: =IFERROR(AK65*$D$9,0) -> 0 | AN65: =IFERROR((AJ65/(2080/12))*$D$10,0) -> 0 | AO65: =SUM(AK65+AM65+AN65) -> 0 | AP65: =SUMIFS(A!BS:BS,A!AN:AN,L65,A!C:C,A!$AQ$15)/$L$2 -> 0 | AQ65: =SUMIFS(A!BQ:BQ,A!AN:AN,L65,A!C:C,A!$AQ$15)/$L$2 -> 0 | AR65: =IFERROR(AQ65/AP65,0) -> 0 | AS65: =IFERROR(AQ65*$D$9,0) -> 0 | AT65: =IFERROR((AP65/(2080/12))*$D$10,0) -> 0 | AU65: =AQ65+AS65+AT65 -> 0 | AV65: =SUMIFS(A!BW:BW,A!AN:AN,L65,A!C:C,A!$AQ$15)/$L$2 -> 0 | AW65: =SUMIFS(A!BU:BU,A!AN:AN,L65,A!C:C,A!$AQ$15)/$L$2 -> 0 | AX65: =IFERROR(AW65/AV65,0) -> 0 | AY65: =IFERROR(AW65*$D$12,0) -> 0 | AZ65: =IFERROR((AV65/(2080/12))*$D$13,0) -> 0 | BA65: =AW65+AY65+AZ65 -> 0 | BB65: =SUMIFS(A!AJ:AJ,A!AN:AN,L65,A!C:C,A!$AQ$18)/$L$2 -> 0 | BC65: =SUMIFS(A!AW:AW,A!AN:AN,L65,A!C:C,A!$AQ$18)/$L$2 -> 0 | BD65: =IFERROR(BC65/BB65,0) -> 0 | BE65: =IFERROR(BC65*$D$12,0) -> 0 | BF65: =IFERROR((BB65/(2080/12))*$D$13,0) -> 0 | BG65: =BC65+BE65+BF65 -> 0 | BH65: =SUMIFS(A!AJ:AJ,A!AN:AN,L65,A!C:C,A!$AQ$19)/$L$2 -> 0 | BI65: =SUMIFS(A!BA:BA,A!AN:AN,L65,A!C:C,A!$AQ$19)/$L$2 -> 0 | BJ65: =IFERROR(BI65/BH65,0) -> 0 | BK65: =IFERROR(BI65*$D$15,0) -> 0 | BL65: =IFERROR((BH65/(2080/12))*$D$16,0) -> 0 | BM65: =BI65+BK65+BL65 -> 0 | BN65: =SUMIFS(A!AJ:AJ,A!AN:AN,L65,A!C:C,A!$AQ$20)/$L$2 -> 0 | BO65: =SUMIFS(A!BE:BE,A!AN:AN,L65,A!C:C,A!$AQ$20)/$L$2 -> 0 | BP65: =IFERROR(BO65/BN65,0) -> 0 | BQ65: =IFERROR(BO65*$D$18,0) -> 0 | BR65: =IFERROR((BN65/(2080/12))*$D$19,0) -> 0 | BS65: =BO65+BQ65+BR65 -> 0 | BT65: =SUMIFS(A!AJ:AJ,A!AN:AN,L65,A!C:C,A!$AQ$21)/$L$2 -> 0 | BU65: =SUMIFS(A!BI:BI,A!AN:AN,L65,A!C:C,A!$AQ$21)/$L$2 -> 0 | BV65: =IFERROR(BU65/BT65,0) -> 0 | BW65: =IFERROR(BU65*$D$21,0) -> 0 | BX65: =IFERROR((BT65/(2080/12))*$D$22,0) -> 0 | BY65: =BU65+BW65+BX65 -> 0 | BZ65: =SUMIFS(A!CE:CE,A!AN:AN,L65,A!C:C,A!$AQ$16)/$L$2 -> 0 | CA65: =SUMIFS(A!CC:CC,A!AN:AN,L65,A!C:C,A!$AQ$16)/$L$2 -> 0 | CB65: =IFERROR(CA65/BZ65,0) -> 0 | CC65: =IFERROR(CA65*$D$24,0) -> 0 | CD65: =IFERROR((BZ65/(2080/12))*$D$25,0) -> 0 | CE65: =CA65+CC65+CD65 -> 0 | CF65: =IF(OR($AJ$58,$AJ$54),0,AO65+BG65+BM65+BS65+BY65+AU65+BA65) -> 0 | CG65: =AD65+CE65 -> 0 | CH65: =AF65+AH65 -> 0 | CI65: =CF65+CG65+CH65 -> 0 | CJ65: =SUMIFS(A!BP:BP,A!AN:AN,L65,A!C:C,A!$AQ$15)/$L$2 -> 0 | CK65: =SUMIFS(A!BN:BN,A!AN:AN,L65,A!C:C,A!$AQ$15)/$L$2 -> 0 | CL65: =IFERROR(CK65/CJ65,0) -> 0 | CM65: =IFERROR(CK65*$F$9,0) -> 0 | CN65: =IFERROR((CJ65/(2080/12))*$F$10,0) -> 0 | CO65: =CK65+CM65+CN65 -> 0 | CP65: =SUMIFS(A!BT:BT,A!AN:AN,L65,A!C:C,A!$AQ$15)/$L$2 -> 0 | CQ65: =SUMIFS(A!BR:BR,A!AN:AN,L65,A!C:C,A!$AQ$15)/$L$2 -> 0 | CR65: =IFERROR(CQ65/CP65,0) -> 0 | CS65: =IFERROR(CQ65*$D$9,0) -> 0 | CT65: =IFERROR((CP65/(2080/12))*$D$10,0) -> 0 | CU65: =CQ65+CS65+CT65 -> 0 | CV65: =SUMIFS(A!BX:BX,A!AN:AN,L65,A!C:C,A!$AQ$15)/$L$2 -> 0 | CW65: =SUMIFS(A!BV:BV,A!AN:AN,L65,A!C:C,A!$AQ$15)/$L$2 -> 0 | CX65: =IFERROR(CW65/CV65,0) -> 0 | CY65: =IFERROR(CW65*$D$12,0) -> 0 | CZ65: =IFERROR((CV65/(2080/12))*$D$13,0) -> 0 | DA65: =CW65+CY65+CZ65 -> 0 | DB65: =SUMIFS(A!AK:AK,A!AN:AN,L65,A!C:C,A!$AQ$18)/$L$2 -> 0 | DC65: =SUMIFS(A!AX:AX,A!AN:AN,L65,A!C:C,A!$AQ$18)/$L$2 -> 0 | DD65: =IFERROR(DC65/DB65,0) -> 0 | DE65: =IFERROR(DC65*$F$12,0) -> 0 | DF65: =(DB65/(2080/12))*$F$13 -> 0 | DG65: =DC65+DE65+DF65 -> 0 | DH65: =SUMIFS(A!AK:AK,A!AN:AN,L65,A!C:C,A!$AQ$19)/$L$2 -> 0 | DI65: =SUMIFS(A!BB:BB,A!AN:AN,L65,A!C:C,A!$AQ$19)/$L$2 -> 0 | DJ65: =IFERROR(DI65/DH65,0) -> 0 | DK65: =IFERROR(DI65*$F$15,0) -> 0 | DL65: =(DH65/(2080/12))*$F$16 -> 0 | DM65: =DI65+DK65+DL65 -> 0 | DN65: =SUMIFS(A!AK:AK,A!AN:AN,L65,A!C:C,A!$AQ$20)/$L$2 -> 0 | DO65: =SUMIFS(A!BF:BF,A!AN:AN,L65,A!C:C,A!$AQ$20)/$L$2 -> 0 | DP65: =IFERROR(DO65/DN65,0) -> 0 | DQ65: =IFERROR(DO65*$F$18,0) -> 0 | DR65: =(DN65/(2080/12))*$F$19 -> 0 | DS65: =DO65+DQ65+DR65 -> 0 | DT65: =SUMIFS(A!AK:AK,A!AN:AN,L65,A!C:C,A!$AQ$21)/$L$2 -> 0 | DU65: =SUMIFS(A!BJ:BJ,A!AN:AN,L65,A!C:C,A!$AQ$21)/$L$2 -> 0 | DV65: =IFERROR(DU65/DT65,0) -> 0 | DW65: =IFERROR(DU65*$F$21,0) -> 0 | DX65: =(DT65/(2080/12))*$F$22 -> 0 | DY65: =DU65+DW65+DX65 -> 0 | DZ65: =SUMIFS(A!CF:CF,A!AN:AN,L65,A!C:C,A!$AQ$16)/$L$2 -> 0 | EA65: =SUMIFS(A!CD:CD,A!AN:AN,L65,A!C:C,A!$AQ$16)/$L$2 -> 0 | EB65: =IFERROR(EA65/DZ65,0) -> 0 | EC65: =IFERROR(EA65*$F$24,0) -> 0 | ED65: =IFERROR((DZ65/(2080/12))*$F$25,0) -> 0 | EE65: =EA65+EC65+ED65 -> 0 | EF65: =CO65+DG65+DM65+DS65+DY65+CU65+DA65 -> 0 | EG65: =AE65+EE65 -> 0 | EH65: =AG65+AI65 -> 0 | EI65: =EF65+EG65+EH65 -> 0 | EJ65: =CI65+('C'!J40+'C'!J34)/L2 -> 0 | EK65: =EI65+('C'!O40+'C'!O34)/L2 -> 0 | EL65: =IFERROR(EK65/$EK$70,0) -> 0 | EM65: =EK65-EJ65 -> 0 | EN65: =EF65-CF65 -> 0 | EO65: =EI65-CI65 -> 0 | EP65: ='C'!J35/L2 -> 0 | EQ65: ='C'!J41/L2 -> 0 | ER65: =(EH65-CH65)+(EG65-CG65)+EP65+EQ65 -> 0 | ES65: =EF65-CF65 -> 0 | ET65: =(IFERROR($ES$70/Q65,0)*AA65)*N65+IFERROR((ER65/Q65),0) -> 0 | EU65: =IF(A!U12="YES",TRUE,FALSE) -> FALSE | EV65: =IF(EU65=TRUE,0,EK65) -> 0 | EW65: =IFERROR(EV65/$EV$70,0) -> 0 | EX65: =IF(EU65=TRUE,EM65,0) -> 0 | EY65: =IF($EU65=TRUE,0,$EX$70*$AA65-$EX65) -> 0 | EZ65: =IF(EU65=TRUE,D65*K65,0) -> 0 | FA65: =IF(EU65=TRUE,EJ65-EZ65+EP65+EQ65,0) -> 0 | FB65: =$FA$70*AA65 -> 0 | FD65: =(CU65-AU65)+(EG65-CG65) -> 0 | FE65: =IF(EU65=TRUE,FD65,0) -> 0 | FF65: =IFERROR((FD65-FE65)/FD65,0) -> 0 | FG65: =IF($EU65=TRUE,0,$FE$70*$FF65-$FE65) -> 0 | FH65: =IF(EU65=TRUE,0,FD65+FG65) -> 0 | FI65: =FH65*$FI$64 -> 0 | FJ65: =$FE$65*AA65*$FI$64 -> 0 | FK65: =E65 -> 0 | FN65: =AA65 -> 0 | FO65: =FH65*$FO$64 -> 0 | FP65: =($G$61-$E$70)*FN65 -> 0 | FQ65: =IF(EU65=TRUE,D65,IFERROR((ER65+ES65+EY65)/K65,0)+D65) -> 0 | FR65: =IF(EU65=TRUE,D65,IFERROR(((EK65+FB65)/K65),0)) -> 0 | FS65: =IF(EU65=TRUE,D65,IF($EU$59=TRUE,IFERROR(ET65,0),IFERROR((ER65+ES65+FB65)/K65,0))) -> 0 | FT65: =FS65 -> 0 | FU65: =IFERROR((($ES$70*AA65)+ER65)/K65+D65,0) -> 0 | FV65: =IFERROR(D65+((($G$61-$E$70)/K65)*AC65),0) -> 0 | FW65: =IF(EU65=TRUE,D65,IFERROR(ET65,0)) -> 0 | FX65: =FW65 -> 0 | FY65: =IF(EU65=TRUE,D65,IFERROR((FI65)/K65,0)+D65) -> 0 | FZ65: =IFERROR(((FJ65))/K65+D65,0) -> 0 | GA65: =IF(EU65=TRUE,D65,IFERROR((FO65)/K65,0)+D65) -> 0 | GB65: =IF(EU65=TRUE,D65,IFERROR((FP65)/K65,0)+D65) -> 0
B66: ="Subcode #2: "&A!K13&" "&A!AC13 -> Subcode #2: | C66: =IF($L$1=TRUE,K66,J66) -> 0 | D66: =A!N13 -> 0 | E66: =D66*C66 -> 0 | F66: =HLOOKUP($Q$89,$FQ$61:$GB$69,6,FALSE) -> 0 | G66: =K66*F66 -> 0 | H66: =G66-E66 -> 0 | I66: =IF(J66=K66,IF(H66=0,"",TEXT((IFERROR(F66-D66,0)),"$0.00")&" Rate Increase"&" ("&TEXT((IFERROR(F66/D66-1,"")),"0.0%")&")"),"Proposed Units = "&TEXT(K66,"0.00")) ->  | J66: =IF(A!N13="",0,IF($AJ$58=FALSE,B!C73/$L$2,K66)) -> 0 | K66: =IF(A!N13="",0,IF($L$3="LMW",B!C73/$L$2,B!G73/$L$2)) -> 0 | L66: 2 | M66: =A!L13 -> 0 | N66: =IF($K$76,VLOOKUP(M66,J78:K82,2,FALSE),1) -> 1 | O66: =IF(A!U13="YES",TRUE,FALSE) -> FALSE | P66: =IF(O66=FALSE,J66,0)*N66 -> 0 | Q66: =IF(O66=FALSE,K66,0)*N66 -> 0 | R66: =IF(A!T13="Yes",FALSE,TRUE) -> TRUE | S66: =IF(R66=FALSE,0,AA66) -> 0 | T66: =IFERROR(S66/$S$70,0) -> 0 | U66: =IF(A!R13="Yes",FALSE,TRUE) -> TRUE | V66: =IF(U66=FALSE,0,AA66) -> 0 | W66: =IFERROR(V66/$V$70,0) -> 0 | X66: =IF(A!S13="Yes",FALSE,TRUE) -> TRUE | Y66: =IF(X66=FALSE,0,AA66) -> 0 | Z66: =IFERROR(Y66/$Y$70,0) -> 0 | AA66: =IF($AJ$58=TRUE,AC66,AB66) -> 0 | AB66: =IFERROR(P66/$P$70,0) -> 0 | AC66: =IFERROR(Q66/$Q$70,0) -> 0 | AD66: =(SUM($E$23:$E$25)-$CE$70)*W66 -> 0 | AE66: =(SUM($G$23:$G$25)-$EE$70)*W66 -> 0 | AF66: =($E$40-'C'!$J$37)*Z66 -> 0 | AG66: =IF($AJ$52="LMW",AF66,($G$40-'C'!$J$38)*Z66) -> 0 | AH66: =($E$52-'C'!$J$43)*T66 -> 0 | AI66: =IF($AJ$52="LMW",AH66,IF(AJ$56=TRUE,($G$52-'C'!$J$44)*T66,(G$52-'C'!$J$44)*T66)) -> 0 | AJ66: =SUMIFS(A!BO:BO,A!AN:AN,L66,A!C:C,A!$AQ$15)/$L$2 -> 0 | AK66: =SUMIFS(A!BM:BM,A!AN:AN,L66,A!C:C,A!$AQ$15)/$L$2 -> 0 | AL66: =IFERROR(AK66/AJ66,0) -> 0 | AM66: =IFERROR(AK66*$D$9,0) -> 0 | AN66: =IFERROR((AJ66/(2080/12))*$D$10,0) -> 0 | AO66: =SUM(AK66+AM66+AN66) -> 0 | AP66: =SUMIFS(A!BS:BS,A!AN:AN,L66,A!C:C,A!$AQ$15)/$L$2 -> 0 | AQ66: =SUMIFS(A!BQ:BQ,A!AN:AN,L66,A!C:C,A!$AQ$15)/$L$2 -> 0 | AR66: =IFERROR(AQ66/AP66,0) -> 0 | AS66: =IFERROR(AQ66*$D$9,0) -> 0 | AT66: =IFERROR((AP66/(2080/12))*$D$10,0) -> 0 | AU66: =AQ66+AS66+AT66 -> 0 | AV66: =SUMIFS(A!BW:BW,A!AN:AN,L66,A!C:C,A!$AQ$15)/$L$2 -> 0 | AW66: =SUMIFS(A!BU:BU,A!AN:AN,L66,A!C:C,A!$AQ$15)/$L$2 -> 0 | AX66: =IFERROR(AW66/AV66,0) -> 0 | AY66: =IFERROR(AW66*$D$12,0) -> 0 | AZ66: =IFERROR((AV66/(2080/12))*$D$13,0) -> 0 | BA66: =AW66+AY66+AZ66 -> 0 | BB66: =SUMIFS(A!AJ:AJ,A!AN:AN,L66,A!C:C,A!$AQ$18)/$L$2 -> 0 | BC66: =SUMIFS(A!AW:AW,A!AN:AN,L66,A!C:C,A!$AQ$18)/$L$2 -> 0 | BD66: =IFERROR(BC66/BB66,0) -> 0 | BE66: =IFERROR(BC66*$D$12,0) -> 0 | BF66: =IFERROR((BB66/(2080/12))*$D$13,0) -> 0 | BG66: =BC66+BE66+BF66 -> 0 | BH66: =SUMIFS(A!AJ:AJ,A!AN:AN,L66,A!C:C,A!$AQ$19)/$L$2 -> 0 | BI66: =SUMIFS(A!BA:BA,A!AN:AN,L66,A!C:C,A!$AQ$19)/$L$2 -> 0 | BJ66: =IFERROR(BI66/BH66,0) -> 0 | BK66: =IFERROR(BI66*$D$15,0) -> 0 | BL66: =IFERROR((BH66/(2080/12))*$D$16,0) -> 0 | BM66: =BI66+BK66+BL66 -> 0 | BN66: =SUMIFS(A!AJ:AJ,A!AN:AN,L66,A!C:C,A!$AQ$20)/$L$2 -> 0 | BO66: =SUMIFS(A!BE:BE,A!AN:AN,L66,A!C:C,A!$AQ$20)/$L$2 -> 0 | BP66: =IFERROR(BO66/BN66,0) -> 0 | BQ66: =IFERROR(BO66*$D$18,0) -> 0 | BR66: =IFERROR((BN66/(2080/12))*$D$19,0) -> 0 | BS66: =BO66+BQ66+BR66 -> 0 | BT66: =SUMIFS(A!AJ:AJ,A!AN:AN,L66,A!C:C,A!$AQ$21)/$L$2 -> 0 | BU66: =SUMIFS(A!BI:BI,A!AN:AN,L66,A!C:C,A!$AQ$21)/$L$2 -> 0 | BV66: =IFERROR(BU66/BT66,0) -> 0 | BW66: =IFERROR(BU66*$D$21,0) -> 0 | BX66: =IFERROR((BT66/(2080/12))*$D$22,0) -> 0 | BY66: =BU66+BW66+BX66 -> 0 | BZ66: =SUMIFS(A!CE:CE,A!AN:AN,L66,A!C:C,A!$AQ$16)/$L$2 -> 0 | CA66: =SUMIFS(A!CC:CC,A!AN:AN,L66,A!C:C,A!$AQ$16)/$L$2 -> 0 | CB66: =IFERROR(CA66/BZ66,0) -> 0 | CC66: 0 | CD66: 0 | CE66: =CA66+CC66+CD66 -> 0 | CF66: =IF(OR($AJ$58,$AJ$54),0,AO66+BG66+BM66+BS66+BY66+AU66+BA66) -> 0 | CG66: =AD66+CE66 -> 0 | CH66: =AF66+AH66 -> 0 | CI66: =CF66+CG66+CH66 -> 0 | CJ66: =SUMIFS(A!BP:BP,A!AN:AN,L66,A!C:C,A!$AQ$15)/$L$2 -> 0 | CK66: =SUMIFS(A!BN:BN,A!AN:AN,L66,A!C:C,A!$AQ$15)/$L$2 -> 0 | CL66: =IFERROR(CK66/CJ66,0) -> 0 | CM66: =IFERROR(CK66*$F$9,0) -> 0 | CN66: =IFERROR((CJ66/(2080/12))*$F$10,0) -> 0 | CO66: =CK66+CM66+CN66 -> 0 | CP66: =SUMIFS(A!BT:BT,A!AN:AN,L66,A!C:C,A!$AQ$15)/$L$2 -> 0 | CQ66: =SUMIFS(A!BR:BR,A!AN:AN,L66,A!C:C,A!$AQ$15)/$L$2 -> 0 | CR66: =IFERROR(CQ66/CP66,0) -> 0 | CS66: =IFERROR(CQ66*$D$9,0) -> 0 | CT66: =IFERROR((CP66/(2080/12))*$D$10,0) -> 0 | CU66: =CQ66+CS66+CT66 -> 0 | CV66: =SUMIFS(A!BX:BX,A!AN:AN,L66,A!C:C,A!$AQ$15)/$L$2 -> 0 | CW66: =SUMIFS(A!BV:BV,A!AN:AN,L66,A!C:C,A!$AQ$15)/$L$2 -> 0 | CX66: =IFERROR(CW66/CV66,0) -> 0 | CY66: =IFERROR(CW66*$D$12,0) -> 0 | CZ66: =IFERROR((CV66/(2080/12))*$D$13,0) -> 0 | DA66: =CW66+CY66+CZ66 -> 0 | DB66: =SUMIFS(A!AK:AK,A!AN:AN,L66,A!C:C,A!$AQ$18)/$L$2 -> 0 | DC66: =SUMIFS(A!AX:AX,A!AN:AN,L66,A!C:C,A!$AQ$18)/$L$2 -> 0 | DD66: =IFERROR(DC66/DB66,0) -> 0 | DE66: =IFERROR(DC66*$F$12,0) -> 0 | DF66: =(DB66/(2080/12))*$F$13 -> 0 | DG66: =DC66+DE66+DF66 -> 0 | DH66: =SUMIFS(A!AK:AK,A!AN:AN,L66,A!C:C,A!$AQ$19)/$L$2 -> 0 | DI66: =SUMIFS(A!BB:BB,A!AN:AN,L66,A!C:C,A!$AQ$19)/$L$2 -> 0 | DJ66: =IFERROR(DI66/DH66,0) -> 0 | DK66: =IFERROR(DI66*$F$15,0) -> 0 | DL66: =(DH66/(2080/12))*$F$16 -> 0 | DM66: =DI66+DK66+DL66 -> 0 | DN66: =SUMIFS(A!AK:AK,A!AN:AN,L66,A!C:C,A!$AQ$20)/$L$2 -> 0 | DO66: =SUMIFS(A!BF:BF,A!AN:AN,L66,A!C:C,A!$AQ$20)/$L$2 -> 0 | DP66: =IFERROR(DO66/DN66,0) -> 0 | DQ66: =IFERROR(DO66*$F$18,0) -> 0 | DR66: =(DN66/(2080/12))*$F$19 -> 0 | DS66: =DO66+DQ66+DR66 -> 0 | DT66: =SUMIFS(A!AK:AK,A!AN:AN,L66,A!C:C,A!$AQ$21)/$L$2 -> 0 | DU66: =SUMIFS(A!BJ:BJ,A!AN:AN,L66,A!C:C,A!$AQ$21)/$L$2 -> 0 | DV66: =IFERROR(DU66/DT66,0) -> 0 | DW66: =IFERROR(DU66*$F$21,0) -> 0 | DX66: =(DT66/(2080/12))*$F$22 -> 0 | DY66: =DU66+DW66+DX66 -> 0 | DZ66: =SUMIFS(A!CF:CF,A!AN:AN,L66,A!C:C,A!$AQ$16)/$L$2 -> 0 | EA66: =SUMIFS(A!CD:CD,A!AN:AN,L66,A!C:C,A!$AQ$16)/$L$2 -> 0 | EB66: =IFERROR(EA66/DZ66,0) -> 0 | EC66: 0 | ED66: 0 | EE66: =EA66+EC66+ED66 -> 0 | EF66: =CO66+DG66+DM66+DS66+DY66+CU66+DA66 -> 0 | EG66: =AE66+EE66 -> 0 | EH66: =AG66+AI66 -> 0 | EI66: =EF66+EG66+EH66 -> 0 | EJ66: =CI66+('C'!K40+'C'!K34)/L2 -> 0 | EK66: =EI66+('C'!P40+'C'!P34)/L2 -> 0 | EL66: =IFERROR(EK66/$EK$70,0) -> 0 | EM66: =EK66-EJ66 -> 0 | EN66: =EF66-CF66 -> 0 | EO66: =EI66-CI66 -> 0 | EP66: ='C'!K35/L2 -> 0 | EQ66: ='C'!K41/L2 -> 0 | ER66: =(EH66-CH66)+(EG66-CG66)+EP66+EQ66 -> 0 | ES66: =EF66-CF66 -> 0 | ET66: =(IFERROR($ES$70/Q66,0)*AA66)*N66+IFERROR((ER66/K66),0) -> 0 | EU66: =IF(A!U13="YES",TRUE,FALSE) -> FALSE | EV66: =IF(EU66=TRUE,0,EK66) -> 0 | EW66: =IFERROR(EV66/$EV$70,0) -> 0 | EX66: =IF(EU66=TRUE,EM66,0) -> 0 | EY66: =IF($EU66=TRUE,0,$EX$70*$AA66-$EX66) -> 0 | EZ66: =IF(EU66=TRUE,D66*K66,0) -> 0 | FA66: =IF(EU66=TRUE,EJ66-EZ66+EP66+EQ66,0) -> 0 | FB66: =$FA$70*AA66 -> 0 | FD66: =(CU66-AU66)+(EG66-CG66) -> 0 | FE66: =IF(EU66=TRUE,FD66,0) -> 0 | FF66: =IFERROR((FD66-FE66)/FD66,0) -> 0 | FG66: =IF($EU66=TRUE,0,$FE$70*$FF66-$FE66) -> 0 | FH66: =IF(EU66=TRUE,0,FD66+FG66) -> 0 | FI66: =FH66*$FI$64 -> 0 | FJ66: =$FE$65*AA66*$FI$64 -> 0 | FK66: =E66 -> 0 | FN66: =AA66 -> 0 | FO66: =FH66*$FO$64 -> 0 | FP66: =($G$61-$E$70)*FN66 -> 0 | FQ66: =IF(EU66=TRUE,D66,IFERROR((ER66+ES66+EY66)/K66,0)+D66) -> 0 | FR66: =IF(EU66=TRUE,D66,IFERROR(((EK66+FB66)/K66),0)) -> 0 | FS66: =IF(EU66=TRUE,D66,IF($EU$59=TRUE,IFERROR(ET66,0),IFERROR((ER66+ES66+FB66)/K66,0))) -> 0 | FT66: =FS66 -> 0 | FU66: =IFERROR((($ES$70*AA66)+ER66)/K66+D66,0) -> 0 | FV66: =IFERROR(D66+((($G$61-$E$70)/K66)*AC66),0) -> 0 | FW66: =IF(EU66=TRUE,D66,IFERROR(ET66,0)) -> 0 | FX66: =FW66 -> 0 | FY66: =IF(EU66=TRUE,D66,IFERROR((FI66)/K66,0)+D66) -> 0 | FZ66: =IFERROR(((FJ66))/K66+D66,0) -> 0 | GA66: =IF(EU66=TRUE,D66,IFERROR((FO66)/K66,0)+D66) -> 0 | GB66: =IF(EU66=TRUE,D66,IFERROR((FP66)/K66,0)+D66) -> 0
B67: ="Subcode #3: "&A!K14&" "&A!AC14 -> Subcode #3: | C67: =IF($L$1=TRUE,K67,J67) -> 0 | D67: =A!N14 -> 0 | E67: =D67*C67 -> 0 | F67: =HLOOKUP($Q$89,$FQ$61:$GB$69,7,FALSE) -> 0 | G67: =K67*F67 -> 0 | H67: =G67-E67 -> 0 | I67: =IF(J67=K67,IF(H67=0,"",TEXT((IFERROR(F67-D67,0)),"$0.00")&" Rate Increase"&" ("&TEXT((IFERROR(F67/D67-1,"")),"0.0%")&")"),"Proposed Units = "&TEXT(K67,"0.00")) ->  | J67: =IF(A!N14="",0,IF($AJ$58=FALSE,B!C74/$L$2,K67)) -> 0 | K67: =IF(A!N14="",0,IF($L$3="LMW",B!C74/$L$2,B!G74/$L$2)) -> 0 | L67: 3 | M67: =A!L14 -> 0 | N67: =IF($K$76,VLOOKUP(M67,J78:K82,2,FALSE),1) -> 1 | O67: =IF(A!U14="YES",TRUE,FALSE) -> FALSE | P67: =IF(O67=FALSE,J67,0)*N67 -> 0 | Q67: =IF(O67=FALSE,K67,0)*N67 -> 0 | R67: =IF(A!T14="Yes",FALSE,TRUE) -> TRUE | S67: =IF(R67=FALSE,0,AA67) -> 0 | T67: =IFERROR(S67/$S$70,0) -> 0 | U67: =IF(A!R14="Yes",FALSE,TRUE) -> TRUE | V67: =IF(U67=FALSE,0,AA67) -> 0 | W67: =IFERROR(V67/$V$70,0) -> 0 | X67: =IF(A!S14="Yes",FALSE,TRUE) -> TRUE | Y67: =IF(X67=FALSE,0,AA67) -> 0 | Z67: =IFERROR(Y67/$Y$70,0) -> 0 | AA67: =IF($AJ$58=TRUE,AC67,AB67) -> 0 | AB67: =IFERROR(P67/$P$70,0) -> 0 | AC67: =IFERROR(Q67/$Q$70,0) -> 0 | AD67: 0 | AE67: 0 | AF67: =($E$40-'C'!$J$37)*Z67 -> 0 | AG67: =IF($AJ$52="LMW",AF67,($G$40-'C'!$J$38)*Z67) -> 0 | AH67: =($E$52-'C'!$J$43)*T67 -> 0 | AI67: =IF($AJ$52="LMW",AH67,IF(AJ$56=TRUE,($G$52-'C'!$J$44)*T67,(G$52-'C'!$J$44)*T67)) -> 0 | AJ67: =SUMIFS(A!BO:BO,A!AN:AN,L67,A!C:C,A!$AQ$15)/$L$2 -> 0 | AK67: =SUMIFS(A!BM:BM,A!AN:AN,L67,A!C:C,A!$AQ$15)/$L$2 -> 0 | AL67: =IFERROR(AK67/AJ67,0) -> 0 | AM67: =IFERROR(AK67*$D$9,0) -> 0 | AN67: =IFERROR((AJ67/(2080/12))*$D$10,0) -> 0 | AO67: =SUM(AK67+AM67+AN67) -> 0 | AP67: =SUMIFS(A!BS:BS,A!AN:AN,L67,A!C:C,A!$AQ$15)/$L$2 -> 0 | AQ67: =SUMIFS(A!BQ:BQ,A!AN:AN,L67,A!C:C,A!$AQ$15)/$L$2 -> 0 | AR67: 0 | AS67: 0 | AT67: 0 | AU67: =AQ67+AS67+AT67 -> 0 | AV67: =SUMIFS(A!BW:BW,A!AN:AN,L67,A!C:C,A!$AQ$15)/$L$2 -> 0 | AW67: =SUMIFS(A!BU:BU,A!AN:AN,L67,A!C:C,A!$AQ$15)/$L$2 -> 0 | AX67: 0 | AY67: 0 | AZ67: 0 | BA67: =AW67+AY67+AZ67 -> 0 | BB67: =SUMIFS(A!AJ:AJ,A!AN:AN,L67,A!C:C,A!$AQ$18)/$L$2 -> 0 | BC67: =SUMIFS(A!AW:AW,A!AN:AN,L67,A!C:C,A!$AQ$18)/$L$2 -> 0 | BD67: =IFERROR(BC67/BB67,0) -> 0 | BE67: =IFERROR(BC67*$D$12,0) -> 0 | BF67: =IFERROR((BB67/(2080/12))*$D$13,0) -> 0 | BG67: =BC67+BE67+BF67 -> 0 | BH67: =SUMIFS(A!AJ:AJ,A!AN:AN,L67,A!C:C,A!$AQ$19)/$L$2 -> 0 | BI67: =SUMIFS(A!BA:BA,A!AN:AN,L67,A!C:C,A!$AQ$19)/$L$2 -> 0 | BJ67: =IFERROR(BI67/BH67,0) -> 0 | BK67: =IFERROR(BI67*$D$15,0) -> 0 | BL67: =IFERROR((BH67/(2080/12))*$D$16,0) -> 0 | BM67: =BI67+BK67+BL67 -> 0 | BN67: =SUMIFS(A!AJ:AJ,A!AN:AN,L67,A!C:C,A!$AQ$20)/$L$2 -> 0 | BO67: =SUMIFS(A!BE:BE,A!AN:AN,L67,A!C:C,A!$AQ$20)/$L$2 -> 0 | BP67: =IFERROR(BO67/BN67,0) -> 0 | BQ67: =IFERROR(BO67*$D$18,0) -> 0 | BR67: =IFERROR((BN67/(2080/12))*$D$19,0) -> 0 | BS67: =BO67+BQ67+BR67 -> 0 | BT67: =SUMIFS(A!AJ:AJ,A!AN:AN,L67,A!C:C,A!$AQ$21)/$L$2 -> 0 | BU67: =SUMIFS(A!BI:BI,A!AN:AN,L67,A!C:C,A!$AQ$21)/$L$2 -> 0 | BV67: =IFERROR(BU67/BT67,0) -> 0 | BW67: =IFERROR(BU67*$D$21,0) -> 0 | BX67: =IFERROR((BT67/(2080/12))*$D$22,0) -> 0 | BY67: =BU67+BW67+BX67 -> 0 | BZ67: =SUMIFS(A!CE:CE,A!AN:AN,L67,A!C:C,A!$AQ$16)/$L$2 -> 0 | CA67: =SUMIFS(A!CC:CC,A!AN:AN,L67,A!C:C,A!$AQ$16)/$L$2 -> 0 | CB67: =IFERROR(CA67/BZ67,0) -> 0 | CC67: =IFERROR(CA67*$D$24,0) -> 0 | CD67: =IFERROR((BZ67/(2080/12))*$D$25,0) -> 0 | CE67: =CA67+CC67+CD67 -> 0 | CF67: =IF(OR($AJ$58,$AJ$54),0,AO67+BG67+BM67+BS67+BY67+AU67+BA67) -> 0 | CG67: 0 | CH67: =AF67+AH67 -> 0 | CI67: =CF67+CG67+CH67 -> 0 | CJ67: =SUMIFS(A!BP:BP,A!AN:AN,L67,A!C:C,A!$AQ$15)/$L$2 -> 0 | CK67: =SUMIFS(A!BN:BN,A!AN:AN,L67,A!C:C,A!$AQ$15)/$L$2 -> 0 | CL67: =IFERROR(CK67/CJ67,0) -> 0 | CM67: =IFERROR(CK67*$F$9,0) -> 0 | CN67: =IFERROR((CJ67/(2080/12))*$F$10,0) -> 0 | CO67: =CK67+CM67+CN67 -> 0 | CP67: =SUMIFS(A!BT:BT,A!AN:AN,L67,A!C:C,A!$AQ$15)/$L$2 -> 0 | CQ67: =SUMIFS(A!BR:BR,A!AN:AN,L67,A!C:C,A!$AQ$15)/$L$2 -> 0 | CR67: 0 | CS67: 0 | CT67: 0 | CU67: 0 | CV67: =SUMIFS(A!BX:BX,A!AN:AN,L67,A!C:C,A!$AQ$15)/$L$2 -> 0 | CW67: =SUMIFS(A!BV:BV,A!AN:AN,L67,A!C:C,A!$AQ$15)/$L$2 -> 0 | CX67: 0 | CY67: 0 | CZ67: 0 | DA67: 0 | DB67: =SUMIFS(A!AK:AK,A!AN:AN,L67,A!C:C,A!$AQ$18)/$L$2 -> 0 | DC67: =SUMIFS(A!AX:AX,A!AN:AN,L67,A!C:C,A!$AQ$18)/$L$2 -> 0 | DD67: =IFERROR(DC67/DB67,0) -> 0 | DE67: =IFERROR(DC67*$F$12,0) -> 0 | DF67: =(DB67/(2080/12))*$F$13 -> 0 | DG67: =DC67+DE67+DF67 -> 0 | DH67: =SUMIFS(A!AK:AK,A!AN:AN,L67,A!C:C,A!$AQ$19)/$L$2 -> 0 | DI67: =SUMIFS(A!BB:BB,A!AN:AN,L67,A!C:C,A!$AQ$19)/$L$2 -> 0 | DJ67: =IFERROR(DI67/DH67,0) -> 0 | DK67: =IFERROR(DI67*$F$15,0) -> 0 | DL67: =(DH67/(2080/12))*$F$16 -> 0 | DM67: =DI67+DK67+DL67 -> 0 | DN67: =SUMIFS(A!AK:AK,A!AN:AN,L67,A!C:C,A!$AQ$20)/$L$2 -> 0 | DO67: =SUMIFS(A!BF:BF,A!AN:AN,L67,A!C:C,A!$AQ$20)/$L$2 -> 0 | DP67: =IFERROR(DO67/DN67,0) -> 0 | DQ67: =IFERROR(DO67*$F$18,0) -> 0 | DR67: =(DN67/(2080/12))*$F$19 -> 0 | DS67: =DO67+DQ67+DR67 -> 0 | DT67: =SUMIFS(A!AK:AK,A!AN:AN,L67,A!C:C,A!$AQ$21)/$L$2 -> 0 | DU67: =SUMIFS(A!BJ:BJ,A!AN:AN,L67,A!C:C,A!$AQ$21)/$L$2 -> 0 | DV67: =IFERROR(DU67/DT67,0) -> 0 | DW67: =IFERROR(DU67*$F$21,0) -> 0 | DX67: =(DT67/(2080/12))*$F$22 -> 0 | DY67: =DU67+DW67+DX67 -> 0 | DZ67: =SUMIFS(A!CF:CF,A!AN:AN,L67,A!C:C,A!$AQ$16)/$L$2 -> 0 | EA67: =SUMIFS(A!CD:CD,A!AN:AN,L67,A!C:C,A!$AQ$16)/$L$2 -> 0 | EB67: =IFERROR(EA67/DZ67,0) -> 0 | EC67: =IFERROR(EA67*$F$24,0) -> 0 | ED67: =IFERROR((DZ67/(2080/12))*$F$25,0) -> 0 | EE67: =EA67+EC67+ED67 -> 0 | EF67: =CO67+DG67+DM67+DS67+DY67+CU67+DA67 -> 0 | EG67: 0 | EH67: =AG67+AI67 -> 0 | EI67: =EF67+EG67+EH67 -> 0 | EJ67: =CI67+('C'!L40+'C'!L34)/L2 -> 0 | EK67: =EI67+('C'!Q40+'C'!Q34)/L2 -> 0 | EL67: =IFERROR(EK67/$EK$70,0) -> 0 | EM67: =EK67-EJ67 -> 0 | EN67: =EF67-CF67 -> 0 | EO67: =EI67-CI67 -> 0 | EP67: ='C'!L35/L2 -> 0 | EQ67: ='C'!L41/L2 -> 0 | ER67: =(EH67-CH67)+(EG67-CG67)+EP67+EQ67 -> 0 | ES67: =EF67-CF67 -> 0 | ET67: =(IFERROR($ES$70/Q67,0)*AA67)*N67+IFERROR((ER67/K67),0) -> 0 | EU67: =IF(A!U14="YES",TRUE,FALSE) -> FALSE | EV67: =IF(EU67=TRUE,0,EK67) -> 0 | EW67: =IFERROR(EV67/$EV$70,0) -> 0 | EX67: =IF(EU67=TRUE,EM67,0) -> 0 | EY67: =IF($EU67=TRUE,0,$EX$70*$AA67-$EX67) -> 0 | EZ67: =IF(EU67=TRUE,D67*K67,0) -> 0 | FA67: =IF(EU67=TRUE,EJ67-EZ67+EP67+EQ67,0) -> 0 | FB67: =$FA$70*AA67 -> 0 | FD67: 0 | FE67: 0 | FF67: =IFERROR((FD67-FE67)/FD67,0) -> 0 | FG67: =IF($EU67=TRUE,0,$FE$70*$FF67-$FE67) -> 0 | FH67: =IF(EU67=TRUE,0,FD67+FG67) -> 0 | FI67: =FH67*$FI$64 -> 0 | FJ67: =$FE$65*AA67*$FI$64 -> 0 | FK67: =E67 -> 0 | FN67: =AA67 -> 0 | FO67: =FH67*$FO$64 -> 0 | FP67: 0 | FQ67: =IF(EU67=TRUE,D67,IFERROR((ER67+ES67+EY67)/K67,0)+D67) -> 0 | FR67: =IF(EU67=TRUE,D67,IFERROR(((EK67+FB67)/K67),0)) -> 0 | FS67: =IF(EU67=TRUE,D67,IF($EU$59=TRUE,IFERROR(ET67,0),IFERROR((ER67+ES67+FB67)/K67,0))) -> 0 | FT67: 0 | FU67: =IFERROR((($ES$70*AA67)+ER67)/K67+D67,0) -> 0 | FV67: =IFERROR(D67+((($G$61-$E$70)/K67)*AC67),0) -> 0 | FW67: =IF(EU67=TRUE,D67,IFERROR(ET67,0)) -> 0 | FX67: 0 | FY67: =IF(EU67=TRUE,D67,IFERROR((FI67)/K67,0)+D67) -> 0 | FZ67: =IFERROR(((FJ67))/K67+D67,0) -> 0 | GA67: =IF(EU67=TRUE,D67,IFERROR((FO67)/K67,0)+D67) -> 0 | GB67: =IF(EU67=TRUE,D67,IFERROR((FP67)/K67,0)+D67) -> 0
B68: ="Subcode #4: "&A!K15&" "&A!AC15 -> Subcode #4: | C68: =IF($L$1=TRUE,K68,J68) -> 0 | D68: =A!N15 -> 0 | E68: =D68*C68 -> 0 | F68: =HLOOKUP($Q$89,$FQ$61:$GB$69,8,FALSE) -> 0 | G68: =K68*F68 -> 0 | H68: =G68-E68 -> 0 | I68: =IF(J68=K68,IF(H68=0,"",TEXT((IFERROR(F68-D68,0)),"$0.00")&" Rate Increase"&" ("&TEXT((IFERROR(F68/D68-1,"")),"0.0%")&")"),"Proposed Units = "&TEXT(K68,"0.00")) ->  | J68: =IF(A!N15="",0,IF($AJ$58=FALSE,B!C75/$L$2,K68)) -> 0 | K68: =IF(A!N15="",0,IF($L$3="LMW",B!C75/$L$2,B!G75/$L$2)) -> 0 | L68: 4 | M68: =A!L15 -> 0 | N68: =IF($K$76,VLOOKUP(M68,J78:K82,2,FALSE),1) -> 1 | O68: =IF(A!U15="YES",TRUE,FALSE) -> FALSE | P68: =IF(O68=FALSE,J68,0)*N68 -> 0 | Q68: =IF(O68=FALSE,K68,0)*N68 -> 0 | R68: =IF(A!T15="Yes",FALSE,TRUE) -> TRUE | S68: =IF(R68=FALSE,0,AA68) -> 0 | T68: =IFERROR(S68/$S$70,0) -> 0 | U68: =IF(A!R15="Yes",FALSE,TRUE) -> TRUE | V68: =IF(U68=FALSE,0,AA68) -> 0 | W68: =IFERROR(V68/$V$70,0) -> 0 | X68: =IF(A!S15="Yes",FALSE,TRUE) -> TRUE | Y68: =IF(X68=FALSE,0,AA68) -> 0 | Z68: =IFERROR(Y68/$Y$70,0) -> 0 | AA68: =IF($AJ$58=TRUE,AC68,AB68) -> 0 | AB68: =IFERROR(P68/$P$70,0) -> 0 | AC68: =IFERROR(Q68/$Q$70,0) -> 0 | AD68: 0 | AE68: 0 | AF68: =($E$40-'C'!$J$37)*Z68 -> 0 | AG68: =IF($AJ$52="LMW",AF68,($G$40-'C'!$J$38)*Z68) -> 0 | AH68: =($E$52-'C'!$J$43)*T68 -> 0 | AI68: =IF($AJ$52="LMW",AH68,IF(AJ$56=TRUE,($G$52-'C'!$J$44)*T68,(G$52-'C'!$J$44)*T68)) -> 0 | AJ68: =SUMIFS(A!BO:BO,A!AN:AN,L68,A!C:C,A!$AQ$15)/$L$2 -> 0 | AK68: =SUMIFS(A!BM:BM,A!AN:AN,L68,A!C:C,A!$AQ$15)/$L$2 -> 0 | AL68: =IFERROR(AK68/AJ68,0) -> 0 | AM68: =IFERROR(AK68*$D$9,0) -> 0 | AN68: =IFERROR((AJ68/(2080/12))*$D$10,0) -> 0 | AO68: =SUM(AK68+AM68+AN68) -> 0 | AP68: =SUMIFS(A!BS:BS,A!AN:AN,L68,A!C:C,A!$AQ$15)/$L$2 -> 0 | AQ68: =SUMIFS(A!BQ:BQ,A!AN:AN,L68,A!C:C,A!$AQ$15)/$L$2 -> 0 | AR68: 0 | AS68: 0 | AT68: 0 | AU68: =AQ68+AS68+AT68 -> 0 | AV68: =SUMIFS(A!BW:BW,A!AN:AN,L68,A!C:C,A!$AQ$15)/$L$2 -> 0 | AW68: =SUMIFS(A!BU:BU,A!AN:AN,L68,A!C:C,A!$AQ$15)/$L$2 -> 0 | AX68: 0 | AY68: 0 | AZ68: 0 | BA68: =AW68+AY68+AZ68 -> 0 | BB68: =SUMIFS(A!AJ:AJ,A!AN:AN,L68,A!C:C,A!$AQ$18)/$L$2 -> 0 | BC68: =SUMIFS(A!AW:AW,A!AN:AN,L68,A!C:C,A!$AQ$18)/$L$2 -> 0 | BD68: =IFERROR(BC68/BB68,0) -> 0 | BE68: =IFERROR(BC68*$D$12,0) -> 0 | BF68: =IFERROR((BB68/(2080/12))*$D$13,0) -> 0 | BG68: =BC68+BE68+BF68 -> 0 | BH68: =SUMIFS(A!AJ:AJ,A!AN:AN,L68,A!C:C,A!$AQ$19)/$L$2 -> 0 | BI68: =SUMIFS(A!BA:BA,A!AN:AN,L68,A!C:C,A!$AQ$19)/$L$2 -> 0 | BJ68: =IFERROR(BI68/BH68,0) -> 0 | BK68: =IFERROR(BI68*$D$15,0) -> 0 | BL68: =IFERROR((BH68/(2080/12))*$D$16,0) -> 0 | BM68: =BI68+BK68+BL68 -> 0 | BN68: =SUMIFS(A!AJ:AJ,A!AN:AN,L68,A!C:C,A!$AQ$20)/$L$2 -> 0 | BO68: =SUMIFS(A!BE:BE,A!AN:AN,L68,A!C:C,A!$AQ$20)/$L$2 -> 0 | BP68: =IFERROR(BO68/BN68,0) -> 0 | BQ68: =IFERROR(BO68*$D$18,0) -> 0 | BR68: =IFERROR((BN68/(2080/12))*$D$19,0) -> 0 | BS68: =BO68+BQ68+BR68 -> 0 | BT68: =SUMIFS(A!AJ:AJ,A!AN:AN,L68,A!C:C,A!$AQ$21)/$L$2 -> 0 | BU68: =SUMIFS(A!BI:BI,A!AN:AN,L68,A!C:C,A!$AQ$21)/$L$2 -> 0 | BV68: =IFERROR(BU68/BT68,0) -> 0 | BW68: =IFERROR(BU68*$D$21,0) -> 0 | BX68: =IFERROR((BT68/(2080/12))*$D$22,0) -> 0 | BY68: =BU68+BW68+BX68 -> 0 | BZ68: =SUMIFS(A!CE:CE,A!AN:AN,L68,A!C:C,A!$AQ$16)/$L$2 -> 0 | CA68: =SUMIFS(A!CC:CC,A!AN:AN,L68,A!C:C,A!$AQ$16)/$L$2 -> 0 | CB68: =IFERROR(CA68/BZ68,0) -> 0 | CC68: =IFERROR(CA68*$D$24,0) -> 0 | CD68: =IFERROR((BZ68/(2080/12))*$D$25,0) -> 0 | CE68: =CA68+CC68+CD68 -> 0 | CF68: =IF(OR($AJ$58,$AJ$54),0,AO68+BG68+BM68+BS68+BY68+AU68+BA68) -> 0 | CG68: 0 | CH68: =AF68+AH68 -> 0 | CI68: =CF68+CG68+CH68 -> 0 | CJ68: =SUMIFS(A!BP:BP,A!AN:AN,L68,A!C:C,A!$AQ$15)/$L$2 -> 0 | CK68: =SUMIFS(A!BN:BN,A!AN:AN,L68,A!C:C,A!$AQ$15)/$L$2 -> 0 | CL68: =IFERROR(CK68/CJ68,0) -> 0 | CM68: =IFERROR(CK68*$F$9,0) -> 0 | CN68: =IFERROR((CJ68/(2080/12))*$F$10,0) -> 0 | CO68: =CK68+CM68+CN68 -> 0 | CP68: =SUMIFS(A!BT:BT,A!AN:AN,L68,A!C:C,A!$AQ$15)/$L$2 -> 0 | CQ68: =SUMIFS(A!BR:BR,A!AN:AN,L68,A!C:C,A!$AQ$15)/$L$2 -> 0 | CR68: 0 | CS68: 0 | CT68: 0 | CU68: 0 | CV68: =SUMIFS(A!BX:BX,A!AN:AN,L68,A!C:C,A!$AQ$15)/$L$2 -> 0 | CW68: =SUMIFS(A!BV:BV,A!AN:AN,L68,A!C:C,A!$AQ$15)/$L$2 -> 0 | CX68: 0 | CY68: 0 | CZ68: 0 | DA68: 0 | DB68: =SUMIFS(A!AK:AK,A!AN:AN,L68,A!C:C,A!$AQ$18)/$L$2 -> 0 | DC68: =SUMIFS(A!AX:AX,A!AN:AN,L68,A!C:C,A!$AQ$18)/$L$2 -> 0 | DD68: =IFERROR(DC68/DB68,0) -> 0 | DE68: =IFERROR(DC68*$F$12,0) -> 0 | DF68: =(DB68/(2080/12))*$F$13 -> 0 | DG68: =DC68+DE68+DF68 -> 0 | DH68: =SUMIFS(A!AK:AK,A!AN:AN,L68,A!C:C,A!$AQ$19)/$L$2 -> 0 | DI68: =SUMIFS(A!BB:BB,A!AN:AN,L68,A!C:C,A!$AQ$19)/$L$2 -> 0 | DJ68: =IFERROR(DI68/DH68,0) -> 0 | DK68: =IFERROR(DI68*$F$15,0) -> 0 | DL68: =(DH68/(2080/12))*$F$16 -> 0 | DM68: =DI68+DK68+DL68 -> 0 | DN68: =SUMIFS(A!AK:AK,A!AN:AN,L68,A!C:C,A!$AQ$20)/$L$2 -> 0 | DO68: =SUMIFS(A!BF:BF,A!AN:AN,L68,A!C:C,A!$AQ$20)/$L$2 -> 0 | DP68: =IFERROR(DO68/DN68,0) -> 0 | DQ68: =IFERROR(DO68*$F$18,0) -> 0 | DR68: =(DN68/(2080/12))*$F$19 -> 0 | DS68: =DO68+DQ68+DR68 -> 0 | DT68: =SUMIFS(A!AK:AK,A!AN:AN,L68,A!C:C,A!$AQ$21)/$L$2 -> 0 | DU68: =SUMIFS(A!BJ:BJ,A!AN:AN,L68,A!C:C,A!$AQ$21)/$L$2 -> 0 | DV68: =IFERROR(DU68/DT68,0) -> 0 | DW68: =IFERROR(DU68*$F$21,0) -> 0 | DX68: =(DT68/(2080/12))*$F$22 -> 0 | DY68: =DU68+DW68+DX68 -> 0 | DZ68: =SUMIFS(A!CF:CF,A!AN:AN,L68,A!C:C,A!$AQ$16)/$L$2 -> 0 | EA68: =SUMIFS(A!CD:CD,A!AN:AN,L68,A!C:C,A!$AQ$16)/$L$2 -> 0 | EB68: =IFERROR(EA68/DZ68,0) -> 0 | EC68: =IFERROR(EA68*$F$24,0) -> 0 | ED68: =IFERROR((DZ68/(2080/12))*$F$25,0) -> 0 | EE68: =EA68+EC68+ED68 -> 0 | EF68: =CO68+DG68+DM68+DS68+DY68+CU68+DA68 -> 0 | EG68: 0 | EH68: =AG68+AI68 -> 0 | EI68: =EF68+EG68+EH68 -> 0 | EJ68: =CI68+('C'!M40+'C'!M34)/L2 -> 0 | EK68: =EI68+('C'!R40+'C'!R34)/L2 -> 0 | EL68: =IFERROR(EK68/$EK$70,0) -> 0 | EM68: =EK68-EJ68 -> 0 | EN68: =EF68-CF68 -> 0 | EO68: =EI68-CI68 -> 0 | EP68: ='C'!M35/L2 -> 0 | EQ68: ='C'!M41/L2 -> 0 | ER68: =(EH68-CH68)+(EG68-CG68)+EP68+EQ68 -> 0 | ES68: =EF68-CF68 -> 0 | ET68: =(IFERROR($ES$70/Q68,0)*AA68)*N68+IFERROR((ER68/K68),0) -> 0 | EU68: =IF(A!U15="YES",TRUE,FALSE) -> FALSE | EV68: =IF(EU68=TRUE,0,EK68) -> 0 | EW68: =IFERROR(EV68/$EV$70,0) -> 0 | EX68: =IF(EU68=TRUE,EM68,0) -> 0 | EY68: =IF($EU68=TRUE,0,$EX$70*$AA68-$EX68) -> 0 | EZ68: =IF(EU68=TRUE,D68*K68,0) -> 0 | FA68: =IF(EU68=TRUE,EJ68-EZ68+EP68+EQ68,0) -> 0 | FB68: =$FA$70*AA68 -> 0 | FD68: 0 | FE68: 0 | FF68: =IFERROR((FD68-FE68)/FD68,0) -> 0 | FG68: 0 | FH68: 0 | FI68: 0 | FJ68: =$FE$65*AA68*$FI$64 -> 0 | FK68: =E68 -> 0 | FN68: =AA68 -> 0 | FO68: =FH68*$FO$64 -> 0 | FP68: 0 | FQ68: =IF(EU68=TRUE,D68,IFERROR((ER68+ES68+EY68)/K68,0)+D68) -> 0 | FR68: =IF(EU68=TRUE,D68,IFERROR(((EK68+FB68)/K68),0)) -> 0 | FS68: =IF(EU68=TRUE,D68,IF($EU$59=TRUE,IFERROR(ET68,0),IFERROR((ER68+ES68+FB68)/K68,0))) -> 0 | FT68: 0 | FU68: =IFERROR((($ES$70*AA68)+ER68)/K68+D68,0) -> 0 | FV68: =IFERROR(D68+((($G$61-$E$70)/K68)*AC68),0) -> 0 | FW68: =IF(EU68=TRUE,D68,IFERROR(ET68,0)) -> 0 | FX68: 0 | FY68: =IF(EU68=TRUE,D68,IFERROR((FI68)/K68,0)+D68) -> 0 | FZ68: =IFERROR(((FJ68))/K68+D68,0) -> 0 | GA68: =IF(EU68=TRUE,D68,IFERROR((FO68)/K68,0)+D68) -> 0 | GB68: =IF(EU68=TRUE,D68,IFERROR((FP68)/K68,0)+D68) -> 0
B69: ="Subcode #5: "&A!K16&" "&A!AC16 -> Subcode #5: | C69: =IF($L$1=TRUE,K69,J69) -> 0 | D69: =A!N16 -> 0 | E69: =D69*C69 -> 0 | F69: =HLOOKUP($Q$89,$FQ$61:$GB$69,9,FALSE) -> 0 | G69: =K69*F69 -> 0 | H69: =G69-E69 -> 0 | I69: =IF(J69=K69,IF(H69=0,"",TEXT((IFERROR(F69-D69,0)),"$0.00")&" Rate Increase"&" ("&TEXT((IFERROR(F69/D69-1,"")),"0.0%")&")"),"Proposed Units = "&TEXT(K69,"0.00")) ->  | J69: =IF(A!N16="",0,IF($AJ$58=FALSE,B!C76/$L$2,K69)) -> 0 | K69: =IF(A!N16="",0,IF($L$3="LMW",B!C76/$L$2,B!G76/$L$2)) -> 0 | L69: 5 | M69: =A!L16 -> 0 | N69: =IF($K$76,VLOOKUP(M69,J78:K82,2,FALSE),1) -> 1 | O69: =IF(A!U16="YES",TRUE,FALSE) -> FALSE | P69: =IF(O69=FALSE,J69,0)*N69 -> 0 | Q69: =IF(O69=FALSE,K69,0)*N69 -> 0 | R69: =IF(A!T16="Yes",FALSE,TRUE) -> TRUE | S69: =IF(R69=FALSE,0,AA69) -> 0 | T69: =IFERROR(S69/$S$70,0) -> 0 | U69: =IF(A!R16="Yes",FALSE,TRUE) -> TRUE | V69: =IF(U69=FALSE,0,AA69) -> 0 | W69: =IFERROR(V69/$V$70,0) -> 0 | X69: =IF(A!S16="Yes",FALSE,TRUE) -> TRUE | Y69: =IF(X69=FALSE,0,AA69) -> 0 | Z69: =IFERROR(Y69/$Y$70,0) -> 0 | AA69: =IF($AJ$58=TRUE,AC69,AB69) -> 0 | AB69: =IFERROR(P69/$P$70,0) -> 0 | AC69: =IFERROR(Q69/$Q$70,0) -> 0 | AD69: 0 | AE69: 0 | AF69: =($E$40-'C'!$J$37)*Z69 -> 0 | AG69: =IF($AJ$52="LMW",AF69,($G$40-'C'!$J$38)*Z69) -> 0 | AH69: =($E$52-'C'!$J$43)*T69 -> 0 | AI69: =IF($AJ$52="LMW",AH69,IF(AJ$56=TRUE,($G$52-'C'!$J$44)*T69,(G$52-'C'!$J$44)*T69)) -> 0 | AJ69: =SUMIFS(A!BO:BO,A!AN:AN,L69,A!C:C,A!$AQ$15)/$L$2 -> 0 | AK69: =SUMIFS(A!BM:BM,A!AN:AN,L69,A!C:C,A!$AQ$15)/$L$2 -> 0 | AL69: =IFERROR(AK69/AJ69,0) -> 0 | AM69: =IFERROR(AK69*$D$9,0) -> 0 | AN69: =IFERROR((AJ69/(2080/12))*$D$10,0) -> 0 | AO69: =SUM(AK69+AM69+AN69) -> 0 | AP69: =SUMIFS(A!BS:BS,A!AN:AN,L69,A!C:C,A!$AQ$15)/$L$2 -> 0 | AQ69: =SUMIFS(A!BQ:BQ,A!AN:AN,L69,A!C:C,A!$AQ$15)/$L$2 -> 0 | AR69: 0 | AS69: 0 | AT69: 0 | AU69: =AQ69+AS69+AT69 -> 0 | AV69: =SUMIFS(A!BW:BW,A!AN:AN,L69,A!C:C,A!$AQ$15)/$L$2 -> 0 | AW69: =SUMIFS(A!BU:BU,A!AN:AN,L69,A!C:C,A!$AQ$15)/$L$2 -> 0 | AX69: 0 | AY69: 0 | AZ69: 0 | BA69: =AW69+AY69+AZ69 -> 0 | BB69: =SUMIFS(A!AJ:AJ,A!AN:AN,L69,A!C:C,A!$AQ$18)/$L$2 -> 0 | BC69: =SUMIFS(A!AW:AW,A!AN:AN,L69,A!C:C,A!$AQ$18)/$L$2 -> 0 | BD69: =IFERROR(BC69/BB69,0) -> 0 | BE69: =IFERROR(BC69*$D$12,0) -> 0 | BF69: =IFERROR((BB69/(2080/12))*$D$13,0) -> 0 | BG69: =BC69+BE69+BF69 -> 0 | BH69: =SUMIFS(A!AJ:AJ,A!AN:AN,L69,A!C:C,A!$AQ$19)/$L$2 -> 0 | BI69: =SUMIFS(A!BA:BA,A!AN:AN,L69,A!C:C,A!$AQ$19)/$L$2 -> 0 | BJ69: =IFERROR(BI69/BH69,0) -> 0 | BK69: =IFERROR(BI69*$D$15,0) -> 0 | BL69: =IFERROR((BH69/(2080/12))*$D$16,0) -> 0 | BM69: =BI69+BK69+BL69 -> 0 | BN69: =SUMIFS(A!AJ:AJ,A!AN:AN,L69,A!C:C,A!$AQ$20)/$L$2 -> 0 | BO69: =SUMIFS(A!BE:BE,A!AN:AN,L69,A!C:C,A!$AQ$20)/$L$2 -> 0 | BP69: =IFERROR(BO69/BN69,0) -> 0 | BQ69: =IFERROR(BO69*$D$18,0) -> 0 | BR69: =IFERROR((BN69/(2080/12))*$D$19,0) -> 0 | BS69: =BO69+BQ69+BR69 -> 0 | BT69: =SUMIFS(A!AJ:AJ,A!AN:AN,L69,A!C:C,A!$AQ$21)/$L$2 -> 0 | BU69: =SUMIFS(A!BI:BI,A!AN:AN,L69,A!C:C,A!$AQ$21)/$L$2 -> 0 | BV69: =IFERROR(BU69/BT69,0) -> 0 | BW69: =IFERROR(BU69*$D$21,0) -> 0 | BX69: =IFERROR((BT69/(2080/12))*$D$22,0) -> 0 | BY69: =BU69+BW69+BX69 -> 0 | BZ69: =SUMIFS(A!CE:CE,A!AN:AN,L69,A!C:C,A!$AQ$16)/$L$2 -> 0 | CA69: =SUMIFS(A!CC:CC,A!AN:AN,L69,A!C:C,A!$AQ$16)/$L$2 -> 0 | CB69: =IFERROR(CA69/BZ69,0) -> 0 | CC69: 0 | CD69: 0 | CE69: =CA69+CC69+CD69 -> 0 | CF69: =IF(OR($AJ$58,$AJ$54),0,AO69+BG69+BM69+BS69+BY69+AU69+BA69) -> 0 | CG69: 0 | CH69: =AF69+AH69 -> 0 | CI69: =CF69+CG69+CH69 -> 0 | CJ69: =SUMIFS(A!BP:BP,A!AN:AN,L69,A!C:C,A!$AQ$15)/$L$2 -> 0 | CK69: =SUMIFS(A!BN:BN,A!AN:AN,L69,A!C:C,A!$AQ$15)/$L$2 -> 0 | CL69: =IFERROR(CK69/CJ69,0) -> 0 | CM69: =IFERROR(CK69*$F$9,0) -> 0 | CN69: =IFERROR((CJ69/(2080/12))*$F$10,0) -> 0 | CO69: =CK69+CM69+CN69 -> 0 | CP69: =SUMIFS(A!BT:BT,A!AN:AN,L69,A!C:C,A!$AQ$15)/$L$2 -> 0 | CQ69: =SUMIFS(A!BR:BR,A!AN:AN,L69,A!C:C,A!$AQ$15)/$L$2 -> 0 | CR69: 0 | CS69: 0 | CT69: 0 | CU69: 0 | CV69: =SUMIFS(A!BX:BX,A!AN:AN,L69,A!C:C,A!$AQ$15)/$L$2 -> 0 | CW69: =SUMIFS(A!BV:BV,A!AN:AN,L69,A!C:C,A!$AQ$15)/$L$2 -> 0 | CX69: 0 | CY69: 0 | CZ69: 0 | DA69: 0 | DB69: =SUMIFS(A!AK:AK,A!AN:AN,L69,A!C:C,A!$AQ$18)/$L$2 -> 0 | DC69: =SUMIFS(A!AX:AX,A!AN:AN,L69,A!C:C,A!$AQ$18)/$L$2 -> 0 | DD69: =IFERROR(DC69/DB69,0) -> 0 | DE69: =IFERROR(DC69*$F$12,0) -> 0 | DF69: =(DB69/(2080/12))*$F$13 -> 0 | DG69: =DC69+DE69+DF69 -> 0 | DH69: =SUMIFS(A!AK:AK,A!AN:AN,L69,A!C:C,A!$AQ$19)/$L$2 -> 0 | DI69: =SUMIFS(A!BB:BB,A!AN:AN,L69,A!C:C,A!$AQ$19)/$L$2 -> 0 | DJ69: =IFERROR(DI69/DH69,0) -> 0 | DK69: =IFERROR(DI69*$F$15,0) -> 0 | DL69: =(DH69/(2080/12))*$F$16 -> 0 | DM69: =DI69+DK69+DL69 -> 0 | DN69: =SUMIFS(A!AK:AK,A!AN:AN,L69,A!C:C,A!$AQ$20)/$L$2 -> 0 | DO69: =SUMIFS(A!BF:BF,A!AN:AN,L69,A!C:C,A!$AQ$20)/$L$2 -> 0 | DP69: =IFERROR(DO69/DN69,0) -> 0 | DQ69: =IFERROR(DO69*$F$18,0) -> 0 | DR69: =(DN69/(2080/12))*$F$19 -> 0 | DS69: =DO69+DQ69+DR69 -> 0 | DT69: =SUMIFS(A!AK:AK,A!AN:AN,L69,A!C:C,A!$AQ$21)/$L$2 -> 0 | DU69: =SUMIFS(A!BJ:BJ,A!AN:AN,L69,A!C:C,A!$AQ$21)/$L$2 -> 0 | DV69: =IFERROR(DU69/DT69,0) -> 0 | DW69: =IFERROR(DU69*$F$21,0) -> 0 | DX69: =(DT69/(2080/12))*$F$22 -> 0 | DY69: =DU69+DW69+DX69 -> 0 | DZ69: =SUMIFS(A!CF:CF,A!AN:AN,L69,A!C:C,A!$AQ$16)/$L$2 -> 0 | EA69: =SUMIFS(A!CD:CD,A!AN:AN,L69,A!C:C,A!$AQ$16)/$L$2 -> 0 | EB69: =IFERROR(EA69/DZ69,0) -> 0 | EC69: 0 | ED69: 0 | EE69: =EA69+EC69+ED69 -> 0 | EF69: =CO69+DG69+DM69+DS69+DY69+CU69+DA69 -> 0 | EG69: 0 | EH69: =AG69+AI69 -> 0 | EI69: =EF69+EG69+EH69 -> 0 | EJ69: =CI69+('C'!N40+'C'!N34)/L2 -> 0 | EK69: =EI69+('C'!S40+'C'!S34)/L2 -> 0 | EL69: =IFERROR(EK69/$EK$70,0) -> 0 | EM69: =EK69-EJ69 -> 0 | EN69: =EF69-CF69 -> 0 | EO69: =EI69-CI69 -> 0 | EP69: ='C'!N35/L2 -> 0 | EQ69: ='C'!N41/L2 -> 0 | ER69: =(EH69-CH69)+(EG69-CG69)+EP69+EQ69 -> 0 | ES69: =EF69-CF69 -> 0 | ET69: =(IFERROR($ES$70/Q69,0)*AA69)*N69+IFERROR((ER69/K69),0) -> 0 | EU69: =IF(A!U16="YES",TRUE,FALSE) -> FALSE | EV69: =IF(EU69=TRUE,0,EK69) -> 0 | EW69: =IFERROR(EV69/$EV$70,0) -> 0 | EX69: =IF(EU69=TRUE,EM69,0) -> 0 | EY69: =IF($EU69=TRUE,0,$EX$70*$AA69-$EX69) -> 0 | EZ69: =IF(EU69=TRUE,D69*K69,0) -> 0 | FA69: =IF(EU69=TRUE,EJ69-EZ69+EP69+EQ69,0) -> 0 | FB69: =$FA$70*AA69 -> 0 | FD69: 0 | FE69: 0 | FF69: =IFERROR((FD69-FE69)/FD69,0) -> 0 | FG69: 0 | FH69: 0 | FI69: 0 | FJ69: =$FE$65*AA69*$FI$64 -> 0 | FK69: =E69 -> 0 | FN69: =AA69 -> 0 | FO69: =FH69*$FO$64 -> 0 | FP69: 0 | FQ69: =IF(EU69=TRUE,D69,IFERROR((ER69+ES69+EY69)/K69,0)+D69) -> 0 | FR69: =IF(EU69=TRUE,D69,IFERROR(((EK69+FB69)/K69),0)) -> 0 | FS69: =IF(EU69=TRUE,D69,IF($EU$59=TRUE,IFERROR(ET69,0),IFERROR((ER69+ES69+FB69)/K69,0))) -> 0 | FT69: 0 | FU69: =IFERROR((($ES$70*AA69)+ER69)/K69+D69,0) -> 0 | FV69: =IFERROR(D69+((($G$61-$E$70)/K69)*AC69),0) -> 0 | FW69: =IF(EU69=TRUE,D69,IFERROR(ET69,0)) -> 0 | FX69: 0 | FY69: =IF(EU69=TRUE,D69,IFERROR((FI69)/K69,0)+D69) -> 0 | FZ69: =IFERROR(((FJ69))/K69+D69,0) -> 0 | GA69: =IF(EU69=TRUE,D69,IFERROR((FO69)/K69,0)+D69) -> 0 | GB69: =IF(EU69=TRUE,D69,IFERROR((FP69)/K69,0)+D69) -> 0
B70: Total Revenue from Regional Center | E70: =SUM(E65:E69) -> 0 | G70: =SUM(G65:G69) -> 0 | H70: =SUM(H65:H69) -> 0 | I70: =IF(H70=0,"",TEXT((IFERROR(H70/E70,0)),"0.00%")&" Revenue Increase") ->  | J70: =SUM(J65:J69) -> 0 | K70: =SUM(K65:K69) -> 0 | P70: =SUM(P65:P69) -> 0 | Q70: =SUM(Q65:Q69) -> 0 | S70: =SUM(S65:S69) -> 0 | T70: =SUM(T65:T69) -> 0 | V70: =SUM(V65:V69) -> 0 | W70: =SUM(W65:W69) -> 0 | Y70: =SUM(Y65:Y69) -> 0 | Z70: =SUM(Z65:Z69) -> 0 | AA70: =SUM(AA65:AA69) -> 0 | AB70: 0 | AC70: 0 | AD70: 0 | AE70: 0 | AF70: 0 | AG70: 0 | AH70: 0 | AI70: 0 | AJ70: 0 | AK70: 0 | AL70: 0 | AM70: 0 | AN70: 0 | AO70: =SUM(AO65:AO69) -> 0 | AP70: =SUM(AP65:AP69) -> 0 | AQ70: 0 | AR70: 0 | AS70: 0 | AT70: 0 | AU70: 0 | AV70: =SUM(AV65:AV69) -> 0 | AW70: 0 | AX70: 0 | AY70: 0 | AZ70: 0 | BA70: 0 | BB70: 0 | BC70: 0 | BD70: 0 | BE70: 0 | BF70: 0 | BG70: 0 | BH70: 0 | BI70: 0 | BJ70: 0 | BK70: 0 | BL70: 0 | BM70: 0 | BN70: 0 | BO70: 0 | BP70: 0 | BQ70: 0 | BR70: 0 | BS70: 0 | BT70: =SUM(BT65:BT69) -> 0 | BU70: 0 | BV70: 0 | BW70: 0 | BX70: 0 | BY70: 0 | BZ70: =SUM(BZ65:BZ69) -> 0 | CA70: 0 | CB70: 0 | CC70: 0 | CD70: 0 | CE70: 0 | CF70: =SUM(CF65:CF69) -> 0 | CG70: 0 | CH70: 0 | CI70: 0 | CJ70: 0 | CK70: 0 | CL70: 0 | CM70: =SUM(CM65:CM69) -> 0 | CN70: =SUM(CN65:CN69) -> 0 | CO70: =SUM(CO65:CO69) -> 0 | CP70: 0 | CQ70: 0 | CR70: 0 | CS70: 0 | CT70: 0 | CU70: 0 | CV70: 0 | CW70: 0 | CX70: 0 | CY70: 0 | CZ70: 0 | DA70: 0 | DB70: 0 | DC70: 0 | DD70: 0 | DE70: 0 | DF70: 0 | DG70: 0 | DH70: 0 | DI70: 0 | DJ70: 0 | DK70: 0 | DL70: 0 | DM70: 0 | DN70: =SUM(DN65:DN69) -> 0 | DO70: 0 | DP70: 0 | DQ70: 0 | DR70: 0 | DS70: 0 | DT70: =SUM(DT65:DT69) -> 0 | DU70: 0 | DV70: 0 | DW70: 0 | DX70: 0 | DY70: 0 | DZ70: =SUM(DZ65:DZ69) -> 0 | EA70: 0 | EB70: 0 | EC70: 0 | ED70: 0 | EE70: 0 | EF70: =SUM(EF65:EF69) -> 0 | EG70: 0 | EH70: 0 | EI70: 0 | EJ70: =SUM(EJ65:EJ69) -> 0 | EK70: =SUM(EK65:EK69) -> 0 | EL70: =SUM(EL65:EL69) -> 0 | EM70: =SUM(EM65:EM69) -> 0 | EN70: 0 | EO70: =SUM(EO65:EO69) -> 0 | EP70: 0 | EQ70: 0 | ER70: 0 | ES70: 0 | ET70: =SUM(ET65:ET69) -> 0 | EV70: =SUM(EV65:EV69) -> 0 | EX70: =SUM(EX65:EX69) -> 0 | EY70: 0 | EZ70: 0 | FA70: 0 | FB70: 0 | FD70: 0 | FE70: 0 | FG70: =SUM(FG65:FG69) -> 0 | FH70: =SUM(FH65:FH69) -> 0 | FI70: =SUM(FI65:FI69) -> 0 | FJ70: =SUM(FJ65:FJ69) -> 0 | FK70: =SUM(FK65:FK69) -> 0 | FO70: =SUM(FO65:FO69) -> 0 | FP70: =SUM(FP65:FP69) -> 0
M71: Type | N71: =L3 -> Reg | EW71: * Currently set to distribute to all subcodes; Recode from Column R to BT if you want rep current budget distribution
A72: Remaining Balance | D72: Current | F72: Proposed | H72: Difference | M72: Distro | N72: =IF(A!T19="","Subcode Specific Distribution",A!T19) -> Subcode Specific Distribution
B73: Remaining Balance (w/o Rate Adjustment) | E73: =E70-E61 -> 0 | G73: =E70-G61 -> 0 | H73: =G73-E73 -> 0 | M73: Exist Srvc? | N73: =AI58 -> Yes
B74: Remaining Balance (w/ Rate Adjustment) | E74: N/A | G74: =G70-G61 -> 0 | R74: Notes
A75: 1 | B75: See Itemized List in Costs Datasheet | C75: 2 | D75: ="Operations and Administrative Costs are allocated at "&TEXT(A!U7,"0.00%")&" unless otherwise specified" -> Operations and Administrative Costs are allocated at 0.00% unless otherwise specified | I75: ="Code: "&Q89&" "&VLOOKUP(Q89,M75:N86,2,FALSE) -> Code: 1 REG-INC-SSD | M75: 1 | N75: REG-INC-SSD | O75: ExistSrvc; INC; Subcode | Q75: =IF(AND(N71="Reg",N73="Yes",I76="INC",N72="Subcode Specific Distribution"),1,0) -> 1 | R75: WORKS
I76: =IFERROR(VLOOKUP(A!T20,D!J84:K86,2,FALSE),K86) -> INC | J76: Mixed? | K76: =IF(A!C16="Mixed",TRUE,FALSE) -> FALSE | M76: 2 | N76: REG-COM-SSD | O76: ExistSrvc; Comp; Subcode | Q76: =IF(AND(N71="Reg",N73="Yes",I76="Com",N72="Subcode Specific Distribution"),2,0) -> 0 | R76: WORKS
M77: 3 | N77: REG-NS-SSD | O77: NewSrvc; INC; Subcode | Q77: =IF(AND(N71="Reg",N73="No",I76="INC",N72="Subcode Specific Distribution"),3,0) -> 0 | R77: WORKS | S77: * New Service Does Not Work on Full Bypass; No Need
J78: Hourly | K78: 1 | M78: 4 | N78: REG-NS-SSD | O78: NewServ; Comp; Subcode | Q78: =IF(AND(N71="Reg",N73="No",I76="Com",N72="Subcode Specific Distribution"),4,0) -> 0 | R78: WORKS
J79: Daily | K79: 24 | M79: 5 | N79: REG-INC-AVE | O79: ExistSrvc; INC; Average | Q79: =IF(AND(N71="Reg",N73="Yes",I76="INC",N72="Average Distribution"),5,0) -> 0 | R79: WORKS
J80: Monthly | K80: 730 | M80: 6 | N80: REG-COM-AVE | O80: ExistSrvc; Comp; Average | Q80: =IF(AND(N71="Reg",N73="Yes",I76="Com",N72="Average Distribution"),6,0) -> 0 | R80: WORKS
J81: Per-Ride | K81: 1 | M81: 7 | N81: REG-NS-AVE | O81: NewSrvc; INC; Average | Q81: =IF(AND(N71="Reg",N73="No",I76="INC",N72="Average Distribution"),7,0) -> 0 | R81: WORKS
J82: 0 | K82: 0 | M82: 8 | N82: REG-NS-AVE | O82: NewSrvc; Comp; Average | Q82: =IF(AND(N71="Reg",N73="No",I76="Com",N72="Average Distribution"),8,0) -> 0 | R82: WORKS
M83: 9 | N83: LMW-INC-SSD | Q83: =IF(AND(N71="LMW",N73="Yes",I76="INC",N72="Subcode Specific Distribution"),9,0) -> 0 | R83: WORKS
J84: =A!X11 -> Incremental | K84: INC | M84: 10 | N84: LMW-INC-AVE | Q84: =IF(AND(N71="LMW",N73="Yes",I76="INC",N72="Average Distribution"),10,0) -> 0 | R84: WORKS
J85: =A!X12 -> Comprehensive | K85: COM | M85: 11 | N85: LMW-COM-SSD | Q85: =IF(AND(N71="LMW",N73="Yes",I76="Com",N72="Subcode Specific Distribution"),11,0) -> 0 | R85: WORKS
K86: =K84 -> INC | M86: 12 | N86: LMW-COM-AVE | Q86: =IF(AND(N71="LMW",N73="Yes",I76="Com",N72="Average Distribution"),12,0) -> 0 | R86: WORKS
O89: Final Code | Q89: =SUM(Q75:Q88) -> 1

Sheet E3-Cons (hidden)
A1: SECTION E: CONSUMER INFORMATION
A3: 1. Names (or Initials) of Consumers and UCI #:
A7: 2. Provide a detailed description of the health and safety risk(s) and challenges. Provide a detailed description of what service changes are necessary to protect the consumer's health and safety.
A11: 3. Provide information regarding the availability of alternative, comparable, and local resources to meet the needs of the consumer(s) at risk.
A15: ="4. Within the rate change, does it include a wage increase for staff with administrative duties? "&B!H78&IF(B!H78="YES",", "&A!CI80&" Staff with Administrative Duties receives wage increases.","") -> 4. Within the rate change, does it include a wage increase for staff with administrative duties? No
A16: If Yes, please explain why this is necessary to protect the health & safety needs of the consumer(s).
A20: 5. If this is a temporary request, please put in the proposed end date:

Sheet E
A1: SECTION E: HEALTH AND SAFETY WAIVER REGIONAL CENTER CHECKLIST
A2: * Please include the following documentation with the submission.
A3: * If Not Included or N/A, please explain in the notes why this information was not included.
C5: Included | D5: Not Included | E5: N/A | F5: Notes
A6: 1 | B6: Current IPP and/or Addendums
A7: 2 | B7: Behavior Plan (if request is due to behavioral challenges)
A8: 3 | B8: Vendor Program Design
A9: 4 | B9: Vendor Organizational Chart (includes staffing ratio and service assignments)
A10: 5 | B10: Consumer and Staff Monthly Schedule, IHSS Hours, Day Program Hours, etc. (Required for SLS/PA Services)
A11: 6 | B11: Staffing Schedule (Required for Residential Services)
A12: 7 | B12: Supplemental letter which includes:
B13: a) Names (or Initials) of Consumers and UCI #
B14: b) Detailed description of the health and safety risk(s) and challenges. Proved a detailed description of what service changes are necessary to protect the consumer's health and safety.
B15: c) Provide information regarding the availability of alternative, comparable, and local resources to meet the needs of the consumer(s) at risk.
B16: d) All other information pertinent to health and safety needs and requested costs.

Sheet F
A1: SECTION F: HEALTH AND SAFETY WAIVER EXEMPTION REQUEST
A3: A. Regional Center Information
A4: =IFERROR(VLOOKUP(Q4,'RC'!A:B,2,FALSE),"") ->  | Q4: =IF(A!C17="","",A!C17) -> 
A5: 1. Contact Name
A7: 2. Contact Phone Number | K7: 3. Contact Email
A9: B. Consumer Information
A10: 1. Number of Consumers in Program: | G10: =A!C9 -> 0
A11: 2. Number of Consumers in Request: | G11: =A!C10 -> 0
A12: ="3. Current Service Units per Month ("&A!C16&"):" -> 3. Current Service Units per Month (): | G12: =ROUND(SUM(Q25:Q29),2)&" (Average over "&R12&" Month"&B!K29&")" -> 0 (Average over 3 Months) | Q12: # of months | R12: =D!L2 -> 3
A13: 4. Average Service Units per Consumer in Request: | G13: =IFERROR(ROUND(SUM(Q25:Q29)/G11,2),"") -> 
A14: C. Vendor Information
A15: 1. Vendor Name | G15: =IF(A!C4="","",A!C4) -> 
A16: 2. Physical Address | G16: =IF(A!C6="","",A!C6) -> 
A17: 3. Vendor Number | G17: =IF(A!C5="","",A!C5) -> 
A18: D. Rate Detail
A19: 1. Service Code Type | G19: =IF(A!C7="","",A!C7) -> 
A20: 2. Unit of Service | G20: =IF(A!C16="","",A!C16) -> 
A21: 3. Proposed Effective Date | G21: =IF(A!C14="","",A!C14) -> 
A22: 4. Proposed End Date (If any) | G22: =IF(A!C15="Yes",A!E15,"N/A") -> N/A
A23: E. Budget Detail | E23: Current | G23: Proposed | I23: =G20 ->  | K23: Monthly | M23: Current FY | O23: Full FY
E24: =A!C16&" Rate" -> Rate | G24: =A!C16&" Rate" -> Rate | I24: Rate Adj. | K24: Budget Adj. | M24: ="Impact ("&A!AU20&" Mo)" -> Impact (6 Mo) | O24: Impact | Q24: Current
A25: =D!B65 -> Subcode #1: | E25: =D!D65 -> 0 | G25: =D!F65 -> 0 | I25: =G25-E25 -> 0 | K25: =IFERROR(D!H65,0) -> 0 | M25: =K25*A!AU$20 -> 0 | O25: =K25*12 -> 0 | Q25: =D!C65 -> 0
A26: =D!B66 -> Subcode #2: | E26: =D!D66 -> 0 | G26: =D!F66 -> 0 | I26: =G26-E26 -> 0 | K26: =IFERROR(D!H66,0) -> 0 | M26: =K26*A!AU$20 -> 0 | O26: =K26*12 -> 0 | Q26: =D!C66 -> 0
A27: =D!B67 -> Subcode #3: | E27: =D!D67 -> 0 | G27: =D!F67 -> 0 | I27: =G27-E27 -> 0 | K27: =IFERROR(D!H67,0) -> 0 | M27: =K27*A!AU$20 -> 0 | O27: =K27*12 -> 0 | Q27: =D!C67 -> 0
A28: =D!B68 -> Subcode #4: | E28: =D!D68 -> 0 | G28: =D!F68 -> 0 | I28: =G28-E28 -> 0 | K28: =IFERROR(D!H68,0) -> 0 | M28: =K28*A!AU$20 -> 0 | O28: =K28*12 -> 0 | Q28: =D!C68 -> 0
A29: =D!B69 -> Subcode #5: | E29: =D!D69 -> 0 | G29: =D!F69 -> 0 | I29: =G29-E29 -> 0 | K29: =IFERROR(D!H69,0) -> 0 | M29: =K29*A!AU$20 -> 0 | O29: =K29*12 -> 0 | Q29: =D!C69 -> 0
B30: Total | K30: =SUM(K25:L29) -> 0 | M30: =SUM(M25:N29) -> 0 | O30: =SUM(O25:P29) -> 0
A31: F. Local Minimum Wage Increase Information
A32: 1. Number of Cities/Counties Affected by Minimum Wage Increase | K32: =A!AJ12 -> 0
A33: 2. Effective Date of Minimum Wage Increase | K33: =IF(A!C14="","",A!C14) -> 
A34: F. For all Health and Safety Requests, include the following additional information when submitting to DDS:
A35: 1. All supporting documentation included in section E. 2. Completed Checklist from Section E.
A36: =IF(AND(B!H78="YES",A!CI80>0),"3. This request includes a wage increase for "&A!CI80&" staff with administrative duties. Please explain why this is necessary to protect the health and safety needs of the consumer(s) in supplemental letter.","") -> 
A37: G. Signature
A38: 1. Regional Center Executive Director Approval (Signature) | K38: 2. Date
A41: Date DDS Received Request (DDS ONLY)
A42: Date Assigned to DDS Liaison (DDS ONLY)
E113: Hourly
E114: Daily
E115: Monthly
C166: Alta California Regional Center
C167: Central Valley Regional Center
C168: East Los Angeles Regional Center
C169: Far Northern Regional Center
C170: Frank D. Lanterman Regional Center
C171: Golden Gate Regional Center
C172: Harbor Regional Center
C173: Inland Regional Center
C174: Kern Regional Center
C175: North Bay Regional Center
C176: North Los Angeles Regional Center
C177: Redwood Coast Regional Center
C178: Regional Center of the East Bay
C179: Orange County Regional Center
C180: San Andreas Regional Center
C181: San Diego Regional Center
C182: San Gabriel/Pomona Regional Center
C183: South Central Regional Center
C184: Tri-Counties Regional Center
C185: Valley Mountain Regional Center
C186: Westside Regional Center

Sheet RC (hidden)
A1: ACRC | B1: Alta California Regional Center
A2: CVRC | B2: Central Valley Regional Center
A3: ELARC | B3: Eastern Los Angeles Regional Center
A4: FNRC | B4: Far Northern Regional Center
A5: FDLRC | B5: Frank D. Lanterman Regional Center
A6: GGRC | B6: Golden Gate Regional Center
A7: HRC | B7: Harbor Regional Center
A8: IRC | B8: Inland Regional Center
A9: KRC | B9: Kern Regional Center
A10: NBRC | B10: North Bay Regional Center
A11: NLACRC | B11: North Los Angeles County Regional Center
A12: RCRC | B12: Redwood Coast Regional Center
A13: RCEB | B13: Regional Center of the East Bay
A14: RCOC | B14: Regional Center of Orange County
A15: SARC | B15: San Andreas Regional Center
A16: SDRC | B16: San Diego Regional Center
A17: SGPRC | B17: San Gabriel/Pomona Regional Center
A18: SCLARC | B18: South Central Los Angeles Regional Center
A19: TCRC | B19: Tri-Counties Regional Center
A20: VMRC | B20: Valley Mountain Regional Center
A21: WRC | B21: Westside Regional Center

Sheet H (hidden)
G1: Reporting Period Months | H1: =IF(A!C12<3,3,A!C12) -> 3
M3: [Primary]
B4: Roster of Employees that work under multiple service codes
F5: * Only enter 1 pay type (Salary or Hourly) per Staff | M5: [Worksheet]
C6: ="Worksheet Hours"&CHAR(10)& "("&M8&")" -> Worksheet Hours () | D6: ="Worksheet Hourly Wage"&CHAR(10)& "("&M8&")" -> Worksheet Hourly Wage () | E6: Calcuated Hours | F6: Monthly Salary | G6: Monthly Salaried Hours | H6: Hourly Wage | I6: ="Reporting Period "&CHAR(10)& "Hours ("&H1&" Mo.)" -> Reporting Period Hours (3 Mo.) | J6: % of Admin | L6: Total % | M6: Vendor #1 | N6: Vendor #2 | O6: Vendor #3 | P6: Vendor #4 | Q6: Vendor #5 | R6: Vendor #6 | S6: Vendor #7 | T6: Vendor #8 | U6: Vendor #9 | V6: Vendor #10 | W6: Vendor #11 | X6: Vendor #12 | Y6: Vendor #13 | Z6: Vendor #14 | AA6: Vendor #15 | AB6: Vendor #16 | AC6: Vendor #17 | AD6: Vendor #18 | AE6: Vendor #19 | AF6: Vendor #20 | AG6: Vendor #21 | AH6: Vendor #22 | AI6: Vendor #23 | AJ6: Vendor #24 | AK6: Vendor #25
L7: Service Code | M7: =IF(A!C7=0,"",A!C7) ->  | N7: 515
B8: Staff | L8: Vendor Number | M8: =IF(A!C5=0,"",A!C5) ->  | N8: HXXXXX
A9: 1 | B9: Sample Employee #1 | C9: =E9*M9 -> 173.33 | D9: =IF(IF((IFERROR(F9/G9,0))>H9,F9/G9,H9)=0,"",IF((IFERROR(F9/G9,0))>H9,F9/G9,H9)) -> 57.69341718 | E9: =IF(G9>I9,G9,I9) -> 173.33 | F9: 10000 | G9: 173.33 | J9: 0.5 | L9: =IF(SUM(M9:AK9)=0,"",SUM(M9:AK9)) -> 1 | M9: 1
A10: 2 | B10: Sample Employee #2 | C10: =E10*M10 -> 260 | D10: =IF(IF((IFERROR(F10/G10,0))>H10,F10/G10,H10)=0,"",IF((IFERROR(F10/G10,0))>H10,F10/G10,H10)) -> 25 | E10: =IF(G10>I10,G10,I10) -> 1040 | H10: 25 | I10: 1040 | J10: 0.25 | L10: =IF(SUM(M10:AK10)=0,"",SUM(M10:AK10)) -> 1 | M10: 0.25 | N10: 0.75
A11: 3
A12: 4
A13: 5
A14: 6
A15: 7
A16: 8
A17: 9
A18: 10
A19: 11
A20: 12
A21: 13
A22: 14
A23: 15
A24: 16
A25: 17
A26: 18
A27: 19
A28: 20
A29: 21
A30: 22
A31: 23
A32: 24
A33: 25
A34: 26
A35: 27
A36: 28
A37: 29
A38: 30
A39: 31
A40: 32
A41: 33
A42: 34
A43: 35
A44: 36
A45: 37
A46: 38
A47: 39
A48: 40

Sheet C2 (hidden)
A1: SECTION A: AGENCY INFORMATION
A2: 1 | B2: Service Provider Name | D2: Toolworks | H2: 9 | I2: 3 Month Review Period: (Enter Beginning & End) | Y2: Hourly
A3: 2 | B3: Vendor Number | H3: 10 | I3: City/County Affected by Minimum Wage Increase | L3: Berkeley | Y3: Daily
A4: 3 | B4: Vendor Address | H4: 11 | I4: Effective Date of Minimum Wage Increase | Y4: Monthly
A5: 4 | B5: Service Code | D5: 896 | H5: 12 | I5: Previous Local Minimum Wage | L5: 12.53 | Y5: Mixed
O6: =D6 -> 0 | P6: 1
O7: =D7 -> 0 | P7: 2
O8: =D8 -> 0 | P8: 3
O9: =D9 -> 0 | P9: 4
O10: =D10 -> 0 | P10: 5
A11: 5 | B11: Staffing Ratio | H11: 13 | I11: New Local Minimum Wage | L11: 13.75 | Y11: Direct Support | AA11: actual | AB11: month | AC11: fy remain
A12: 6 | B12: Number of Consumers in Agency | H12: 14 | I12: Number of Employees Receiving Adjustment | L12: =COUNTIF(J52:J62,">0") -> 1 | Y12: Management | AB12: 1 | AC12: 6
A13: 7 | B13: Number of Consumers in Request | H13: 15 | I13: Vendoring RC: | L13: RCEB | Y13: Administrative
A14: 8 | B14: Other Vendor Numbers and Services Codes | H14: 16 | I14: Rate Type: | L14: Monthly | AB14: 2 | AC14: 5
AB15: 3 | AC15: 4
AB16: 4 | AC16: 3
Z17: =VLOOKUP(AA17,AB12:AC24,2,FALSE) -> 6 | AA17: =MONTH(L4) -> 1 | AB17: 5 | AC17: 2
AB18: 6 | AC18: 1
AB19: 7 | AC19: 12
AB20: 8 | AC20: 11
AB21: 10 | AC21: 9
AB22: 11 | AC22: 8
P24: Calculated Direct Support Wages (Original) | Q24: =A!BM78/A!BO78 -> 
P25: Calculated Direct Support Wages (Revised) | Q25: =A!BN78/A!BO78 -> 
P26: Calculated Management Wages (Original) | Q26: =A!BY78/A!CA78 -> 
P27: Calculated Management Wages (Revised) | Q27: =A!BZ78/A!CA78 -> 
P28: Calculated Administrative Wages (Original) | Q28: =A!CG78/A!CJ78 -> 
B29: ="Mandated Costs ("&TEXT((SUM(C31:C33)+SUM(J31:J32)+SUM(F31:F33)),"0.00%")&" Total)" -> Mandated Costs (12.65% Total) | P29: Calculated Administrative Wages (Revised) | Q29: =A!CH78/A!CJ78 -> 
A30: Employer Payroll Taxes - Federal | D30: Employer Payroll Taxes - State | G30: Misc. Costs | P30: Administrative Ratio | Q30: =A!CJ24 -> 0
A31: Social Security / FICA | C31: 0.062 | D31: SUI (CA State Unemployment Ins.) | F31: 0.034 | G31: Workers Compensation
A32: Medicare Tax | C32: 0.0145 | D32: SDI (CA State Disability Ins.) | F32: 0.009 | G32: Unemployment Insurance | K32: * Benefits calculated per Full Time Equivalent (FTE) | P32: Mandated Costs | Q32: =C31+C32+C33+F31+F32+F33+J31+J32 -> 0.1265
A33: Federal Unemployment Tax | C33: 0.006 | D33: ETT (CA Employment Training Tax) | F33: 0.001 | G33: Benefits* | P33: Non-Mandated Costs | Q33: =SUM(G36:G38)+SUM(M36:M38) -> 0.1235
P34: Costs Sum | Q34: =Q32+Q33 -> 0.25
B35: Non-Mandated Costs (Describe) | G35: % | I35: Non-Mandated Costs (Describe) | M35: %
A36: 1 | B36: Fringe = 25% Total | G36: 0.1235 | H36: 4
A37: 2 | H37: 5
A38: 3 | H38: 6
A40: SECTION B: RATE ADJUSTMENT INFORMATION
A41: *Completed by Regional Center | E41: Current | G41: Proposed | J41: Difference | L41: Fiscal Year Impact
B42: Subcode | C42: Type | D42: Units Billed (3 Mo.) | E42: Rate | F42: Revenue from RC (1 Mo.) | G42: Rate | H42: Revenue from RC (1 Mo) | J42: Rate | K42: Revenue from RC (1 Mo.) | L42: ="Current ("&Z17&" Mo.)" -> Current (6 Mo.) | M42: Full (12 Mo.) | P42: Incurred Costs
A43: 1 | B43: SLS-Monthly | C43: Monthly | D43: 3 | E43: 11135.21 | F43: =D43*E43/3 -> 11135.21 | G43: =IFERROR((H43*3)/D43,0) -> 11471.97575 | H43: =F43+P43 -> 11471.97575 | J43: =IFERROR(G43-E43,"") -> 336.76575 | K43: =H43-F43 -> 336.76575 | L43: =(K43/3)*$Z$17 -> 673.5315 | M43: =(K43/3)*12 -> 1347.063 | P43: =SUMIFS(P$52:P$62,C$52:C$62,B43) -> 336.76575
A44: 2 | F44: =D44*E44/3 -> 0 | G44: =IFERROR((H44*3)/D44,0) -> 0 | H44: =F44+P44 -> 0 | J44: =IFERROR(G44-E44,"") -> 0 | K44: =H44-F44 -> 0 | L44: =(K44/3)*$Z$17 -> 0 | M44: =(K44/3)*12 -> 0 | P44: =SUMIFS(P$52:P$62,C$52:C$62,B44) -> 0
A45: 3 | F45: =D45*E45/3 -> 0 | G45: =IFERROR((H45*3)/D45,0) -> 0 | H45: =F45+P45 -> 0 | J45: =IFERROR(G45-E45,"") -> 0 | K45: =H45-F45 -> 0 | L45: =(K45/3)*$Z$17 -> 0 | M45: =(K45/3)*12 -> 0 | P45: =SUMIFS(P$52:P$62,C$52:C$62,B45) -> 0
A46: 4 | F46: =D46*E46/3 -> 0 | G46: =IFERROR((H46*3)/D46,0) -> 0 | H46: =F46+P46 -> 0 | J46: =IFERROR(G46-E46,"") -> 0 | K46: =H46-F46 -> 0 | L46: =(K46/3)*$Z$17 -> 0 | M46: =(K46/3)*12 -> 0 | P46: =SUMIFS(P$52:P$62,C$52:C$62,B46) -> 0
A47: 5 | F47: =D47*E47/3 -> 0 | G47: =IFERROR((H47*3)/D47,0) -> 0 | H47: =F47+P47 -> 0 | J47: =IFERROR(G47-E47,"") -> 0 | K47: =H47-F47 -> 0 | L47: =(K47/3)*$Z$17 -> 0 | M47: =(K47/3)*12 -> 0 | P47: =SUMIFS(P$52:P$62,C$52:C$62,B47) -> 0
A49: SECTION C: EMPLOYEE WAGE INFORMATION
A50: *Completed by Vendor | E50: Current | G50: Proposed | J50: Difference | L50: Costs Incurred | P50: Incurred
B51: Staff Name | C51: Subcode | D51: Hours Worked (3 Mo.) | E51: Hourly Wage | F51: Wage & Costs | G51: Hourly Wage | H51: Wage & Costs | J51: Hourly Wage | K51: Wage & Costs | L51: Monthly | M51: Annually | P51: Costs (3Mo)
A52: 1 | B52: TBD | C52: SLS-Monthly | D52: 662.49 | E52: 12.53 | F52: =IF(E52<$L$5,0,E52*(1+$Q$34)+$J$33/(2080/12)) -> 15.6625 | G52: =IF(E52<$L$5,0,IF(E52<$L$11,$L$11,E52)) -> 13.75 | H52: =IF(G52=0,0,G52*(1+$Q$34)+$J$33/(2080/12)) -> 17.1875 | J52: =IF(G52=0,0,G52-E52) -> 1.22 | K52: =H52-F52 -> 1.525 | L52: =P52 -> 336.76575 | M52: =L52*12 -> 4041.189 | P52: =((H52*D52)-(F52*D52))/3 -> 336.76575
A53: =A52+1 -> 2 | F53: =IF(E53<$L$5,0,E53*(1+$Q$34)+$J$33/(2080/12)) -> 0 | G53: 0 | H53: =IF(G53=0,0,G53*(1+$Q$34)+$J$33/(2080/12)) -> 0 | J53: =IF(G53=0,0,G53-E53) -> 0 | K53: 0 | L53: =P53 -> 0 | M53: =L53*12 -> 0 | P53: =((H53*D53)-(F53*D53))/3 -> 0
A54: =A53+1 -> 3 | F54: 0 | G54: 0 | H54: 0 | J54: 0 | K54: 0 | L54: 0 | M54: 0 | P54: 0
A55: 4 | F55: 0 | G55: 0 | H55: 0 | J55: 0 | K55: 0 | L55: 0 | M55: 0 | P55: 0
A56: 5 | F56: 0 | G56: 0 | H56: 0 | J56: 0 | K56: 0 | L56: 0 | M56: 0 | P56: 0
A57: 6 | F57: 0 | G57: 0 | H57: 0 | J57: 0 | K57: 0 | L57: 0 | M57: 0 | P57: 0
A58: 7 | F58: 0 | G58: 0 | H58: 0 | J58: 0 | K58: 0 | L58: 0 | M58: 0 | P58: 0
A59: 8 | F59: 0 | G59: 0 | H59: 0 | J59: 0 | K59: 0 | L59: 0 | M59: 0 | P59: 0
A60: 9 | F60: 0 | G60: 0 | H60: 0 | J60: 0 | K60: 0 | L60: 0 | M60: 0 | P60: 0
A61: 10 | F61: 0 | G61: 0 | H61: 0 | J61: 0 | K61: 0 | L61: 0 | M61: 0 | P61: 0

Sheet E2 (hidden)
A1: SECTION E: HEALTH AND SAFETY WAIVER EXEMPTION REQUEST
A3: Date DDS Received Request (DDS ONLY)
A4: Date Assigned to DDS Liaison (DDS ONLY)
A5: A. Regional Center Information
A6: 1. Regional Center
A7: Regional Center of the East Bay
A8: 2. Contact Name
A10: 3. Contact Phone Number | K10: 4. Contact Email
A12: 5. Executive Director Approval (Signature) | K12: 6. Date
A14: B. Consumer Information
A15: 1. Number of Consumers in Program: | K15: ='C2'!D12 -> 0
A16: 2. Number of Consumers in Request: | K16: ='C2'!D13 -> 0
A17: ="3. Service Units per Month:" -> 3. Service Units per Month: | M17: (Average over 3 Months)
A18: 4. Average Service Units per Consumer in Request: | K18: =K17/K16 -> 
A19: C. Vendor Information
A20: 1. Vendor Name | K20: ='C2'!D2 -> Toolworks
A21: 2. Physical Address | K21: =IF('C2'!D4="","",'C2'!D4) -> 
A22: 3. Vendor Number | K22: ='C2'!D3 -> 0
A23: D. Rate Detail
A24: 1. Service Code Type | K24: ='C2'!D5 -> 896
A25: 2. Unit of Service | K25: ='C2'!L14 -> Monthly
A26: 3. Proposed Effective Date | K26: =A!C14 -> 00:00:00
A27: 4. Proposed End Date (If any)
A28: E. Budget Detail
E29: Current | G29: Proposed | I29: =K25 -> Monthly | K29: Monthly | M29: Current FY | O29: Full FY
E30: =K25&" Rate" -> Monthly Rate | G30: =K25&" Rate" -> Monthly Rate | I30: Adjustment | K30: Adjustment | M30: ="Impact ("&'C2'!Z17&" Mo)" -> Impact (6 Mo) | O30: Impact
B31: ="Subcode #1: "&'C2'!B43 -> Subcode #1: SLS-Monthly | E31: ='C2'!E43 -> 11135.21 | G31: ='C2'!G43 -> 11471.97575 | I31: =G31-E31 -> 336.76575 | K31: ='C2'!M43/12 -> 112.25525 | M31: ='C2'!L43 -> 673.5315 | O31: =K31*12 -> 1347.063 | Q31: =D!C65 -> 0
B32: ="Subcode #2: "&'C2'!B44 -> Subcode #2: | E32: ='C2'!E44 -> 0 | G32: ='C2'!G44 -> 0 | I32: =G32-E32 -> 0 | K32: ='C2'!M44/12 -> 0 | M32: ='C2'!L44 -> 0 | O32: =K32*12 -> 0 | Q32: =D!C66 -> 0
B33: ="Subcode #3: "&'C2'!B45 -> Subcode #3: | E33: ='C2'!E45 -> 0 | G33: ='C2'!G45 -> 0 | I33: =G33-E33 -> 0 | K33: ='C2'!M45/12 -> 0 | M33: ='C2'!L45 -> 0 | O33: =K33*12 -> 0 | Q33: =D!C67 -> 0
B34: ="Subcode #4: "&'C2'!B46 -> Subcode #4: | E34: ='C2'!E46 -> 0 | G34: ='C2'!G46 -> 0 | I34: =G34-E34 -> 0 | K34: ='C2'!M46/12 -> 0 | M34: ='C2'!L46 -> 0 | O34: =K34*12 -> 0 | Q34: =D!C68 -> 0
B35: ="Subcode #5: "&'C2'!B47 -> Subcode #5: | E35: ='C2'!E47 -> 0 | G35: ='C2'!G47 -> 0 | I35: =G35-E35 -> 0 | K35: ='C2'!M47/12 -> 0 | M35: ='C2'!L47 -> 0 | O35: =K35*12 -> 0 | Q35: =D!C69 -> 0
B36: Total | K36: =SUM(K31:L35) -> 112.25525 | M36: =SUM(M31:N35) -> 673.5315 | O36: =SUM(O31:P35) -> 1347.063
A38: F. Local Minimum Wage Increase Information
A39: 1. City/County Affected by Minimum Wage Increase | K39: =IF('C2'!L3="","",'C2'!L3) -> Berkeley
A40: 2. Minimum Wage Prior to Mandated Increase | K40: ='C2'!L5 -> 12.53
A41: 3. Mandated Local Minimum Wage | K41: ='C2'!L11 -> 13.75
A42: 4. Effective Date of Minimum Wage Increase | K42: =IF('C2'!L4="","",'C2'!L4) -> 
A43: G. For all Health and Safety Requests, include the following additional information when submitting to DDS
A44: 1. Current IPP and/or Addendum (not required for minimum wage requests) 2. Vendor's Program Design (not required for minimum wage requests) 3. Vendor's Daily and Monthly Budget (monthly requests only) 4. For Local Minimum Wage Only - Local Minimum Wage Ordinance 5. For SLS and PA Only - Consumer and Staff Monthly Schedule, IHSS hours, day program hours, etc. 6. Behavior Plan (if the request is due to behavioral challenges) 7. Organizational Chart (Includes staffing ratios)
E117: Hourly
E118: Daily
E119: Monthly
C170: Alta California Regional Center
C171: Central Valley Regional Center
C172: East Los Angeles Regional Center
C173: Far Northern Regional Center
C174: Frank D. Lanterman Regional Center
C175: Golden Gate Regional Center
C176: Harbor Regional Center
C177: Inland Regional Center
C178: Kern Regional Center
C179: North Bay Regional Center
C180: North Los Angeles Regional Center
C181: Redwood Coast Regional Center
C182: Regional Center of the East Bay
C183: Orange County Regional Center
C184: San Andreas Regional Center
C185: San Diego Regional Center
C186: San Gabriel/Pomona Regional Center
C187: South Central Regional Center
C188: Tri-Counties Regional Center
C189: Valley Mountain Regional Center
C190: Westside Regional Center
